NUMERO_MANDATO;RIGA_MANDATO;QUIET;IMPORTO_RIGA;IMPORTO_MANDATO;BENEFICIARIO;CIG;TITOLO_PAGAMENTO;DATA_MANDATO;CAPITOLO;ARTICOLO;NUMERO_IMPEGNO;TITOLO;DESCR_TITOLO;LIVELLO_II;DESCR_LIVELLO_II;LIVELLO_III;DESCR_LIVELLO_III;LIVELLO_IV;DESCR_LIVELLO_IV;LIVELLO_V;DESCR_LIVELLO_V;DATA_PAG_EFF;
996;1;0;"84,35";"84,35";GLOBAL POWER SPA;622385037F;(SOS. 666) - ACCONTO Fatt.n. V0/43354  del 03/04/2018 Fattura Energia Elettrica;02-05-2018;2685;0;60;1;Spese correnti;3;Acquisto di beni e servizi;2;Acquisto di servizi;5;Utenze e canoni;4;Energia elettrica;02-05-2018;
997;1;0;"152,80";"826,16";GLOBAL POWER SPA;622385037F;(SOS. 662/P) - ACCONTO Fatt.n. V0/43358  del 03/04/2018 Fattura Energia Elettrica- SCUOLA MESE DI MARZO 2018;02-05-2018;259;0;51;1;Spese correnti;3;Acquisto di beni e servizi;2;Acquisto di servizi;5;Utenze e canoni;4;Energia elettrica;02-05-2018;
997;2;0;"673,36";"826,16";GLOBAL POWER SPA;622385037F;(SOS. 665/P) - ACCONTO Fatt.n. V0/43359  del 03/04/2018 Fattura Energia Elettrica- VARIE MASE DI MARZO 2018;02-05-2018;259;0;51;1;Spese correnti;3;Acquisto di beni e servizi;2;Acquisto di servizi;5;Utenze e canoni;4;Energia elettrica;02-05-2018;
998;1;0;"47,17";"1.222,37";GLOBAL POWER SPA;622385037F;(SOS. 664) - ACCONTO Fatt.n. V0/43356  del 03/04/2018 Fattura Energia Elettrica CENTRO DIREZIONALE MARCONI;02-05-2018;938;0;52;1;Spese correnti;3;Acquisto di beni e servizi;2;Acquisto di servizi;5;Utenze e canoni;4;Energia elettrica;02-05-2018;
998;2;0;"80,54";"1.222,37";GLOBAL POWER SPA;622385037F;(SOS. 663) - ACCONTO Fatt.n. V0/43355  del 03/04/2018 CONSUMI ENERGIE ELETTRICA MESE DI MARZO 2018 PALAZZINA TRISSINO;02-05-2018;938;0;52;1;Spese correnti;3;Acquisto di beni e servizi;2;Acquisto di servizi;5;Utenze e canoni;4;Energia elettrica;02-05-2018;
998;3;0;"1.094,66";"1.222,37";GLOBAL POWER SPA;622385037F;(SOS. 665/P) - ACCONTO Fatt.n. V0/43359  del 03/04/2018 Fattura Energia Elettrica- VARIE MASE DI MARZO 2018;02-05-2018;938;0;52;1;Spese correnti;3;Acquisto di beni e servizi;2;Acquisto di servizi;5;Utenze e canoni;4;Energia elettrica;02-05-2018;
999;1;0;"190,47";"547,99";GLOBAL POWER SPA;622385037F;(SOS. 665/P) - ACCONTO Fatt.n. V0/43359  del 03/04/2018 Fattura Energia Elettrica- VARIE MASE DI MARZO 2018;02-05-2018;1432;0;53;1;Spese correnti;3;Acquisto di beni e servizi;2;Acquisto di servizi;5;Utenze e canoni;4;Energia elettrica;02-05-2018;
999;2;0;"357,52";"547,99";GLOBAL POWER SPA;622385037F;(SOS. 662/P) - ACCONTO Fatt.n. V0/43358  del 03/04/2018 Fattura Energia Elettrica- SCUOLA MESE DI MARZO 2018;02-05-2018;1432;0;53;1;Spese correnti;3;Acquisto di beni e servizi;2;Acquisto di servizi;5;Utenze e canoni;4;Energia elettrica;02-05-2018;
1000;1;0;"1.047,67";"1.047,67";GLOBAL POWER SPA;622385037F;(SOS. 662/P) - ACCONTO Fatt.n. V0/43358  del 03/04/2018 Fattura Energia Elettrica- SCUOLA MESE DI MARZO 2018;02-05-2018;1573;0;54;1;Spese correnti;3;Acquisto di beni e servizi;2;Acquisto di servizi;5;Utenze e canoni;4;Energia elettrica;02-05-2018;
1001;1;0;"778,24";"1.242,85";GLOBAL POWER SPA;622385037F;(SOS. 662/P) - ACCONTO Fatt.n. V0/43358  del 03/04/2018 Fattura Energia Elettrica- SCUOLA MESE DI MARZO 2018;02-05-2018;1651;1;55;1;Spese correnti;3;Acquisto di beni e servizi;2;Acquisto di servizi;5;Utenze e canoni;4;Energia elettrica;02-05-2018;
1001;2;0;"464,61";"1.242,85";GLOBAL POWER SPA;622385037F;(SOS. 665/P) - ACCONTO Fatt.n. V0/43359  del 03/04/2018 Fattura Energia Elettrica- VARIE MASE DI MARZO 2018;02-05-2018;1651;1;55;1;Spese correnti;3;Acquisto di beni e servizi;2;Acquisto di servizi;5;Utenze e canoni;4;Energia elettrica;02-05-2018;
1002;1;0;"726,16";"726,16";GLOBAL POWER SPA;622385037F;(SOS. 665/P) - ACCONTO Fatt.n. V0/43359  del 03/04/2018 Fattura Energia Elettrica- VARIE MASE DI MARZO 2018;02-05-2018;1810;0;56;1;Spese correnti;3;Acquisto di beni e servizi;2;Acquisto di servizi;5;Utenze e canoni;4;Energia elettrica;02-05-2018;
1003;1;0;"135,75";"135,75";GLOBAL POWER SPA;622385037F;SALDO Fatt.n. V0/43360  del 03/04/2018 Fattura Energia - CIMITERI MESE DI MARZO 2018;02-05-2018;2240;0;57;1;Spese correnti;3;Acquisto di beni e servizi;2;Acquisto di servizi;5;Utenze e canoni;4;Energia elettrica;02-05-2018;
1004;1;0;"123,65";"123,65";GLOBAL POWER SPA;622385037F;(SOS. 665/P) - ACCONTO Fatt.n. V0/43359  del 03/04/2018 Fattura Energia Elettrica- VARIE MASE DI MARZO 2018;02-05-2018;3147;0;58;1;Spese correnti;3;Acquisto di beni e servizi;2;Acquisto di servizi;5;Utenze e canoni;4;Energia elettrica;02-05-2018;
1005;1;0;"80,47";"4.811,50";GLOBAL POWER SPA;622385037F;(SOS. 665/P) - ACCONTO Fatt.n. V0/43359  del 03/04/2018 Fattura Energia Elettrica- VARIE MASE DI MARZO 2018;02-05-2018;3303;0;59;1;Spese correnti;3;Acquisto di beni e servizi;2;Acquisto di servizi;5;Utenze e canoni;4;Energia elettrica;02-05-2018;
1005;2;0;"4.731,03";"4.811,50";GLOBAL POWER SPA;622385037F;(SOS. 661) - ACCONTO Fatt.n. V0/43357  del 03/04/2018 Fattura Energia Elettrica ILLUMINAZIONE PUBBLICA MESE DI MARZO 2018;02-05-2018;3303;0;59;1;Spese correnti;3;Acquisto di beni e servizi;2;Acquisto di servizi;5;Utenze e canoni;4;Energia elettrica;02-05-2018;
1006;1;0;"18,56";"18,56";GLOBAL POWER SPA; ;SALDO Fatt.n. V0/43354  del 03/04/2018 Fattura Energia Elettrica;02-05-2018;2685;0;60;1;Spese correnti;3;Acquisto di beni e servizi;2;Acquisto di servizi;5;Utenze e canoni;4;Energia elettrica;02-05-2018;
1007;1;0;"33,62";"181,76";GLOBAL POWER SPA;622385037;ACCONTO Fatt.n. V0/43358  del 03/04/2018 Fattura Energia Elettrica- SCUOLA MESE DI MARZO 2018;02-05-2018;259;0;51;1;Spese correnti;3;Acquisto di beni e servizi;2;Acquisto di servizi;5;Utenze e canoni;4;Energia elettrica;02-05-2018;
1007;2;0;"148,14";"181,76";GLOBAL POWER SPA;622385037;ACCONTO Fatt.n. V0/43359  del 03/04/2018 Fattura Energia Elettrica- VARIE MASE DI MARZO 2018;02-05-2018;259;0;51;1;Spese correnti;3;Acquisto di beni e servizi;2;Acquisto di servizi;5;Utenze e canoni;4;Energia elettrica;02-05-2018;
1008;1;0;"8,05";"259,26";GLOBAL POWER SPA;622385037;SALDO Fatt.n. V0/43355  del 03/04/2018 CONSUMI ENERGIE ELETTRICA MESE DI MARZO 2018 PALAZZINA TRISSINO;02-05-2018;938;0;52;1;Spese correnti;3;Acquisto di beni e servizi;2;Acquisto di servizi;5;Utenze e canoni;4;Energia elettrica;02-05-2018;
1008;2;0;"10,38";"259,26";GLOBAL POWER SPA;622385037F;SALDO Fatt.n. V0/43356  del 03/04/2018 Fattura Energia Elettrica CENTRO DIREZIONALE MARCONI;02-05-2018;938;0;52;1;Spese correnti;3;Acquisto di beni e servizi;2;Acquisto di servizi;5;Utenze e canoni;4;Energia elettrica;02-05-2018;
1008;3;0;"240,83";"259,26";GLOBAL POWER SPA;622385037;ACCONTO Fatt.n. V0/43359  del 03/04/2018 Fattura Energia Elettrica- VARIE MASE DI MARZO 2018;02-05-2018;938;0;52;1;Spese correnti;3;Acquisto di beni e servizi;2;Acquisto di servizi;5;Utenze e canoni;4;Energia elettrica;02-05-2018;
1009;1;0;"19,05";"54,80";GLOBAL POWER SPA;622385037;ACCONTO Fatt.n. V0/43359  del 03/04/2018 Fattura Energia Elettrica- VARIE MASE DI MARZO 2018;02-05-2018;1432;0;53;1;Spese correnti;3;Acquisto di beni e servizi;2;Acquisto di servizi;5;Utenze e canoni;4;Energia elettrica;02-05-2018;
1009;2;0;"35,75";"54,80";GLOBAL POWER SPA;622385037;ACCONTO Fatt.n. V0/43358  del 03/04/2018 Fattura Energia Elettrica- SCUOLA MESE DI MARZO 2018;02-05-2018;1432;0;53;1;Spese correnti;3;Acquisto di beni e servizi;2;Acquisto di servizi;5;Utenze e canoni;4;Energia elettrica;02-05-2018;
1010;1;0;"104,77";"104,77";GLOBAL POWER SPA;622385037;ACCONTO Fatt.n. V0/43358  del 03/04/2018 Fattura Energia Elettrica- SCUOLA MESE DI MARZO 2018;02-05-2018;1573;0;54;1;Spese correnti;3;Acquisto di beni e servizi;2;Acquisto di servizi;5;Utenze e canoni;4;Energia elettrica;02-05-2018;
1011;1;0;"77,82";"180,03";GLOBAL POWER SPA;622385037;SALDO Fatt.n. V0/43358  del 03/04/2018 Fattura Energia Elettrica- SCUOLA MESE DI MARZO 2018;02-05-2018;1651;1;55;1;Spese correnti;3;Acquisto di beni e servizi;2;Acquisto di servizi;5;Utenze e canoni;4;Energia elettrica;02-05-2018;
1011;2;0;"102,21";"180,03";GLOBAL POWER SPA;622385037;ACCONTO Fatt.n. V0/43359  del 03/04/2018 Fattura Energia Elettrica- VARIE MASE DI MARZO 2018;02-05-2018;1651;1;55;1;Spese correnti;3;Acquisto di beni e servizi;2;Acquisto di servizi;5;Utenze e canoni;4;Energia elettrica;02-05-2018;
1012;1;0;"159,76";"159,76";GLOBAL POWER SPA;622385037;ACCONTO Fatt.n. V0/43359  del 03/04/2018 Fattura Energia Elettrica- VARIE MASE DI MARZO 2018;02-05-2018;1810;0;56;1;Spese correnti;3;Acquisto di beni e servizi;2;Acquisto di servizi;5;Utenze e canoni;4;Energia elettrica;02-05-2018;
1013;1;0;"34,27";"34,27";GLOBAL POWER SPA;622385037F;SALDO Fatt.n. V0/43360  del 03/04/2018 Fattura Energia - CIMITERI MESE DI MARZO 2018;02-05-2018;2240;0;57;1;Spese correnti;3;Acquisto di beni e servizi;2;Acquisto di servizi;5;Utenze e canoni;4;Energia elettrica;02-05-2018;
1014;1;0;"27,20";"27,20";GLOBAL POWER SPA;622385037;ACCONTO Fatt.n. V0/43359  del 03/04/2018 Fattura Energia Elettrica- VARIE MASE DI MARZO 2018;02-05-2018;3147;0;58;1;Spese correnti;3;Acquisto di beni e servizi;2;Acquisto di servizi;5;Utenze e canoni;4;Energia elettrica;02-05-2018;
1015;1;0;"17,70";"1.058,53";GLOBAL POWER SPA;622385037;SALDO Fatt.n. V0/43359  del 03/04/2018 Fattura Energia Elettrica- VARIE MASE DI MARZO 2018;02-05-2018;3303;0;59;1;Spese correnti;3;Acquisto di beni e servizi;2;Acquisto di servizi;5;Utenze e canoni;4;Energia elettrica;02-05-2018;
1015;2;0;"1.040,83";"1.058,53";GLOBAL POWER SPA;622385037;SALDO Fatt.n. V0/43357  del 03/04/2018 Fattura Energia Elettrica ILLUMINAZIONE PUBBLICA MESE DI MARZO 2018;02-05-2018;3303;0;59;1;Spese correnti;3;Acquisto di beni e servizi;2;Acquisto di servizi;5;Utenze e canoni;4;Energia elettrica;02-05-2018;
1016;1;0;"46,15";"473,05";OMESSO NOMINATIVO NEL RISPETTO DELLA NORMATIVA SULLA PROTEZIONE DATI PERSONALI; ;EROGAZIONE CONTRIBUTI ECONOMICI AD INTEGRAZIONE DEL MINIMO VITALE. IMPEGNO DI SPESA E CONTESTUALE LIQUIDAZIONE.;02-05-2018;3220;0;343;1;Spese correnti;4;Trasferimenti correnti;2;Trasferimenti correnti a Famiglie;2;Interventi assistenziali;999;Altri assegni e sussidi assistenziali;02-05-2018;
1016;2;0;"92,30";"473,05";OMESSO NOMINATIVO NEL RISPETTO DELLA NORMATIVA SULLA PROTEZIONE DATI PERSONALI; ;EROGAZIONE CONTRIBUTI ECONOMICI AD INTEGRAZIONE DEL MINIMO VITALE. IMPEGNO DI SPESA E CONTESTUALE LIQUIDAZIONE.;02-05-2018;3220;0;343;1;Spese correnti;4;Trasferimenti correnti;2;Trasferimenti correnti a Famiglie;2;Interventi assistenziali;999;Altri assegni e sussidi assistenziali;02-05-2018;
1016;3;0;"46,15";"473,05";OMESSO NOMINATIVO NEL RISPETTO DELLA NORMATIVA SULLA PROTEZIONE DATI PERSONALI; ;EROGAZIONE CONTRIBUTI ECONOMICI AD INTEGRAZIONE DEL MINIMO VITALE. IMPEGNO DI SPESA E CONTESTUALE LIQUIDAZIONE.;02-05-2018;3220;0;343;1;Spese correnti;4;Trasferimenti correnti;2;Trasferimenti correnti a Famiglie;2;Interventi assistenziali;999;Altri assegni e sussidi assistenziali;02-05-2018;
1016;4;0;"138,45";"473,05";OMESSO NOMINATIVO NEL RISPETTO DELLA NORMATIVA SULLA PROTEZIONE DATI PERSONALI; ;EROGAZIONE CONTRIBUTI ECONOMICI AD INTEGRAZIONE DEL MINIMO VITALE. IMPEGNO DI SPESA E CONTESTUALE LIQUIDAZIONE.;02-05-2018;3220;0;343;1;Spese correnti;4;Trasferimenti correnti;2;Trasferimenti correnti a Famiglie;2;Interventi assistenziali;999;Altri assegni e sussidi assistenziali;02-05-2018;
1016;5;0;"150,00";"473,05";OMESSO NOMINATIVO NEL RISPETTO DELLA NORMATIVA SULLA PROTEZIONE DATI PERSONALI; ;EROGAZIONE CONTRIBUTI ECONOMICI AD INTEGRAZIONE DEL MINIMO VITALE. IMPEGNO DI SPESA E CONTESTUALE LIQUIDAZIONE.;02-05-2018;3220;0;343;1;Spese correnti;4;Trasferimenti correnti;2;Trasferimenti correnti a Famiglie;2;Interventi assistenziali;999;Altri assegni e sussidi assistenziali;02-05-2018;
1017;1;0;"300,00";"2.320,00";OMESSO NOMINATIVO NEL RISPETTO DELLA NORMATIVA SULLA PROTEZIONE DATI PERSONALI; ;EROGAZIONE CONTRIBUTI ECONOMICI AD INTEGRAZIONE DEL MINIMO VITALE. IMPEGNO DI SPESA E CONTESTUALE LIQUIDAZIONE.;02-05-2018;3220;0;343;1;Spese correnti;4;Trasferimenti correnti;2;Trasferimenti correnti a Famiglie;2;Interventi assistenziali;999;Altri assegni e sussidi assistenziali;02-05-2018;
1017;2;0;"200,00";"2.320,00";OMESSO NOMINATIVO NEL RISPETTO DELLA NORMATIVA SULLA PROTEZIONE DATI PERSONALI; ;EROGAZIONE CONTRIBUTI ECONOMICI AD INTEGRAZIONE DEL MINIMO VITALE. IMPEGNO DI SPESA E CONTESTUALE LIQUIDAZIONE.;02-05-2018;3220;0;343;1;Spese correnti;4;Trasferimenti correnti;2;Trasferimenti correnti a Famiglie;2;Interventi assistenziali;999;Altri assegni e sussidi assistenziali;02-05-2018;
1017;3;0;"500,00";"2.320,00";OMESSO NOMINATIVO NEL RISPETTO DELLA NORMATIVA SULLA PROTEZIONE DATI PERSONALI; ;EROGAZIONE CONTRIBUTI ECONOMICI AD INTEGRAZIONE DEL MINIMO VITALE. IMPEGNO DI SPESA E CONTESTUALE LIQUIDAZIONE.;02-05-2018;3220;0;343;1;Spese correnti;4;Trasferimenti correnti;2;Trasferimenti correnti a Famiglie;2;Interventi assistenziali;999;Altri assegni e sussidi assistenziali;02-05-2018;
1017;4;0;"660,00";"2.320,00";OMESSO NOMINATIVO NEL RISPETTO DELLA NORMATIVA SULLA PROTEZIONE DATI PERSONALI; ;EROGAZIONE CONTRIBUTI ECONOMICI AD INTEGRAZIONE DEL MINIMO VITALE. IMPEGNO DI SPESA E CONTESTUALE LIQUIDAZIONE.;02-05-2018;3220;0;343;1;Spese correnti;4;Trasferimenti correnti;2;Trasferimenti correnti a Famiglie;2;Interventi assistenziali;999;Altri assegni e sussidi assistenziali;02-05-2018;
1017;5;0;"660,00";"2.320,00";OMESSO NOMINATIVO NEL RISPETTO DELLA NORMATIVA SULLA PROTEZIONE DATI PERSONALI; ;EROGAZIONE CONTRIBUTI ECONOMICI AD INTEGRAZIONE DEL MINIMO VITALE. IMPEGNO DI SPESA E CONTESTUALE LIQUIDAZIONE.;02-05-2018;3220;0;343;1;Spese correnti;4;Trasferimenti correnti;2;Trasferimenti correnti a Famiglie;2;Interventi assistenziali;999;Altri assegni e sussidi assistenziali;02-05-2018;
1018;1;0;"300,00";"1.550,00";OMESSO NOMINATIVO NEL RISPETTO DELLA NORMATIVA SULLA PROTEZIONE DATI PERSONALI; ;EROGAZIONE CONTRIBUTI ECONOMICI AD INTEGRAZIONE DEL MINIMO VITALE. IMPEGNO DI SPESA E CONTESTUALE LIQUIDAZIONE.;03-05-2018;3220;0;343;1;Spese correnti;4;Trasferimenti correnti;2;Trasferimenti correnti a Famiglie;2;Interventi assistenziali;999;Altri assegni e sussidi assistenziali;03-05-2018;
1018;2;0;"600,00";"1.550,00";OMESSO NOMINATIVO NEL RISPETTO DELLA NORMATIVA SULLA PROTEZIONE DATI PERSONALI; ;EROGAZIONE CONTRIBUTI ECONOMICI AD INTEGRAZIONE DEL MINIMO VITALE. IMPEGNO DI SPESA E CONTESTUALE LIQUIDAZIONE.;03-05-2018;3220;0;343;1;Spese correnti;4;Trasferimenti correnti;2;Trasferimenti correnti a Famiglie;2;Interventi assistenziali;999;Altri assegni e sussidi assistenziali;03-05-2018;
1018;3;0;"250,00";"1.550,00";OMESSO NOMINATIVO NEL RISPETTO DELLA NORMATIVA SULLA PROTEZIONE DATI PERSONALI; ;EROGAZIONE CONTRIBUTI ECONOMICI AD INTEGRAZIONE DEL MINIMO VITALE. IMPEGNO DI SPESA E CONTESTUALE LIQUIDAZIONE.;03-05-2018;3220;0;343;1;Spese correnti;4;Trasferimenti correnti;2;Trasferimenti correnti a Famiglie;2;Interventi assistenziali;999;Altri assegni e sussidi assistenziali;03-05-2018;
1018;4;0;"300,00";"1.550,00";OMESSO NOMINATIVO NEL RISPETTO DELLA NORMATIVA SULLA PROTEZIONE DATI PERSONALI; ;EROGAZIONE CONTRIBUTI ECONOMICI AD INTEGRAZIONE DEL MINIMO VITALE. IMPEGNO DI SPESA E CONTESTUALE LIQUIDAZIONE.;03-05-2018;3220;0;343;1;Spese correnti;4;Trasferimenti correnti;2;Trasferimenti correnti a Famiglie;2;Interventi assistenziali;999;Altri assegni e sussidi assistenziali;03-05-2018;
1018;5;0;"100,00";"1.550,00";OMESSO NOMINATIVO NEL RISPETTO DELLA NORMATIVA SULLA PROTEZIONE DATI PERSONALI; ;EROGAZIONE CONTRIBUTI ECONOMICI AD INTEGRAZIONE DEL MINIMO VITALE. IMPEGNO DI SPESA E CONTESTUALE LIQUIDAZIONE.;03-05-2018;3220;0;343;1;Spese correnti;4;Trasferimenti correnti;2;Trasferimenti correnti a Famiglie;2;Interventi assistenziali;999;Altri assegni e sussidi assistenziali;03-05-2018;
1019;1;0;"43,68";"43,68";TELECOM ITALIA S.P.A. (GESTIONE FATTURE EX TIM ITALIA); ;SALDO Fatt.n. 8E00307792  del 06/04/2018 3BIM 2018;03-05-2018;259;3;50;1;Spese correnti;3;Acquisto di beni e servizi;2;Acquisto di servizi;5;Utenze e canoni;1;Telefonia fissa;03-05-2018;
1020;1;0;"349,12";"349,12";TELECOM ITALIA S.P.A. (GESTIONE FATTURE EX TIM ITALIA); ;SALDO Fatt.n. 8E00308767  del 06/04/2018 3BIM 2018;03-05-2018;259;3;50;1;Spese correnti;3;Acquisto di beni e servizi;2;Acquisto di servizi;5;Utenze e canoni;1;Telefonia fissa;03-05-2018;
1021;1;0;"32,21";"32,21";TELECOM ITALIA S.P.A. (GESTIONE FATTURE EX TIM ITALIA); ;SALDO Fatt.n. 8E00311180  del 06/04/2018 3BIM 2018;03-05-2018;259;3;50;1;Spese correnti;3;Acquisto di beni e servizi;2;Acquisto di servizi;5;Utenze e canoni;1;Telefonia fissa;03-05-2018;
1022;1;0;"6,21";"6,21";TELECOM ITALIA S.P.A. (GESTIONE FATTURE EX TIM ITALIA); ;SALDO Fatt.n. 8A00258747  del 06/04/2018 3BIM 2018-;03-05-2018;259;3;50;1;Spese correnti;3;Acquisto di beni e servizi;2;Acquisto di servizi;5;Utenze e canoni;1;Telefonia fissa;03-05-2018;
1023;1;0;"79,30";"79,30";TELECOM ITALIA S.P.A. (GESTIONE FATTURE EX TIM ITALIA); ;SALDO Fatt.n. 8E00310726  del 06/04/2018 3BIM 2018;03-05-2018;259;3;50;1;Spese correnti;3;Acquisto di beni e servizi;2;Acquisto di servizi;5;Utenze e canoni;1;Telefonia fissa;03-05-2018;
1024;1;0;"110,69";"110,69";TELECOM ITALIA S.P.A. (GESTIONE FATTURE EX TIM ITALIA); ;SALDO Fatt.n. 8E00308254  del 06/04/2018 3BIM 2018;03-05-2018;259;3;50;1;Spese correnti;3;Acquisto di beni e servizi;2;Acquisto di servizi;5;Utenze e canoni;1;Telefonia fissa;03-05-2018;
1025;1;0;"13,10";"13,10";TELECOM ITALIA S.P.A. (GESTIONE FATTURE EX TIM ITALIA); ;SALDO Fatt.n. 8E00307596  del 06/04/2018 3BIM 2018;03-05-2018;259;3;50;1;Spese correnti;3;Acquisto di beni e servizi;2;Acquisto di servizi;5;Utenze e canoni;1;Telefonia fissa;03-05-2018;
1026;1;0;"179,45";"179,45";TELECOM ITALIA S.P.A. (GESTIONE FATTURE EX TIM ITALIA); ;SALDO Fatt.n. 8E00305179  del 06/04/2018 3BIM 2018;03-05-2018;1651;0;308;1;Spese correnti;3;Acquisto di beni e servizi;2;Acquisto di servizi;5;Utenze e canoni;1;Telefonia fissa;03-05-2018;
1027;1;0;"36,22";"36,22";TELECOM ITALIA S.P.A. (GESTIONE FATTURE EX TIM ITALIA); ;SALDO Fatt.n. 8E00308584  del 06/04/2018 3BIM 2018;03-05-2018;1651;0;308;1;Spese correnti;3;Acquisto di beni e servizi;2;Acquisto di servizi;5;Utenze e canoni;1;Telefonia fissa;03-05-2018;
1028;1;0;"55,53";"55,53";TELECOM ITALIA S.P.A. (GESTIONE FATTURE EX TIM ITALIA); ;SALDO Fatt.n. 8E00307022  del 06/04/2018 3BIM 2018;03-05-2018;1651;0;308;1;Spese correnti;3;Acquisto di beni e servizi;2;Acquisto di servizi;5;Utenze e canoni;1;Telefonia fissa;03-05-2018;
1029;1;0;"76,38";"76,38";TELECOM ITALIA S.P.A. (GESTIONE FATTURE EX TIM ITALIA); ;SALDO Fatt.n. 8E00311235  del 06/04/2018 3BIM 2018;03-05-2018;1651;0;308;1;Spese correnti;3;Acquisto di beni e servizi;2;Acquisto di servizi;5;Utenze e canoni;1;Telefonia fissa;03-05-2018;
1030;1;0;"917,32";"917,32";ALFA ANTINCENDIO SRL;ZEB22D5A53;SALDO Fatt.n. 50  del 16/04/2018 MANUTENZIONE ESTINTORI;03-05-2018;1573;3;276;1;Spese correnti;3;Acquisto di beni e servizi;2;Acquisto di servizi;9;Manutenzione ordinaria e riparazioni;8;Manutenzione ordinaria e riparazioni di beni immobili;03-05-2018;
1031;1;0;"4.018,68";"4.018,68";MASCOTTO MARIO SRL;Z3F1EDB88A;SALDO Fatt.n. 1700012/P  del 29/12/2017 POSA IN OPERA RIVESTIMENTI PRESSO CENTRO POLIFUNZIONALE;03-05-2018;4512;0;900;2;Spese in conto capitale;2;Investimenti fissi lordi e acquisto di terreni;1;Beni materiali;9;Beni immobili;16;Impianti sportivi;03-05-2018;
1032;1;0;"624,27";"624,27";ELITE AMBIENTE SRL;ZC2223D1AC;SALDO Fatt.n. PA2018012  del 30/03/2018 SMALTIMENTO E TRASPORTO;03-05-2018;2701;0;228;1;Spese correnti;3;Acquisto di beni e servizi;2;Acquisto di servizi;15;Contratti di servizio pubblico;5;Contratti di servizio per il conferimento in discarica dei rifiuti;03-05-2018;
1033;1;0;"67,10";"67,10";COVER UP SRL;ZEF1962A6B;SALDO Fatt.n. 329B  del 30/03/2018 NOLEGGIO MESE DI MARZO;03-05-2018;340;0;255;1;Spese correnti;3;Acquisto di beni e servizi;2;Acquisto di servizi;19;Servizi informatici e di telecomunicazioni;5;Servizi per i sistemi e relativa manutenzione;03-05-2018;
1034;1;0;"230,00";"230,00";A.N.U.T.E.L.; ;IMPEGNO DI SPESA E CONTESTUALE LIQUIDAZIONE PER ADESIONE ALL'A.N.U.T.E.L.  (ASSOCIAZIONE NAZIONALE UFFICI TRIBUTI ENTI LOCALI). ANNO 2018;03-05-2018;601;0;64;1;Spese correnti;3;Acquisto di beni e servizi;2;Acquisto di servizi;99;Altri servizi;3;Quote di associazioni;03-05-2018;
1035;1;0;"292,80";"292,80";BIOCONTROL SRL;Z79219890C;SALDO Fatt.n. 2/13  del 31/03/2018 SERVIZIO DI DERATIZZAZIONE;03-05-2018;2000;0;61;1;Spese correnti;3;Acquisto di beni e servizi;2;Acquisto di servizi;99;Altri servizi;999;Altri servizi diversi n.a.c.;03-05-2018;
1036;1;0;"210,89";"210,89";EDIT GRAF di ISEPPI STEFANO;Z492277FA5;SALDO Fatt.n. 2/312  del 12/04/2018 MATERIALE DI CANCELLERIA VARIO PER UFF. RAGIONERIA;03-05-2018;324;0;244;1;Spese correnti;3;Acquisto di beni e servizi;1;Acquisto di beni;2;Altri beni di consumo;1;"Carta, cancelleria e stampati";03-05-2018;
1037;1;0;"449,55";"449,55";COMMERCIALE '98 SRL;ZF721B7BC0;ACCONTO Fatt.n. 2/E  del 28/02/2018 MATERIALE VARIO;03-05-2018;1640;0;116;1;Spese correnti;3;Acquisto di beni e servizi;1;Acquisto di beni;2;Altri beni di consumo;999;Altri beni e materiali di consumo n.a.c.;03-05-2018;
1038;1;0;"189,48";"189,48";COMMERCIALE '98 SRL;ZED1CEEF5E;ACCONTO Fatt.n. 2/E  del 28/02/2018 MATERIALE VARIO;03-05-2018;960;0;64;1;Spese correnti;3;Acquisto di beni e servizi;1;Acquisto di beni;2;Altri beni di consumo;999;Altri beni e materiali di consumo n.a.c.;03-05-2018;
1039;1;0;"154,69";"154,69";COMMERCIALE '98 SRL;ZF721B7BC0;SALDO Fatt.n. 2/E  del 28/02/2018 MATERIALE VARIO;03-05-2018;960;0;115;1;Spese correnti;3;Acquisto di beni e servizi;1;Acquisto di beni;2;Altri beni di consumo;999;Altri beni e materiali di consumo n.a.c.;03-05-2018;
1040;1;0;"207,47";"207,47";EXTRA COOKING SYSTEM S.R.L.;ZDE2326FD3;SALDO Fatt.n. 497  del 19/04/2018 INTERVENTO c/O SCUOLA PRIMARIA LUPIA . CESTO LAVASTOVIGLIE;03-05-2018;1573;3;321;1;Spese correnti;3;Acquisto di beni e servizi;2;Acquisto di servizi;9;Manutenzione ordinaria e riparazioni;8;Manutenzione ordinaria e riparazioni di beni immobili;03-05-2018;
1041;1;0;"1.040,94";"1.040,94";TELECOM ITALIA S.P.A. (GESTIONE FATTURE EX TIM ITALIA);29726146AB;SALDO Fatt.n. 7X01224037  del 16/04/2018 3BIM 2018-TGC USO AFFARI - NOLEGGIO CON ASSISTENZA TECNICA;03-05-2018;259;3;49;1;Spese correnti;3;Acquisto di beni e servizi;2;Acquisto di servizi;5;Utenze e canoni;2;Telefonia mobile;03-05-2018;
1042;1;0;"122,00";"122,00";SANDRI SNC di SANDRI N. & C.;Z5F221ED1C;SALDO Fatt.n. 0000021/PA  del 16/04/2018 SERVIZIO VERIFICA ANNUALE AFFRANCATRICE;03-05-2018;340;0;227;1;Spese correnti;3;Acquisto di beni e servizi;2;Acquisto di servizi;19;Servizi informatici e di telecomunicazioni;5;Servizi per i sistemi e relativa manutenzione;03-05-2018;
1043;1;0;"34,00";"34,00";MAGGIOLI SPA;Z5222EC023;SALDO Fatt.n. 0005955531  del 30/04/2018 FORNITURA TESTO PER UFF. RAGIONERIA;03-05-2018;324;1;281;1;Spese correnti;3;Acquisto di beni e servizi;1;Acquisto di beni;1;"Giornali, riviste e pubblicazioni";1;Giornali e riviste;03-05-2018;
1044;1;0;"500,00";"500,00";EDICOLA BASSO MANUELA;ZEF2251692;LIQUIDAZIONE EDICOLA BASSO MANUELA PER FORNITURA PERIODICI PER LA BIBLIOTECA - 1 TRIM. 2018;03-05-2018;1795;0;238;1;Spese correnti;3;Acquisto di beni e servizi;1;Acquisto di beni;1;"Giornali, riviste e pubblicazioni";2;Pubblicazioni;03-05-2018;
1046;1;0;"130,00";"130,00";A.N.U.S.C.A.; ;IMPEGNO DI SPESA PER ADESIONE ANUSCA. ANNO 2018;03-05-2018;601;0;74;1;Spese correnti;3;Acquisto di beni e servizi;2;Acquisto di servizi;99;Altri servizi;3;Quote di associazioni;03-05-2018;
1051;1;0;"55,84";"55,84";MOTTIN LUCA; ;SALDO Fatt.n. 1/PA  del 31/01/2018 COMPENSO PER PARTECIPAZIONE COMMISSIONE LOCALE PAESAGGIO ANNO 2017;04-05-2018;32;1;754;1;Spese correnti;3;Acquisto di beni e servizi;2;Acquisto di servizi;1;Organi e incarichi istituzionali dell'amministrazione;8;"Compensi agli organi istituzionali di revisione, di controllo ed altri incarichi istituzionali dell'amministrazione";04-05-2018;
1052;1;0;"93,09";"93,09";STIMELLI ENRICO; ;SALDO Fatt.n. 1 PA  del 01/02/2018 COMPENSO PARTECIPAZIONE A 5 SEDUTE ALLA COMM.NE LOCALE PAESAGGIO ANNO 2017;04-05-2018;32;1;754;1;Spese correnti;3;Acquisto di beni e servizi;2;Acquisto di servizi;1;Organi e incarichi istituzionali dell'amministrazione;8;"Compensi agli organi istituzionali di revisione, di controllo ed altri incarichi istituzionali dell'amministrazione";04-05-2018;
1053;1;0;"93,09";"93,09";COSTA MARIO; ;SALDO Fatt.n. FATTPA 2_18  del 02/02/2018 COMPENSO PARTECIPAZIONE COMMISSIONE LOCALE PAESAGGIO ANNO 2017;04-05-2018;32;1;754;1;Spese correnti;3;Acquisto di beni e servizi;2;Acquisto di servizi;1;Organi e incarichi istituzionali dell'amministrazione;8;"Compensi agli organi istituzionali di revisione, di controllo ed altri incarichi istituzionali dell'amministrazione";04-05-2018;
1054;1;0;"638,02";"638,02";MINISTERO DELL'INTERNO; ;COMUNE DI SANDRIGO - CORRIPETTIVO RILASCIO DI N. 38 CIE PERIODO 16 - 30 APRILE 2018;04-05-2018;901;0;147;1;Spese correnti;4;Trasferimenti correnti;1;Trasferimenti correnti a Amministrazioni Pubbliche;1;Trasferimenti correnti a Amministrazioni Centrali;1;Trasferimenti correnti a Ministeri;04-05-2018;
1055;1;0;"600,00";"1.200,00";OMESSO NOMINATIVO NEL RISPETTO DELLA NORMATIVA SULLA PROTEZIONE DATI PERSONALI; ;LIQUIDAZIONE CONTRIBUTI AD INTEGRAZIONE DEL MINIMO VITALE.;04-05-2018;3220;0;255;1;Spese correnti;4;Trasferimenti correnti;2;Trasferimenti correnti a Famiglie;2;Interventi assistenziali;999;Altri assegni e sussidi assistenziali;04-05-2018;
1055;2;0;"600,00";"1.200,00";OMESSO NOMINATIVO NEL RISPETTO DELLA NORMATIVA SULLA PROTEZIONE DATI PERSONALI; ;LIQUIDAZIONE CONTRIBUTI AD INTEGRAZIONE DEL MINIMO VITALE.;04-05-2018;3220;0;255;1;Spese correnti;4;Trasferimenti correnti;2;Trasferimenti correnti a Famiglie;2;Interventi assistenziali;999;Altri assegni e sussidi assistenziali;04-05-2018;
1056;1;0;"35.188,61";"35.188,61";CONSORZIO DI POLIZIA LOCALE NORDEST VICENTINO; ;LIQUIDAZIONE QUOTA FINANZIARIA CONSORZIO POLIZIA LOCALE NORDEST VICENTINO. PRIMO TRIMESTRE 2018;04-05-2018;1306;0;72;1;Spese correnti;4;Trasferimenti correnti;1;Trasferimenti correnti a Amministrazioni Pubbliche;2;Trasferimenti correnti a Amministrazioni Locali;18;Trasferimenti correnti a Consorzi di enti locali;04-05-2018;
1057;1;0;"3.036,08";"3.036,08";SO.RA.RIS. SPA; ;ACCONTO Fatt.n. 000031/PA  del 29/03/2018 GESTIONE TRAVASO E TRASPORTO;04-05-2018;2691;0;117;1;Spese correnti;3;Acquisto di beni e servizi;2;Acquisto di servizi;15;Contratti di servizio pubblico;4;Contratti di servizio per la raccolta rifiuti;04-05-2018;
1058;1;0;"6.971,34";"6.971,34";SO.RA.RIS. SPA; ;SALDO Fatt.n. 000031/PA  del 29/03/2018 GESTIONE TRAVASO E TRASPORTO;04-05-2018;2695;0;118;1;Spese correnti;3;Acquisto di beni e servizi;2;Acquisto di servizi;15;Contratti di servizio pubblico;5;Contratti di servizio per il conferimento in discarica dei rifiuti;04-05-2018;
1059;1;0;"3.285,95";"3.285,95";SO.RA.RIS. SPA; ;ACCONTO Fatt.n. 000047/PA  del 30/03/2018 RAG. DO. DAL 01/02/18 AL 28/02/18-GESTIONE STAZIONE TRAVASO-TRASPORTO;04-05-2018;2691;0;117;1;Spese correnti;3;Acquisto di beni e servizi;2;Acquisto di servizi;15;Contratti di servizio pubblico;4;Contratti di servizio per la raccolta rifiuti;04-05-2018;
1060;1;0;"7.158,06";"7.158,06";SO.RA.RIS. SPA;Z9B13C360F;SALDO Fatt.n. 000047/PA  del 30/03/2018 RAG. DO. DAL 01/02/18 AL 28/02/18-GESTIONE STAZIONE TRAVASO-TRASPORTO;04-05-2018;2695;0;118;1;Spese correnti;3;Acquisto di beni e servizi;2;Acquisto di servizi;15;Contratti di servizio pubblico;5;Contratti di servizio per il conferimento in discarica dei rifiuti;04-05-2018;
1061;1;0;"1.708,00";"1.708,00";GARDEN FIORI E FOGLIE SOLUTION di De Pretto S.;Z9B22E8079;SALDO Fatt.n. 000008-2018-PA  del 24/04/2018 RIMOZIONE CEPPAIE RASATURA TERRENO VIA ANDRETTO;07-05-2018;960;0;279;1;Spese correnti;3;Acquisto di beni e servizi;1;Acquisto di beni;2;Altri beni di consumo;999;Altri beni e materiali di consumo n.a.c.;07-05-2018;
1062;1;0;"17.101,18";"17.101,18";GONZATO DAVIDE;675663793B;SALDO Fatt.n. 08-E-2018  del 23/04/2018 SALDO COMPETENZE PROFESSIONALI DD.LL.  REALIZZAZIONE CENTRO POLIFUNZIONALE SPORTIVO RICREATIVO E SCOLASTICO 1 STRALCIO;07-05-2018;4512;0;900;2;Spese in conto capitale;2;Investimenti fissi lordi e acquisto di terreni;1;Beni materiali;9;Beni immobili;16;Impianti sportivi;07-05-2018;
1063;1;0;"2.107,01";"2.107,01";E.N.P.A. SEZIONE VICENZA;Z931CD84D9;ACCONTO Fatt.n. 301/PA  del 21/02/2018 GIORNI RICOVERO CANI DAL 1/10 AL 31/12/2017;11-05-2018;1990;0;107;1;Spese correnti;3;Acquisto di beni e servizi;2;Acquisto di servizi;99;Altri servizi;999;Altri servizi diversi n.a.c.;11-05-2018;
1064;1;0;"381,79";"381,79";E.N.P.A. SEZIONE VICENZA;Z931CD84D9;SALDO Fatt.n. 301/PA  del 21/02/2018 GIORNI RICOVERO CANI DAL 1/10 AL 31/12/2017;11-05-2018;1990;0;106;1;Spese correnti;3;Acquisto di beni e servizi;2;Acquisto di servizi;99;Altri servizi;999;Altri servizi diversi n.a.c.;11-05-2018;
1065;1;0;"3.100,75";"3.100,75";E.N.P.A. SEZIONE VICENZA;Z9E21AB929;SALDO Fatt.n. 434/PA  del 16/03/2018 QUOTA FISSA PER ABITANTE 2018;11-05-2018;1990;0;79;1;Spese correnti;3;Acquisto di beni e servizi;2;Acquisto di servizi;99;Altri servizi;999;Altri servizi diversi n.a.c.;11-05-2018;
1066;1;0;"1.653,10";"1.653,10";PC PLANET SERVICE SRL;Z9520FE4E9;SALDO Fatt.n. FATTPA 1_18  del 08/03/2018 SERVIZIO DI ELABORAZIONE PIANO FINANZIARIO E SIMULAZIONI TARIFFE TARI 2018;11-05-2018;1118;0;736;1;Spese correnti;3;Acquisto di beni e servizi;2;Acquisto di servizi;11;Prestazioni professionali e specialistiche;999;Altre prestazioni professionali e specialistiche n.a.c.;11-05-2018;
1067;1;0;"2.302,14";"2.302,14";COSTA BRUNO;Z82208D5B0;SALDO Fatt.n. 8  del 25/03/2018 REDAZIONE STUDIO FATTIBILITA' PER AFFITTO AGRARIO TERRENI VITATI COMUNE DI SANDRIGO;11-05-2018;740;0;682;1;Spese correnti;3;Acquisto di beni e servizi;2;Acquisto di servizi;10;Consulenze;1;"Incarichi libero professionali di studi, ricerca e consulenza";11-05-2018;
1068;1;0;"162,26";"162,26";ARGO SNC DI SILVIO CASELLA & C.;Z1E22B7D78;SALDO Fatt.n. 16/PA  del 31/03/2018 RACCOLTA SMALTIMENTO TRASPORTO SPOGLIE ANIMALI;14-05-2018;2701;0;267;1;Spese correnti;3;Acquisto di beni e servizi;2;Acquisto di servizi;15;Contratti di servizio pubblico;5;Contratti di servizio per il conferimento in discarica dei rifiuti;14-05-2018;
1069;1;0;"4.058,70";"4.058,70";PARROCCHIA DI S. STEFANO PROMARTIRE;ZB020DF149;SALDO Fatt.n. 0000001/PA  del 31/03/2018 BUONI PASTO PERSONALE SCUOLA PRIMARIA LUPIA;14-05-2018;1746;0;749;1;Spese correnti;4;Trasferimenti correnti;4;Trasferimenti correnti a Istituzioni Sociali Private;1;Trasferimenti correnti a Istituzioni Sociali Private;1;Trasferimenti correnti a Istituzioni Sociali Private;14-05-2018;
1070;1;0;"731,56";"1.179,56";OMESSO NOMINATIVO NEL RISPETTO DELLA NORMATIVA SULLA PROTEZIONE DATI PERSONALI; ;EROGAZIONE CONTRIBUTI ECONOMICI AD INTEGRAZIONE DEL MINIMO VITALE. IMPEGNO DI SPESA E CONTESTUALE LIQUIDAZIONE.;14-05-2018;3220;0;353;1;Spese correnti;4;Trasferimenti correnti;2;Trasferimenti correnti a Famiglie;2;Interventi assistenziali;999;Altri assegni e sussidi assistenziali;14-05-2018;
1070;2;0;"448,00";"1.179,56";OMESSO NOMINATIVO NEL RISPETTO DELLA NORMATIVA SULLA PROTEZIONE DATI PERSONALI; ;EROGAZIONE CONTRIBUTI ECONOMICI AD INTEGRAZIONE DEL MINIMO VITALE. IMPEGNO DI SPESA E CONTESTUALE LIQUIDAZIONE.;14-05-2018;3220;0;353;1;Spese correnti;4;Trasferimenti correnti;2;Trasferimenti correnti a Famiglie;2;Interventi assistenziali;999;Altri assegni e sussidi assistenziali;14-05-2018;
1072;1;0;"74,08";"74,08";EDIT GRAF di ISEPPI STEFANO;Z492277FA5;SALDO Fatt.n. 2/361  del 26/04/2018 CARTELINE FAVINI - UFF. RAGIONERIA;14-05-2018;324;0;244;1;Spese correnti;3;Acquisto di beni e servizi;1;Acquisto di beni;2;Altri beni di consumo;1;"Carta, cancelleria e stampati";14-05-2018;
1073;1;0;"457,50";"457,50";SHARP ELECTRONICS ITALIA SPA;Z470E3E74D;SALDO Fatt.n. 7718008009  del 27/04/2018 NOLEGGIO FOTOCOPIATRICE SHARP PERIODO 09/01/2018 al 08/04/2018 SCADENZA CONTRATTO;14-05-2018;329;0;286;1;Spese correnti;3;Acquisto di beni e servizi;2;Acquisto di servizi;7;Utilizzo di beni di terzi;8;Noleggi di impianti e macchinari;14-05-2018;
1074;1;0;"36.326,35";"36.326,35";SCREMIN SRL;651605852A;SALDO Fatt.n. 14FPA  del 30/03/2018 LAVORI ADEGUAMENTO IMPIANTI ELETTRICI PALAZZETTO DELLO SPORT DI SANDRIGO;14-05-2018;4511;0;897;2;Spese in conto capitale;2;Investimenti fissi lordi e acquisto di terreni;1;Beni materiali;9;Beni immobili;16;Impianti sportivi;14-05-2018;
1075;1;0;"3.965,00";"3.965,00";TRAFFIC TECNOLOGY SRL;Z302197E32;SALDO Fatt.n. 510  del 19/04/2018 CANONE VISTA RED;14-05-2018;3342;0;169;1;Spese correnti;3;Acquisto di beni e servizi;2;Acquisto di servizi;99;Altri servizi;999;Altri servizi diversi n.a.c.;14-05-2018;
1076;1;0;"610,00";"610,00";DE FORNI CARLO E MASSIMO;Z811CE9382;SALDO Fatt.n. 3/PA  del 03/05/2018 INTERVENTI STAGIONE INVERNALE;14-05-2018;3343;0;61;1;Spese correnti;3;Acquisto di beni e servizi;2;Acquisto di servizi;99;Altri servizi;999;Altri servizi diversi n.a.c.;14-05-2018;
1077;1;0;"737,05";"737,05";MARMI BONOLLO DI ANTONIO BONOLLO E C.;Z8A1D2638A;SALDO Fatt.n. 1  del 31/01/2018 FORNITURA MARMO;14-05-2018;2280;0;116;1;Spese correnti;3;Acquisto di beni e servizi;1;Acquisto di beni;2;Altri beni di consumo;999;Altri beni e materiali di consumo n.a.c.;14-05-2018;
1078;1;0;"454,38";"454,38";CASA DI RIPOSO DI DUEVILLE; ;SALDO Fatt.n. 27/VH  del 31/03/2018 Rette 3/2018 MANRIN MARIA CATERINA;14-05-2018;3201;0;154;1;Spese correnti;3;Acquisto di beni e servizi;2;Acquisto di servizi;15;Contratti di servizio pubblico;8;Contratti di servizio di assistenza sociale residenziale e semiresidenziale;14-05-2018;
1079;1;0;"13,01";"74,93";COVER UP SRL;Z74223316C;SALDO Fatt.n. 428B  del 20/04/2018 CUFFIE MICROFONO;14-05-2018;342;0;253;1;Spese correnti;3;Acquisto di beni e servizi;1;Acquisto di beni;2;Altri beni di consumo;6;Materiale informatico;14-05-2018;
1079;2;0;"14,49";"74,93";COVER UP SRL;Z74223316C;SALDO Fatt.n. 387B  del 18/04/2018 MATERIALE VARIO;14-05-2018;342;0;253;1;Spese correnti;3;Acquisto di beni e servizi;1;Acquisto di beni;2;Altri beni di consumo;6;Materiale informatico;14-05-2018;
1079;3;0;"47,43";"74,93";COVER UP SRL;Z74223316C;SALDO Fatt.n. 404B  del 18/04/2018 MATERIALE VARIO;14-05-2018;342;0;253;1;Spese correnti;3;Acquisto di beni e servizi;1;Acquisto di beni;2;Altri beni di consumo;6;Materiale informatico;14-05-2018;
1080;1;0;"2.340,00";"2.340,00";SERENISSIMA RISTORAZIONE S.P.A.;6996960A0B;SALDO Fatt.n. 01578/4  del 31/03/2018 Mensa: SCUOLA INFANZIA CAPOLUGO. MENSA SCOLASTICA MESE DI MARZO;14-05-2018;1425;0;603;1;Spese correnti;3;Acquisto di beni e servizi;2;Acquisto di servizi;14;Servizi di ristorazione;999;Altri servizi di ristorazione;14-05-2018;
1081;1;0;"1.550,00";"1.550,00";I.P.A.B. SUOR DIODATA BERTOLO; ;SALDO Fatt.n. 61/E  del 12/04/2018 Determina impegno di spesa nr. 74 del 30/01/2018.RETTE DALLA COSTA ROSA - CASAGRANDE ANNALISA;14-05-2018;3201;0;151;1;Spese correnti;3;Acquisto di beni e servizi;2;Acquisto di servizi;15;Contratti di servizio pubblico;8;Contratti di servizio di assistenza sociale residenziale e semiresidenziale;14-05-2018;
1082;1;0;"219,60";"219,60";COVER UP SRL;Z591C0FAD9;SALDO Fatt.n. 431B  del 20/04/2018 NOLEGGIO APRILE MAGGIO FIREWALL;14-05-2018;340;0;853;1;Spese correnti;3;Acquisto di beni e servizi;2;Acquisto di servizi;19;Servizi informatici e di telecomunicazioni;5;Servizi per i sistemi e relativa manutenzione;14-05-2018;
1083;1;0;"580,81";"580,81";MARGHERITA SOC. COOP. SOCIALE ONLUS;Z2421EC016;SALDO Fatt.n. 69/E  del 31/03/2018 SERVIZIO SOSTEGNO SOCIO EDUCATIVO MESE DI MARZO;14-05-2018;2741;0;172;1;Spese correnti;3;Acquisto di beni e servizi;2;Acquisto di servizi;99;Altri servizi;999;Altri servizi diversi n.a.c.;14-05-2018;
1084;1;0;"3.864,26";"3.864,26";MARGHERITA SOC. COOP. SOCIALE ONLUS;5342930550;SALDO Fatt.n. 67/E  del 31/03/2018 SERVIZIO ASSISTENZA DOMICILIARE;14-05-2018;3140;0;611;1;Spese correnti;3;Acquisto di beni e servizi;2;Acquisto di servizi;99;Altri servizi;999;Altri servizi diversi n.a.c.;14-05-2018;
1085;1;0;"378,00";"378,00";MARGHERITA SOC. COOP. SOCIALE ONLUS;5342930550;SALDO Fatt.n. 68/E  del 31/03/2018 PROGETTO OASI MESE DI MARZO;14-05-2018;3140;0;611;1;Spese correnti;3;Acquisto di beni e servizi;2;Acquisto di servizi;99;Altri servizi;999;Altri servizi diversi n.a.c.;14-05-2018;
1086;1;0;"366,00";"366,00";COVER UP SRL;ZAC2316F31;SALDO Fatt.n. 438B  del 23/04/2018 CONTRATTO ASSISTENZA;14-05-2018;340;0;307;1;Spese correnti;3;Acquisto di beni e servizi;2;Acquisto di servizi;19;Servizi informatici e di telecomunicazioni;5;Servizi per i sistemi e relativa manutenzione;14-05-2018;
1087;1;0;"821,60";"821,60";IPAB di VICENZA; ;SALDO Fatt.n. 53/E  del 31/03/2018 . RETTA CAPPELLARI GIUSEPPE;14-05-2018;3201;0;152;1;Spese correnti;3;Acquisto di beni e servizi;2;Acquisto di servizi;15;Contratti di servizio pubblico;8;Contratti di servizio di assistenza sociale residenziale e semiresidenziale;14-05-2018;
1088;1;0;"1.838,25";"1.838,25";CENTRO BIBLIOTECHE LOVAT SRL;ZAC2287ADB;SALDO Fatt.n. 130-18PA  del 18/04/2018 ACQUISTO LIBRI;14-05-2018;1795;0;260;1;Spese correnti;3;Acquisto di beni e servizi;1;Acquisto di beni;1;"Giornali, riviste e pubblicazioni";2;Pubblicazioni;14-05-2018;
1089;1;0;"74,48";"74,48";PARISE GIORGIO; ;ACCONTO Fatt.n. 1  del 04/04/2018 Compensi partecipazione Commissione Locale  per il Paesaggio 2016-2017;14-05-2018;32;1;398;1;Spese correnti;3;Acquisto di beni e servizi;2;Acquisto di servizi;1;Organi e incarichi istituzionali dell'amministrazione;8;"Compensi agli organi istituzionali di revisione, di controllo ed altri incarichi istituzionali dell'amministrazione";14-05-2018;
1090;1;0;"84,53";"84,53";PARISE GIORGIO; ;SALDO Fatt.n. 1  del 04/04/2018 Compensi partecipazione Commissione Locale  per il Paesaggio 2016-2017;14-05-2018;32;1;754;1;Spese correnti;3;Acquisto di beni e servizi;2;Acquisto di servizi;1;Organi e incarichi istituzionali dell'amministrazione;8;"Compensi agli organi istituzionali di revisione, di controllo ed altri incarichi istituzionali dell'amministrazione";14-05-2018;
1091;1;0;"989,12";"989,12";ASSITECA SPA - FILIALE DI VERONA;Z3C235E0BE;IMPEGNO DI SPESA E LIQUIDAZIONE PREMI POLIZZE ASSICURATIVE;14-05-2018;980;0;363;1;Spese correnti;10;Altre spese correnti;4;Premi di assicurazione;1;Premi di assicurazione contro i danni;2;Premi di assicurazione su beni immobili;14-05-2018;
1092;1;0;"12.529,00";"12.529,00";ASSITECA SPA - FILIALE DI VERONA;Z3C235E0BE;IMPEGNO DI SPESA E LIQUIDAZIONE PREMI POLIZZE ASSICURATIVE;14-05-2018;980;0;364;1;Spese correnti;10;Altre spese correnti;4;Premi di assicurazione;1;Premi di assicurazione contro i danni;2;Premi di assicurazione su beni immobili;14-05-2018;
1093;1;0;"22.050,00";"22.050,00";ASSITECA SPA - FILIALE DI VERONA;Z3C235E0BE;IMPEGNO DI SPESA E LIQUIDAZIONE PREMI POLIZZE ASSICURATIVE;14-05-2018;980;0;365;1;Spese correnti;10;Altre spese correnti;4;Premi di assicurazione;1;Premi di assicurazione contro i danni;2;Premi di assicurazione su beni immobili;14-05-2018;
1094;1;0;"2.500,00";"2.500,00";ASSITECA SPA - FILIALE DI VERONA;Z3C235E0BE;IMPEGNO DI SPESA E LIQUIDAZIONE PREMI POLIZZE ASSICURATIVE;14-05-2018;980;0;366;1;Spese correnti;10;Altre spese correnti;4;Premi di assicurazione;1;Premi di assicurazione contro i danni;2;Premi di assicurazione su beni immobili;14-05-2018;
1095;1;0;"781,82";"781,82";ASSITECA SPA - FILIALE DI VERONA;Z3C235E0BE;IMPEGNO DI SPESA E LIQUIDAZIONE PREMI POLIZZE ASSICURATIVE;14-05-2018;60;0;367;1;Spese correnti;10;Altre spese correnti;4;Premi di assicurazione;1;Premi di assicurazione contro i danni;3;Premi di assicurazione per responsabilità civile verso terzi;14-05-2018;
1096;1;0;"747,00";"747,00";ASSITECA SPA - FILIALE DI VERONA;Z3C235E0BE;IMPEGNO DI SPESA E LIQUIDAZIONE PREMI POLIZZE ASSICURATIVE;14-05-2018;60;0;368;1;Spese correnti;10;Altre spese correnti;4;Premi di assicurazione;1;Premi di assicurazione contro i danni;3;Premi di assicurazione per responsabilità civile verso terzi;14-05-2018;
1097;1;0;"1.379,09";"1.379,09";ASSITECA SPA - FILIALE DI VERONA;Z3C235E0BE;IMPEGNO DI SPESA E LIQUIDAZIONE PREMI POLIZZE ASSICURATIVE;14-05-2018;60;1;369;1;Spese correnti;10;Altre spese correnti;4;Premi di assicurazione;1;Premi di assicurazione contro i danni;3;Premi di assicurazione per responsabilità civile verso terzi;14-05-2018;
1098;1;0;"835,00";"835,00";ASSITECA SPA - FILIALE DI VERONA;Z3C235E0BE;IMPEGNO DI SPESA E LIQUIDAZIONE PREMI POLIZZE ASSICURATIVE;14-05-2018;60;1;370;1;Spese correnti;10;Altre spese correnti;4;Premi di assicurazione;1;Premi di assicurazione contro i danni;3;Premi di assicurazione per responsabilità civile verso terzi;14-05-2018;
1099;1;0;"659,25";"659,25";ASSITECA SPA - FILIALE DI VERONA;Z3C235E0BE;IMPEGNO DI SPESA E LIQUIDAZIONE PREMI POLIZZE ASSICURATIVE;14-05-2018;60;1;371;1;Spese correnti;10;Altre spese correnti;4;Premi di assicurazione;1;Premi di assicurazione contro i danni;3;Premi di assicurazione per responsabilità civile verso terzi;14-05-2018;
1100;1;0;"5.800,00";"5.800,00";ASSITECA SPA - FILIALE DI VERONA;Z3C235E0BE;IMPEGNO DI SPESA E LIQUIDAZIONE PREMI POLIZZE ASSICURATIVE;14-05-2018;764;0;372;1;Spese correnti;10;Altre spese correnti;4;Premi di assicurazione;1;Premi di assicurazione contro i danni;3;Premi di assicurazione per responsabilità civile verso terzi;14-05-2018;
1101;1;0;"562,75";"562,75";ASSITECA SPA - FILIALE DI VERONA;Z3C235E0BE;IMPEGNO DI SPESA E LIQUIDAZIONE PREMI POLIZZE ASSICURATIVE;14-05-2018;1282;0;373;1;Spese correnti;10;Altre spese correnti;4;Premi di assicurazione;1;Premi di assicurazione contro i danni;3;Premi di assicurazione per responsabilità civile verso terzi;14-05-2018;
1102;1;0;"800,00";"800,00";ASSITECA SPA - FILIALE DI VERONA;Z3C235E0BE;IMPEGNO DI SPESA E LIQUIDAZIONE PREMI POLIZZE ASSICURATIVE;14-05-2018;3179;0;374;1;Spese correnti;10;Altre spese correnti;4;Premi di assicurazione;1;Premi di assicurazione contro i danni;3;Premi di assicurazione per responsabilità civile verso terzi;14-05-2018;
1103;1;0;"150,00";"150,00";ASSITECA SPA - FILIALE DI VERONA;Z3C235E0BE;IMPEGNO DI SPESA E LIQUIDAZIONE PREMI POLIZZE ASSICURATIVE;14-05-2018;3342;0;375;1;Spese correnti;3;Acquisto di beni e servizi;2;Acquisto di servizi;99;Altri servizi;999;Altri servizi diversi n.a.c.;14-05-2018;
1104;1;0;"744,08";"744,08";COSTRUZIONI GENERALI GIRARDINI SPA;Z9E21B7F37;SALDO Fatt.n. 0000042/E  del 31/03/2018 CONGLOMERATO PLASTICO E FORNITURE VARIE;15-05-2018;3420;0;114;1;Spese correnti;3;Acquisto di beni e servizi;1;Acquisto di beni;2;Altri beni di consumo;999;Altri beni e materiali di consumo n.a.c.;15-05-2018;
1105;1;0;"14.207,93";"14.207,93";CONSORZIO DI BONIFICA BRENTA; ;AVVISO N. 0620913688 - TRIBUTI CONSORZIO BRENTA;15-05-2018;3460;0;376;1;Spese correnti;3;Acquisto di beni e servizi;2;Acquisto di servizi;7;Utilizzo di beni di terzi;999;Altre spese sostenute per utilizzo di beni di terzi n.a.c.;15-05-2018;
1107;1;0;"652,00";"652,00";CONSORZIO ENERGIA VENETO; ;SALDO Fatt.n. 7842018  del 16/04/2018 QUOTA ASSOCIATIVA;15-05-2018;3303;0;357;1;Spese correnti;3;Acquisto di beni e servizi;2;Acquisto di servizi;5;Utenze e canoni;4;Energia elettrica;15-05-2018;
1108;1;0;"7.290,70";"7.290,70";S.I.A. Societa' Intercomunale Ambiente SRL; ;SALDO Fatt.n. 57/PA18  del 31/03/2018 CONFERIMENTO SECCO;15-05-2018;2695;0;163;1;Spese correnti;3;Acquisto di beni e servizi;2;Acquisto di servizi;15;Contratti di servizio pubblico;5;Contratti di servizio per il conferimento in discarica dei rifiuti;15-05-2018;
1109;1;0;"889,55";"889,55";SCREMIN SRL;Z77229E221;SALDO Fatt.n. 17FPA  del 30/04/2018 INTERVENTO ELETTRICO PER LAVORI GIARDINO BIBLIOTECA COMUNALE;15-05-2018;1810;4;257;1;Spese correnti;3;Acquisto di beni e servizi;2;Acquisto di servizi;9;Manutenzione ordinaria e riparazioni;4;Manutenzione ordinaria e riparazioni di impianti e macchinari;15-05-2018;
1110;1;0;"2.861,10";"2.861,10";COOP.SOCIALE DI SOLIDARIETA' S.MARCO a r.l. O.N.L.U.S.;ZE021A05E0;SALDO Fatt.n. 54/01  del 30/04/2018 GESTIONE CENTRO RACCOLTA RIFIUTI;15-05-2018;2689;0;164;1;Spese correnti;3;Acquisto di beni e servizi;2;Acquisto di servizi;13;Servizi ausiliari per il funzionamento dell'ente;999;Altri servizi ausiliari n.a.c.;15-05-2018;
1111;1;0;"331,84";"331,84";COOP.SOCIALE DI SOLIDARIETA' S.MARCO a r.l. O.N.L.U.S.;ZE021A05E0;SALDO Fatt.n. 66/01  del 30/04/2018 SERVIZIO SFALCIO ERBA E PULIZIA;15-05-2018;2689;0;164;1;Spese correnti;3;Acquisto di beni e servizi;2;Acquisto di servizi;13;Servizi ausiliari per il funzionamento dell'ente;999;Altri servizi ausiliari n.a.c.;15-05-2018;
1112;1;0;"528,92";"528,92";EDIT GRAF di ISEPPI STEFANO;Z1B22EEF15;SALDO Fatt.n. 2/359  del 26/04/2018 INFORMAZIONE E IMBUSTAGGIO NORMATIVA TARI;15-05-2018;1115;0;282;1;Spese correnti;3;Acquisto di beni e servizi;2;Acquisto di servizi;3;Aggi di riscossione;999;Altri aggi di riscossione n.a.c.;15-05-2018;
1113;1;0;"109,80";"109,80";MAGGIOLI SPA;ZAE22C0945;SALDO Fatt.n. 0002118931  del 30/04/2018 COPERTINA PER ATTI DI NASCITA;15-05-2018;900;0;297;1;Spese correnti;3;Acquisto di beni e servizi;1;Acquisto di beni;2;Altri beni di consumo;1;"Carta, cancelleria e stampati";15-05-2018;
1114;1;0;"1.481,88";"1.481,88";EDIT GRAF di ISEPPI STEFANO;Z1B22EEF15;SALDO Fatt.n. 2/360  del 26/04/2018 SPESE POSTALI TARI;15-05-2018;1115;2;283;1;Spese correnti;3;Acquisto di beni e servizi;2;Acquisto di servizi;16;Servizi amministrativi;2;Spese postali;15-05-2018;
1115;1;0;"1.933,78";"1.933,78";F.LLI URBANI SRL;ZB521BB575;ACCONTO Fatt.n. 09/PA  del 31/03/2018 TRASPORTO E SMALTIMENTO RIFIUTI CIG ZB521BB575;15-05-2018;2798;0;121;1;Spese correnti;3;Acquisto di beni e servizi;2;Acquisto di servizi;99;Altri servizi;999;Altri servizi diversi n.a.c.;15-05-2018;
1116;1;0;"235,39";"235,39";F.LLI URBANI SRL;ZB521BB575;SALDO Fatt.n. 09/PA  del 31/03/2018 TRASPORTO E SMALTIMENTO RIFIUTI CIG ZB521BB575;15-05-2018;2798;0;336;1;Spese correnti;3;Acquisto di beni e servizi;2;Acquisto di servizi;99;Altri servizi;999;Altri servizi diversi n.a.c.;15-05-2018;
1117;1;0;"1.129,09";"1.129,09";FERRAMENTA FANTIN RENATO;ZC321B8544;SALDO Fatt.n. 01/2018  del 30/04/2018 MATERIALE VARIO;15-05-2018;960;0;107;1;Spese correnti;3;Acquisto di beni e servizi;1;Acquisto di beni;2;Altri beni di consumo;999;Altri beni e materiali di consumo n.a.c.;15-05-2018;
1118;1;0;"349,90";"349,90";MARMI BONOLLO DI ANTONIO BONOLLO E C.;Z8A1D2638A;SALDO Fatt.n. 3  del 31/03/2018 FORNITURA MARMO;15-05-2018;2280;0;116;1;Spese correnti;3;Acquisto di beni e servizi;1;Acquisto di beni;2;Altri beni di consumo;999;Altri beni e materiali di consumo n.a.c.;15-05-2018;
1119;1;0;"32.338,25";"32.338,25";SO.RA.RIS. SPA; ;SALDO Fatt.n. 000071/PA  del 30/04/2018 SERVIZIO NETTEZZA URBANA CANONE MENSILE DI APRILE;15-05-2018;2691;0;117;1;Spese correnti;3;Acquisto di beni e servizi;2;Acquisto di servizi;15;Contratti di servizio pubblico;4;Contratti di servizio per la raccolta rifiuti;15-05-2018;
1120;1;0;"1.701,00";"1.701,00";IDEA SRL;ZB223012C8;SALDO Fatt.n. 000124-2018-C  del 27/04/2018 FORNITURA ABBONAMENTI PERIODICI BIBLIOTECA;15-05-2018;1795;0;340;1;Spese correnti;3;Acquisto di beni e servizi;1;Acquisto di beni;1;"Giornali, riviste e pubblicazioni";2;Pubblicazioni;15-05-2018;
1121;1;0;"1.342,00";"1.342,00";FONZO CARMINE COSTRUZIONI EDILI;Z7121C4BC5;SALDO Fatt.n. 0000007  del 07/05/2018 GESTIONE CIMITERI MESE APRILE 2018;15-05-2018;2247;0;123;1;Spese correnti;3;Acquisto di beni e servizi;2;Acquisto di servizi;99;Altri servizi;999;Altri servizi diversi n.a.c.;15-05-2018;
1122;1;0;"744,20";"744,20";DETTO SRL;ZA3220DB42;ACCONTO Fatt.n. 19  del 27/04/2018 IMPIABTO ELEVATORE SCUOLE;15-05-2018;1573;3;192;1;Spese correnti;3;Acquisto di beni e servizi;2;Acquisto di servizi;9;Manutenzione ordinaria e riparazioni;8;Manutenzione ordinaria e riparazioni di beni immobili;15-05-2018;
1123;1;0;"861,32";"861,32";DETTO SRL;ZA3220DB42;SALDO Fatt.n. 19  del 27/04/2018 IMPIABTO ELEVATORE SCUOLE;15-05-2018;1573;3;219;1;Spese correnti;3;Acquisto di beni e servizi;2;Acquisto di servizi;9;Manutenzione ordinaria e riparazioni;8;Manutenzione ordinaria e riparazioni di beni immobili;15-05-2018;
1124;1;0;"533,22";"533,22";I.P.A.B. SUOR DIODATA BERTOLO; ;SALDO Fatt.n. 63/E  del 30/04/2018 dETERMINA IMPEGNO DI SPESA NR. 74 DEL 30.01.2018 CLAVELLO ROSA;15-05-2018;3201;0;151;1;Spese correnti;3;Acquisto di beni e servizi;2;Acquisto di servizi;15;Contratti di servizio pubblico;8;Contratti di servizio di assistenza sociale residenziale e semiresidenziale;15-05-2018;
1125;1;0;"1.200,00";"4.800,00";OMESSO NOMINATIVO NEL RISPETTO DELLA NORMATIVA SULLA PROTEZIONE DATI PERSONALI; ;"IMPEGNATIVA DI CURA DOMICILIARE. ACCERTAMENTO ENTRATA, IMPEGNO DI SPESA E CONTESTUALE LIQUIDAZIONE CONTRIBUTO ICDm 1^ TRIMESTRE 2018.";15-05-2018;3234;0;381;1;Spese correnti;4;Trasferimenti correnti;2;Trasferimenti correnti a Famiglie;2;Interventi assistenziali;999;Altri assegni e sussidi assistenziali;15-05-2018;
1125;2;0;"1.200,00";"4.800,00";OMESSO NOMINATIVO NEL RISPETTO DELLA NORMATIVA SULLA PROTEZIONE DATI PERSONALI; ;"IMPEGNATIVA DI CURA DOMICILIARE. ACCERTAMENTO ENTRATA, IMPEGNO DI SPESA E CONTESTUALE LIQUIDAZIONE CONTRIBUTO ICDm 1^ TRIMESTRE 2018.";15-05-2018;3234;0;381;1;Spese correnti;4;Trasferimenti correnti;2;Trasferimenti correnti a Famiglie;2;Interventi assistenziali;999;Altri assegni e sussidi assistenziali;15-05-2018;
1125;3;0;"1.200,00";"4.800,00";OMESSO NOMINATIVO NEL RISPETTO DELLA NORMATIVA SULLA PROTEZIONE DATI PERSONALI; ;"IMPEGNATIVA DI CURA DOMICILIARE. ACCERTAMENTO ENTRATA, IMPEGNO DI SPESA E CONTESTUALE LIQUIDAZIONE CONTRIBUTO ICDm 1^ TRIMESTRE 2018.";15-05-2018;3234;0;381;1;Spese correnti;4;Trasferimenti correnti;2;Trasferimenti correnti a Famiglie;2;Interventi assistenziali;999;Altri assegni e sussidi assistenziali;15-05-2018;
1125;4;0;"1.200,00";"4.800,00";OMESSO NOMINATIVO NEL RISPETTO DELLA NORMATIVA SULLA PROTEZIONE DATI PERSONALI; ;"IMPEGNATIVA DI CURA DOMICILIARE. ACCERTAMENTO ENTRATA, IMPEGNO DI SPESA E CONTESTUALE LIQUIDAZIONE CONTRIBUTO ICDm 1^ TRIMESTRE 2018.";15-05-2018;3234;0;381;1;Spese correnti;4;Trasferimenti correnti;2;Trasferimenti correnti a Famiglie;2;Interventi assistenziali;999;Altri assegni e sussidi assistenziali;15-05-2018;
1126;1;0;"1.439,67";"2.699,39";OMESSO NOMINATIVO NEL RISPETTO DELLA NORMATIVA SULLA PROTEZIONE DATI PERSONALI; ;"CONTRIBUTO REGIONALE A FAVORE DI NUCLEI FAMILIARI CON FIGLI RIMASTI ORFANI DI UN GENITORE (D.G.R. N. 1350/2017). ACCERTAMENTO ENTRATA, IMPEGNO DI SPESA E CONTESTUALE LIQUIDAZIONE.";15-05-2018;3247;0;382;1;Spese correnti;4;Trasferimenti correnti;2;Trasferimenti correnti a Famiglie;5;Altri trasferimenti a famiglie;999;Altri trasferimenti a famiglie n.a.c.;15-05-2018;
1126;2;0;"1.259,72";"2.699,39";OMESSO NOMINATIVO NEL RISPETTO DELLA NORMATIVA SULLA PROTEZIONE DATI PERSONALI; ;"CONTRIBUTO REGIONALE A FAVORE DI NUCLEI FAMILIARI CON FIGLI RIMASTI ORFANI DI UN GENITORE (D.G.R. N. 1350/2017). ACCERTAMENTO ENTRATA, IMPEGNO DI SPESA E CONTESTUALE LIQUIDAZIONE.";15-05-2018;3247;0;382;1;Spese correnti;4;Trasferimenti correnti;2;Trasferimenti correnti a Famiglie;5;Altri trasferimenti a famiglie;999;Altri trasferimenti a famiglie n.a.c.;15-05-2018;
1127;1;0;"123,76";"123,76";KUWAIT PETROLEUM ITALIA SPA;ZE3176A2E8;ACCONTO Fatt.n. PJ00125232  del 30/04/2018 FORNITURA CARBURANTI MESE APRILE 2018;15-05-2018;3182;0;252;1;Spese correnti;3;Acquisto di beni e servizi;1;Acquisto di beni;2;Altri beni di consumo;2;"Carburanti, combustibili e lubrificanti";15-05-2018;
1128;1;0;"849,32";"849,32";KUWAIT PETROLEUM ITALIA SPA;ZE3176A2E8;SALDO Fatt.n. PJ00125232  del 30/04/2018 FORNITURA CARBURANTI MESE APRILE 2018;15-05-2018;780;0;251;1;Spese correnti;3;Acquisto di beni e servizi;1;Acquisto di beni;2;Altri beni di consumo;2;"Carburanti, combustibili e lubrificanti";15-05-2018;
1129;1;0;"73,81";"73,81";TIPOLITOGRAFIA DI RONZANI ANDREA E OSCAR SNC;ZAB232A7B1;SALDO Fatt.n. 3/B_2018  del 21/04/2018 MANIFESTI XXV APRILE;15-05-2018;440;0;319;1;Spese correnti;3;Acquisto di beni e servizi;1;Acquisto di beni;2;Altri beni di consumo;9;Beni per attività di rappresentanza;15-05-2018;
1130;1;0;"8.294,48";"8.294,48";SO.RA.RIS. SPA;Z0A2322218;SALDO Fatt.n. 000057/PA  del 26/04/2018 BONIFICA AREA NOMADI VIA GALVANI;15-05-2018;4045;0;309;2;Spese in conto capitale;2;Investimenti fissi lordi e acquisto di terreni;1;Beni materiali;9;Beni immobili;2;Fabbricati ad uso commerciale;15-05-2018;
1131;1;0;"247,00";"247,00";S.E.P.E.L. SAS;Z7622F5416;SALDO Fatt.n. 2/1785  del 16/04/2018 RIVISTA STATO CIVILE;15-05-2018;900;0;298;1;Spese correnti;3;Acquisto di beni e servizi;1;Acquisto di beni;2;Altri beni di consumo;1;"Carta, cancelleria e stampati";15-05-2018;
1132;1;0;"30,50";"30,50";S.P.A.VI. SRL - SOCIETA' PROMOZIONE ARTIGIANATO VIC.;ZBB21549D9;SALDO Fatt.n. 10 PA  del 12/02/2018 PRATICHE BONUS GAS E ENERGIA ANNO 2017;16-05-2018;3146;0;792;1;Spese correnti;3;Acquisto di beni e servizi;2;Acquisto di servizi;99;Altri servizi;999;Altri servizi diversi n.a.c.;16-05-2018;
1133;1;0;"921,10";"921,10";GLOBAL POWER SERVICE SPA;6239603B46;SALDO Fatt.n. 2018-V5-98  del 02/05/2018 CANONE MENSILE MANUTENZIONE ORDINARIA  IMPIANTO IP;16-05-2018;3302;0;128;1;Spese correnti;3;Acquisto di beni e servizi;2;Acquisto di servizi;9;Manutenzione ordinaria e riparazioni;4;Manutenzione ordinaria e riparazioni di impianti e macchinari;16-05-2018;
1134;1;0;"7.683,02";"7.683,02";GLOBAL POWER SERVICE SPA;6239603B46;SALDO Fatt.n. 2018-V5-97  del 02/05/2018 CANONE RISPARMIO ENERGETICO CONV. IP - MAGGIO 2018;16-05-2018;3320;0;127;1;Spese correnti;3;Acquisto di beni e servizi;2;Acquisto di servizi;9;Manutenzione ordinaria e riparazioni;4;Manutenzione ordinaria e riparazioni di impianti e macchinari;16-05-2018;
1135;1;0;"494,10";"494,10";SPAGNOL GROUP SRL;ZAB1CE8556;SALDO Fatt.n. 15.010  del 24/04/2018 SALE;16-05-2018;3420;0;57;1;Spese correnti;3;Acquisto di beni e servizi;1;Acquisto di beni;2;Altri beni di consumo;999;Altri beni e materiali di consumo n.a.c.;16-05-2018;
1138;1;0;"600,00";"600,00";INTERAZIONE SRL; ;SALDO Fatt.n. 126/03  del 09/05/2018 ABBONAMENTO ALLA FORMAZIONE INTEGRATA IVA IRAP 2018;16-05-2018;150;0;242;1;Spese correnti;3;Acquisto di beni e servizi;2;Acquisto di servizi;4;Acquisto di servizi per formazione e addestramento del personale dell'ente;999;Acquisto di servizi per altre spese per formazione e addestramento n.a.c.;16-05-2018;
1139;1;0;"1.903,20";"1.903,20";D'ANGELO NICOLA;Z22156C655;SALDO Fatt.n. 0000003/PA  del 04/05/2018 PROGETTO RISTRUTTURAZIONE PALAZZO MARCONI;16-05-2018;4031;0;896;2;Spese in conto capitale;2;Investimenti fissi lordi e acquisto di terreni;1;Beni materiali;10;"Beni immobili di valore culturale, storico ed artistico";2;"Fabbricati ad uso commerciale di valore culturale, storico ed artistico";16-05-2018;
1140;1;0;"507,69";"507,69";MATERIALE EDILE DONA' SRL;Z5A21B8566;SALDO Fatt.n. 0000006  del 30/04/2018 MATERIALE EDILE VARIO;16-05-2018;3420;0;113;1;Spese correnti;3;Acquisto di beni e servizi;1;Acquisto di beni;2;Altri beni di consumo;999;Altri beni e materiali di consumo n.a.c.;16-05-2018;
1141;1;0;"2.862,22";"2.862,22";F.LLI URBANI SRL;ZB521BB575;SALDO Fatt.n. 18/PA  del 30/04/2018 TRASPORTO E SMALTIMENTO RIFIUTI;16-05-2018;2798;0;336;1;Spese correnti;3;Acquisto di beni e servizi;2;Acquisto di servizi;99;Altri servizi;999;Altri servizi diversi n.a.c.;16-05-2018;
1142;1;0;"250,00";"250,00";CIRCOLO SOCIO RICREATIVO "O.A.S.I."; ;LIQUIDAZIONE SALDO CONTRIBUTI ASSOCIAZIONI  VARIE;16-05-2018;451;0;473;1;Spese correnti;4;Trasferimenti correnti;4;Trasferimenti correnti a Istituzioni Sociali Private;1;Trasferimenti correnti a Istituzioni Sociali Private;1;Trasferimenti correnti a Istituzioni Sociali Private;16-05-2018;
1143;1;0;"200,00";"200,00";GRUPPO DONATORI DI SANGUE GRUPPO "N.BERTOLDO" - FIDAS; ;LIQUIDAZIONE SALDO CONTRIBUTI ASSOCIAZIONI  VARIE;16-05-2018;451;0;475;1;Spese correnti;4;Trasferimenti correnti;4;Trasferimenti correnti a Istituzioni Sociali Private;1;Trasferimenti correnti a Istituzioni Sociali Private;1;Trasferimenti correnti a Istituzioni Sociali Private;16-05-2018;
1144;1;0;"920,00";"920,00";ASSOCIAZIONE NAZIONALE ALPINI SEZ. SANDRIGO; ;LIQUIDAZIONE SALDO CONTRIBUTI ASSOCIAZIONI  VARIE;16-05-2018;451;0;866;1;Spese correnti;4;Trasferimenti correnti;4;Trasferimenti correnti a Istituzioni Sociali Private;1;Trasferimenti correnti a Istituzioni Sociali Private;1;Trasferimenti correnti a Istituzioni Sociali Private;16-05-2018;
1145;1;0;"1.300,00";"1.300,00";ASSOCIAZIONE NAZIONALE ALPINI SEZ. SANDRIGO; ;LIQUIDAZIONE SALDO CONTRIBUTI ASSOCIAZIONI  VARIE;16-05-2018;451;0;420;1;Spese correnti;4;Trasferimenti correnti;4;Trasferimenti correnti a Istituzioni Sociali Private;1;Trasferimenti correnti a Istituzioni Sociali Private;1;Trasferimenti correnti a Istituzioni Sociali Private;16-05-2018;
1146;1;0;"2.811,58";"2.811,58";SO.RA.RIS. SPA; ;ACCONTO Fatt.n. 000064/PA  del 30/04/2018 GESTIONE STAZIONE DI TRAVASO - TRASPORTO;16-05-2018;2691;0;117;1;Spese correnti;3;Acquisto di beni e servizi;2;Acquisto di servizi;15;Contratti di servizio pubblico;4;Contratti di servizio per la raccolta rifiuti;16-05-2018;
1147;1;0;"9.403,54";"9.403,54";SO.RA.RIS. SPA; ;SALDO Fatt.n. 000064/PA  del 30/04/2018 GESTIONE STAZIONE DI TRAVASO - TRASPORTO;16-05-2018;2695;0;118;1;Spese correnti;3;Acquisto di beni e servizi;2;Acquisto di servizi;15;Contratti di servizio pubblico;5;Contratti di servizio per il conferimento in discarica dei rifiuti;16-05-2018;
1148;1;0;"1.500,00";"1.500,00";ASSOCIAZIONE NAZIONALE ALPINI SEZIONE DI VICENZA; ;LIQUIDAZIONE CONTRIBUTO ALL'ASSOCIAZIONE NAZIONALE ALPINI SEZIONE DI VICENZA PER L'ATTIVITA' DI GESTIONE DI PARTE DELLE AREE A VERDE PUBBLICO SUL TERRITORIO COMUNALE . SALDO 2017;16-05-2018;2811;0;410;1;Spese correnti;4;Trasferimenti correnti;4;Trasferimenti correnti a Istituzioni Sociali Private;1;Trasferimenti correnti a Istituzioni Sociali Private;1;Trasferimenti correnti a Istituzioni Sociali Private;16-05-2018;
1149;1;0;"1.750,00";"1.750,00";ASSOCIAZIONE NAZIONALE ALPINI SEZIONE DI VICENZA;0000000000;LIQUIDAZIONE FATTURA 42/2017 PROTOCOLLO N.5577 DEL 19/04/2017 - DITTA MBIT INFORMATICA DI BORINA MIRCO.-;16-05-2018;2810;0;697;1;Spese correnti;4;Trasferimenti correnti;4;Trasferimenti correnti a Istituzioni Sociali Private;1;Trasferimenti correnti a Istituzioni Sociali Private;1;Trasferimenti correnti a Istituzioni Sociali Private;16-05-2018;
1150;1;0;"-6.200,00";"1.104,78";SAPA SRL;6401791D0B;SALDO Fatt.n. 060/2018  del 30/03/2018 TRASPORTO SCOLASTICO II TRIMESTRE;16-05-2018;1740;0;858;1;Spese correnti;3;Acquisto di beni e servizi;2;Acquisto di servizi;15;Contratti di servizio pubblico;2;Contratti di servizio di trasporto scolastico;16-05-2018;
1150;2;0;"7.304,78";"1.104,78";SAPA SRL;6401791D0B;SALDO Fatt.n. 082/2018  del 28/04/2018 SERVIZIO TRASPORTO ALUNNI;16-05-2018;1740;0;858;1;Spese correnti;3;Acquisto di beni e servizi;2;Acquisto di servizi;15;Contratti di servizio pubblico;2;Contratti di servizio di trasporto scolastico;16-05-2018;
1151;1;0;"186,90";"186,90";TELECOM ITALIA S.P.A. (GESTIONE FATTURE EX TIM ITALIA);ZF51399825;SALDO Fatt.n. 6820180405001578  del 20/04/2018 RIFATTURAZIONE FATTURA N0 8E00889946  BIM 5/2015  TEL 0444461601- LINEA ISDN;16-05-2018;259;3;283;1;Spese correnti;3;Acquisto di beni e servizi;2;Acquisto di servizi;5;Utenze e canoni;1;Telefonia fissa;16-05-2018;
1152;1;0;"3.440,80";"3.440,80";COOP.SOCIALE DI SOLIDARIETA' S.MARCO a r.l. O.N.L.U.S.;ZE021A05E0;SALDO Fatt.n. 36/01  del 31/03/2018 SERVIZIO CONDUZIONE ECOCENTRO VIA GALVANI;16-05-2018;2689;0;164;1;Spese correnti;3;Acquisto di beni e servizi;2;Acquisto di servizi;13;Servizi ausiliari per il funzionamento dell'ente;999;Altri servizi ausiliari n.a.c.;16-05-2018;
1153;1;0;"40,00";"40,00";REGIONE DEL VENETO; ;ACCONTO Fatt.n. 49  del 01/03/2018 (COD. INT. 361994) BUR N.10 DEL 26/01/2018: AVVISO DI SDEMANIALIZZAZIONE TRATTO LATERALE STRADA COMUNALE IN VIA FRATTE. - Fattura Nr. 49/2018;18-05-2018;761;0;256;1;Spese correnti;3;Acquisto di beni e servizi;2;Acquisto di servizi;99;Altri servizi;999;Altri servizi diversi n.a.c.;18-05-2018;
1154;1;0;"8,80";"8,80";REGIONE DEL VENETO; ;SALDO Fatt.n. 49  del 01/03/2018 (COD. INT. 361994) BUR N.10 DEL 26/01/2018: AVVISO DI SDEMANIALIZZAZIONE TRATTO LATERALE STRADA COMUNALE IN VIA FRATTE. - Fattura Nr. 49/2018;18-05-2018;761;0;256;1;Spese correnti;3;Acquisto di beni e servizi;2;Acquisto di servizi;99;Altri servizi;999;Altri servizi diversi n.a.c.;18-05-2018;
1221;1;0;"5.333,70";"5.333,70";AMMINISTRATORI COMUNALI E CONSIGLIERI; ;STIPENDI MESE DI: MAGGIO 18;18-05-2018;20;0;8;1;Spese correnti;3;Acquisto di beni e servizi;2;Acquisto di servizi;1;Organi e incarichi istituzionali dell'amministrazione;1;Organi istituzionali dell'amministrazione - Indennità;18-05-2018;
1222;1;0;"775,32";"775,32";COMPENENTI COMMISSIONI; ;STIPENDI MESE DI: MAGGIO 18;18-05-2018;22;0;781;1;Spese correnti;3;Acquisto di beni e servizi;2;Acquisto di servizi;1;Organi e incarichi istituzionali dell'amministrazione;1;Organi istituzionali dell'amministrazione - Indennità;18-05-2018;
1223;1;0;"10,60";"10,60";AMMINISTRATORI COMUNALI E CONSIGLIERI; ;STIPENDI MESE DI: MAGGIO 18;18-05-2018;40;0;342;1;Spese correnti;3;Acquisto di beni e servizi;2;Acquisto di servizi;2;"Organizzazione eventi, pubblicita` e servizi per trasferta";1;Rimborso per viaggio e trasloco;18-05-2018;
1227;1;0;"49,67";"49,67";BANCO POSTA - POSTE ITALIANE SPA;ZF421B5C8C;IMPEGNO DI SPESA PER LA GESTIONE DEI CONTI CORRENTI POSTALI PER L'ANNO 2018.;21-05-2018;1115;0;71;1;Spese correnti;3;Acquisto di beni e servizi;2;Acquisto di servizi;3;Aggi di riscossione;999;Altri aggi di riscossione n.a.c.;21-05-2018;
1230;1;0;"951,60";"951,60";MAURIZIO BONAZZI;ZA82325D59;ACCONTO Fatt.n. 11/01  del 26/04/2018 PATROCINIO TRIBUTARIO NEL RICORSO AVVERSO LA SENTENZA  725/17;21-05-2018;510;0;316;1;Spese correnti;3;Acquisto di beni e servizi;2;Acquisto di servizi;11;Prestazioni professionali e specialistiche;6;Patrocinio legale;21-05-2018;
1231;1;0;"30,00";"30,00";MAURIZIO BONAZZI;ZA82325D59;SALDO Fatt.n. 11/01  del 26/04/2018 contributo unificato escluso imponibile PATROCINIO TRIBUTARIO NEL RICORSO AVVERSO LA SENTENZA  725/17;21-05-2018;510;0;317;1;Spese correnti;3;Acquisto di beni e servizi;2;Acquisto di servizi;11;Prestazioni professionali e specialistiche;6;Patrocinio legale;21-05-2018;
1232;1;0;"139,04";"139,04";SCAVAZZON SILVIA; ;SALDO Fatt.n. 1/E  del 09/05/2018 COMPENSO ANNO 2017;21-05-2018;31;0;829;1;Spese correnti;3;Acquisto di beni e servizi;2;Acquisto di servizi;1;Organi e incarichi istituzionali dell'amministrazione;8;"Compensi agli organi istituzionali di revisione, di controllo ed altri incarichi istituzionali dell'amministrazione";21-05-2018;
1233;1;0;"10.674,98";"10.674,98";U.S.D. AZZURRA - SANDRIGO;Z152233D13;SALDO Fatt.n. 02/C  del 07/05/2018 CORRISPETTIVO GESTIONE  CAMPO CALCIO MESI DI APRILE MAGGIO GIUGNO;21-05-2018;2837;0;198;1;Spese correnti;3;Acquisto di beni e servizi;2;Acquisto di servizi;99;Altri servizi;999;Altri servizi diversi n.a.c.;21-05-2018;
1234;1;0;"63,01";"63,01";CIVIS SPA;Z5D21A9503;SALDO Fatt.n. V9/0001245  del 02/05/2018 SERVIZIO VIGILANZA P.ZZA MATTEOTTI 10;21-05-2018;370;0;73;1;Spese correnti;3;Acquisto di beni e servizi;2;Acquisto di servizi;13;Servizi ausiliari per il funzionamento dell'ente;1;"Servizi di sorveglianza, custodia e accoglienza";21-05-2018;
1235;1;0;"37,81";"37,81";CIVIS SPA;Z5D21A9503;SALDO Fatt.n. V9/0001246  del 02/05/2018 SERVIZIO ISPETTIVO VIA VOLTA;21-05-2018;370;0;73;1;Spese correnti;3;Acquisto di beni e servizi;2;Acquisto di servizi;13;Servizi ausiliari per il funzionamento dell'ente;1;"Servizi di sorveglianza, custodia e accoglienza";21-05-2018;
1236;1;0;"109,80";"109,80";SOLUZIONE UFFICIO S.R.L.;ZF82286338;SALDO Fatt.n. 3773/PA/2018  del 07/04/2018 QUOTA FISSA PAGINE NERO;21-05-2018;768;0;269;1;Spese correnti;3;Acquisto di beni e servizi;2;Acquisto di servizi;7;Utilizzo di beni di terzi;8;Noleggi di impianti e macchinari;21-05-2018;
1237;1;0;"98,82";"98,82";SOLUZIONE UFFICIO S.R.L.;ZB31F9A697;SALDO Fatt.n. 3776/PA/2018  del 07/04/2018 CANONE NOLEGGIO 1 APRILE 30 GIUGNO 2018;21-05-2018;340;0;521;1;Spese correnti;3;Acquisto di beni e servizi;2;Acquisto di servizi;19;Servizi informatici e di telecomunicazioni;5;Servizi per i sistemi e relativa manutenzione;21-05-2018;
1238;1;0;"98,82";"98,82";SOLUZIONE UFFICIO S.R.L.;ZC71E9FEEC;SALDO Fatt.n. 3775/PA/2018  del 07/04/2018 CANONE NOLEGGIO 1 APRILE 30 GIUGNO 2018;21-05-2018;340;0;387;1;Spese correnti;3;Acquisto di beni e servizi;2;Acquisto di servizi;19;Servizi informatici e di telecomunicazioni;5;Servizi per i sistemi e relativa manutenzione;21-05-2018;
1239;1;0;"98,82";"98,82";SOLUZIONE UFFICIO S.R.L.;Z592025A78;SALDO Fatt.n. 3774/PA/2018  del 07/04/2018 CANONE NOLEGGIO 1 APRILE 30 GIUGNO 2018;21-05-2018;340;0;608;1;Spese correnti;3;Acquisto di beni e servizi;2;Acquisto di servizi;19;Servizi informatici e di telecomunicazioni;5;Servizi per i sistemi e relativa manutenzione;21-05-2018;
1240;1;0;"587,65";"587,65";MINISTERO DELL'INTERNO; ;COMUNE DI SANDRIGO - CORRISPETTIVO PER IL RILASCIO DI N. 35 CIE PERIODO DAL 1 AL 15 MAGGIO;21-05-2018;901;0;147;1;Spese correnti;4;Trasferimenti correnti;1;Trasferimenti correnti a Amministrazioni Pubbliche;1;Trasferimenti correnti a Amministrazioni Centrali;1;Trasferimenti correnti a Ministeri;21-05-2018;
1241;1;0;"8.224,19";"8.224,19";AZIENDA ULSS N. 8 BERICA; ;SALDO Fatt.n. K   201800000327  del 09/05/2018 FONDO 30% SPTM ANNO 2018 FONDO 30% SPTM ANNO 2018;21-05-2018;3251;0;417;1;Spese correnti;4;Trasferimenti correnti;1;Trasferimenti correnti a Amministrazioni Pubbliche;2;Trasferimenti correnti a Amministrazioni Locali;21;Trasferimenti correnti a Aziende sanitarie locali  a titolo di finanziamento di livelli di assistenza superiori ai livelli essenziali di assistenza (LEA);21-05-2018;
1242;1;0;"1.435,66";"1.435,66";AZIENDA ULSS N. 8 BERICA; ;SALDO Fatt.n. K   201800000291  del 09/05/2018 SALDO 10% SPTM ANNO 2017 SALDO 10% SPTM ANNO 2017;21-05-2018;3251;0;417;1;Spese correnti;4;Trasferimenti correnti;1;Trasferimenti correnti a Amministrazioni Pubbliche;2;Trasferimenti correnti a Amministrazioni Locali;21;Trasferimenti correnti a Aziende sanitarie locali  a titolo di finanziamento di livelli di assistenza superiori ai livelli essenziali di assistenza (LEA);21-05-2018;
1243;1;0;"2.340,00";"2.340,00";SERENISSIMA RISTORAZIONE S.P.A.;6996960A0B;SALDO Fatt.n. 02331/4  del 30/04/2018 Mensa: SCUOLA INFANZIA CAPOLUGO;21-05-2018;1425;0;603;1;Spese correnti;3;Acquisto di beni e servizi;2;Acquisto di servizi;14;Servizi di ristorazione;999;Altri servizi di ristorazione;21-05-2018;
1244;1;0;"765,60";"765,60";IPAB di VICENZA; ;SALDO Fatt.n. 68/E  del 30/04/2018 RETTE OSPITI CASA DI RIPOSO;21-05-2018;3201;0;152;1;Spese correnti;3;Acquisto di beni e servizi;2;Acquisto di servizi;15;Contratti di servizio pubblico;8;Contratti di servizio di assistenza sociale residenziale e semiresidenziale;21-05-2018;
1245;1;0;"404,40";"404,40";CASA DI RIPOSO DI DUEVILLE; ;SALDO Fatt.n. 38/VH  del 30/04/2018 RETTE OSPITI CASA RIPOSO MESE APRILE 2018;21-05-2018;3201;0;154;1;Spese correnti;3;Acquisto di beni e servizi;2;Acquisto di servizi;15;Contratti di servizio pubblico;8;Contratti di servizio di assistenza sociale residenziale e semiresidenziale;21-05-2018;
1246;1;0;"1.658,00";"1.658,00";I.P.A.B. SUOR DIODATA BERTOLO; ;SALDO Fatt.n. 76/E  del 07/05/2018 INTEGRAZIONE RETTE OSPITI CASA DI RIPOSO;21-05-2018;3201;0;151;1;Spese correnti;3;Acquisto di beni e servizi;2;Acquisto di servizi;15;Contratti di servizio pubblico;8;Contratti di servizio di assistenza sociale residenziale e semiresidenziale;21-05-2018;
1247;1;0;"458,54";"458,54";I.P.A.B. SUOR DIODATA BERTOLO; ;SALDO Fatt.n. 78/E  del 14/05/2018 RETTE OSPITI MESE APRILE 2018;21-05-2018;3201;0;151;1;Spese correnti;3;Acquisto di beni e servizi;2;Acquisto di servizi;15;Contratti di servizio pubblico;8;Contratti di servizio di assistenza sociale residenziale e semiresidenziale;21-05-2018;
1248;1;0;"2.211,18";"2.211,18";CASSA DI RISPARMIO DEL VENETO SPA; ;PERMESSI RETRIBUITI FRUITI DAL SINDACO STIVAN GIULIANO PER L'ESERCIZIO DI FUNZIONI PUBBLICHE  MESE DI GENNAIO 2018;21-05-2018;21;0;62;1;Spese correnti;3;Acquisto di beni e servizi;2;Acquisto di servizi;1;Organi e incarichi istituzionali dell'amministrazione;2;Organi istituzionali dell'amministrazione - Rimborsi;21-05-2018;
1249;1;0;"2.161,29";"2.161,29";AMMINISTRAZIONE PROVINCIALE DI VICENZA; ;PROGETTO DI INSERIMENTO LAVORATIVO DI CITTADINI SVANTAGGIATI DEL TERRITORIO VICENTINO - 4^ EDIZIONE. LIQUIDAZIONE CO-FINANZIAMENTO ALLA PROVINCIA DI VICENZA.;21-05-2018;3249;0;743;1;Spese correnti;4;Trasferimenti correnti;1;Trasferimenti correnti a Amministrazioni Pubbliche;2;Trasferimenti correnti a Amministrazioni Locali;2;Trasferimenti correnti a Province;21-05-2018;
1250;1;0;"5,81";"5,81";AGENZIA DELLE ENTRATE - RISCOSSIONE; ;SPESE RISCOSSIONE CONCESSIONARIO RUOLI ADDIZIONALE COM.LE IRPEF EMESSI DA AGENZIA ENTRATE;21-05-2018;1115;0;422;1;Spese correnti;3;Acquisto di beni e servizi;2;Acquisto di servizi;3;Aggi di riscossione;999;Altri aggi di riscossione n.a.c.;21-05-2018;
1251;1;0;"33,14";"33,14";POSTE ITALIANE SPA;ZF421B5C8C;IMPEGNO DI SPESA PER LA GESTIONE DEI CONTI CORRENTI POSTALI PER L'ANNO 2018.;21-05-2018;1115;0;71;1;Spese correnti;3;Acquisto di beni e servizi;2;Acquisto di servizi;3;Aggi di riscossione;999;Altri aggi di riscossione n.a.c.;21-05-2018;
1252;1;0;"437,23";"437,23";AGENZIA DELLE ENTRATE - RISCOSSIONE; ;SPESE RISCOSSIONE RUOLO COATTIVO ORDINANZA-INGIUNZIONE ANNO 2009;22-05-2018;1115;0;898;1;Spese correnti;3;Acquisto di beni e servizi;2;Acquisto di servizi;3;Aggi di riscossione;999;Altri aggi di riscossione n.a.c.;22-05-2018;
1253;1;0;"9,87";"9,87";AGENZIA DELLE ENTRATE - RISCOSSIONE; ;RIDUZIONE ACCERTAMENTO - RUOLO SVUOTAMENTI ANNO 2010- E IMPEGNO DI SPESA A FAVORE DEL CONCESSIONARIO.;22-05-2018;1115;0;596;1;Spese correnti;3;Acquisto di beni e servizi;2;Acquisto di servizi;3;Aggi di riscossione;999;Altri aggi di riscossione n.a.c.;22-05-2018;
1254;1;0;"11,07";"11,07";AGENZIA DELLE ENTRATE - RISCOSSIONE; ;APPROVAZIONE RUOLO TARIFFA RIFIUTI SVUOTAMENTI 2009 E PARTE FISSA 2010 - COMPENSO CONCESSIONARIO;22-05-2018;1115;0;918;1;Spese correnti;3;Acquisto di beni e servizi;2;Acquisto di servizi;3;Aggi di riscossione;999;Altri aggi di riscossione n.a.c.;22-05-2018;
1255;1;0;"9,31";"9,31";AGENZIA DELLE ENTRATE - RISCOSSIONE; ;APPROVAZIONE RUOLO PARTE FISSA TARIFFA RIFIUTI ANNO 2012;22-05-2018;1115;0;786;1;Spese correnti;3;Acquisto di beni e servizi;2;Acquisto di servizi;3;Aggi di riscossione;999;Altri aggi di riscossione n.a.c.;22-05-2018;
1256;1;0;"1,77";"1,77";AGENZIA DELLE ENTRATE - RISCOSSIONE; ;RIDUZIONE ACCERTAMENTO RELATIVO AL  RUOLO TARIFFA SMALTIMENTO RIFIUTI - SVUOTAMENTI ANNO 2011;22-05-2018;1115;0;804;1;Spese correnti;3;Acquisto di beni e servizi;2;Acquisto di servizi;3;Aggi di riscossione;999;Altri aggi di riscossione n.a.c.;22-05-2018;
1257;1;0;"3,84";"3,84";AGENZIA DELLE ENTRATE - RISCOSSIONE; ;RIDUZIONE ACCERTAMENTO RELATIVO AL RUOLO TARIFFA SMALTIMENTO RIFIUTI-SVUOTAMENTI ANNO 2012;22-05-2018;1115;0;460;1;Spese correnti;3;Acquisto di beni e servizi;2;Acquisto di servizi;3;Aggi di riscossione;999;Altri aggi di riscossione n.a.c.;22-05-2018;
1258;1;0;"31,15";"31,15";AGENZIA DELLE ENTRATE - RISCOSSIONE; ;APPROVAZIONE RUOLO TARIFFA RIFIUTI SVUOTAMENTI 2009 E PARTE FISSA 2010 - COMPENSO CONCESSIONARIO;22-05-2018;1115;0;918;1;Spese correnti;3;Acquisto di beni e servizi;2;Acquisto di servizi;3;Aggi di riscossione;999;Altri aggi di riscossione n.a.c.;22-05-2018;
1259;1;0;"14,03";"14,03";AGENZIA DELLE ENTRATE - RISCOSSIONE; ;APPROVAZIONE RUOLO PARTE FISSA TARIFFA RIFIUTI ANNO 2012;22-05-2018;1115;0;786;1;Spese correnti;3;Acquisto di beni e servizi;2;Acquisto di servizi;3;Aggi di riscossione;999;Altri aggi di riscossione n.a.c.;22-05-2018;
1260;1;0;"62,33";"62,33";AGENZIA DELLE ENTRATE - RISCOSSIONE; ;APPROVAZIONE RUOLO TARIFFA RIFIUTI SVUOTAMENTI 2009 E PARTE FISSA 2010 - COMPENSO CONCESSIONARIO;23-05-2018;1115;0;918;1;Spese correnti;3;Acquisto di beni e servizi;2;Acquisto di servizi;3;Aggi di riscossione;999;Altri aggi di riscossione n.a.c.;23-05-2018;
1261;1;0;"28,07";"28,07";AGENZIA DELLE ENTRATE - RISCOSSIONE; ;APPROVAZIONE RUOLO PARTE FISSA TARIFFA RIFIUTI ANNO 2012;23-05-2018;1115;0;786;1;Spese correnti;3;Acquisto di beni e servizi;2;Acquisto di servizi;3;Aggi di riscossione;999;Altri aggi di riscossione n.a.c.;23-05-2018;
1262;1;0;"1,14";"1,14";AGENZIA DELLE ENTRATE - RISCOSSIONE; ;IMPEGNO PER COMPENSO RISCOSSIONE PARTE VARIABILE TARSU 2002;23-05-2018;1115;0;2806;1;Spese correnti;3;Acquisto di beni e servizi;2;Acquisto di servizi;3;Aggi di riscossione;999;Altri aggi di riscossione n.a.c.;23-05-2018;
1263;1;0;"2,22";"2,22";AGENZIA DELLE ENTRATE - RISCOSSIONE; ;IMPEGNO PER COMPENSO RISCOSSIONE PARTE VARIABILE TARSU 2002;23-05-2018;1115;0;2806;1;Spese correnti;3;Acquisto di beni e servizi;2;Acquisto di servizi;3;Aggi di riscossione;999;Altri aggi di riscossione n.a.c.;23-05-2018;
1264;1;0;"3,42";"3,42";AGENZIA DELLE ENTRATE - RISCOSSIONE; ;APPROVAZIONE RUOLO TARIFFA RIFIUTI SVUOTAMENTI 2009 E PARTE FISSA 2010 - COMPENSO CONCESSIONARIO;23-05-2018;1115;0;918;1;Spese correnti;3;Acquisto di beni e servizi;2;Acquisto di servizi;3;Aggi di riscossione;999;Altri aggi di riscossione n.a.c.;23-05-2018;
1265;1;0;"0,86";"0,86";AGENZIA DELLE ENTRATE - RISCOSSIONE; ;RIDUZIONE ACCERTAMENTO - RUOLO SVUOTAMENTI ANNO 2010- E IMPEGNO DI SPESA A FAVORE DEL CONCESSIONARIO.;23-05-2018;1115;0;596;1;Spese correnti;3;Acquisto di beni e servizi;2;Acquisto di servizi;3;Aggi di riscossione;999;Altri aggi di riscossione n.a.c.;23-05-2018;
1266;1;0;"24,46";"24,46";AGENZIA DELLE ENTRATE - RISCOSSIONE; ;APPROVAZIONE PARTE FISSA RUOLO TARIFFA RIFIUTI ANNO 2011;23-05-2018;1115;0;756;1;Spese correnti;3;Acquisto di beni e servizi;2;Acquisto di servizi;3;Aggi di riscossione;999;Altri aggi di riscossione n.a.c.;23-05-2018;
1267;1;0;"25,53";"25,53";AGENZIA DELLE ENTRATE - RISCOSSIONE; ;APPROVAZIONE RUOLO PARTE FISSA TARIFFA RIFIUTI ANNO 2012;23-05-2018;1115;0;786;1;Spese correnti;3;Acquisto di beni e servizi;2;Acquisto di servizi;3;Aggi di riscossione;999;Altri aggi di riscossione n.a.c.;23-05-2018;
1268;1;0;"10,54";"10,54";AGENZIA DELLE ENTRATE - RISCOSSIONE; ;RIDUZIONE ACCERTAMENTO RELATIVO AL  RUOLO TARIFFA SMALTIMENTO RIFIUTI - SVUOTAMENTI ANNO 2011;23-05-2018;1115;0;804;1;Spese correnti;3;Acquisto di beni e servizi;2;Acquisto di servizi;3;Aggi di riscossione;999;Altri aggi di riscossione n.a.c.;23-05-2018;
1269;1;0;"12,99";"12,99";AGENZIA DELLE ENTRATE - RISCOSSIONE; ;RIDUZIONE ACCERTAMENTO RELATIVO AL RUOLO TARIFFA SMALTIMENTO RIFIUTI-SVUOTAMENTI ANNO 2012;23-05-2018;1115;0;460;1;Spese correnti;3;Acquisto di beni e servizi;2;Acquisto di servizi;3;Aggi di riscossione;999;Altri aggi di riscossione n.a.c.;23-05-2018;
1270;1;0;"2,36";"2,36";AGENZIA DELLE ENTRATE - RISCOSSIONE; ;REGOLAIZZAZIONE SPESE RISCOS. RUOLO SUPPLETTIVO TARSU;23-05-2018;1115;0;4148;1;Spese correnti;3;Acquisto di beni e servizi;2;Acquisto di servizi;3;Aggi di riscossione;999;Altri aggi di riscossione n.a.c.;23-05-2018;
1271;1;0;"0,79";"0,79";AGENZIA DELLE ENTRATE - RISCOSSIONE; ;APPROVAZIONE RUOLO SUPPLETTIVO TARIFFA SMALTIMENTO RIFIUTI. SVUOTAMENTI 2008. - SPESE PER COMPENSO CONCESSIONARIO;23-05-2018;1115;0;436;1;Spese correnti;3;Acquisto di beni e servizi;2;Acquisto di servizi;3;Aggi di riscossione;999;Altri aggi di riscossione n.a.c.;23-05-2018;
1272;1;0;"1,47";"1,47";AGENZIA DELLE ENTRATE - RISCOSSIONE; ;APPROVAZIONE RUOLO TARIFFA RIFIUTI SVUOTAMENTI 2009 E PARTE FISSA 2010 - COMPENSO CONCESSIONARIO;23-05-2018;1115;0;918;1;Spese correnti;3;Acquisto di beni e servizi;2;Acquisto di servizi;3;Aggi di riscossione;999;Altri aggi di riscossione n.a.c.;23-05-2018;
1273;1;0;"0,51";"0,51";AGENZIA DELLE ENTRATE - RISCOSSIONE; ;RIDUZIONE ACCERTAMENTO - RUOLO SVUOTAMENTI ANNO 2010- E IMPEGNO DI SPESA A FAVORE DEL CONCESSIONARIO.;23-05-2018;1115;0;596;1;Spese correnti;3;Acquisto di beni e servizi;2;Acquisto di servizi;3;Aggi di riscossione;999;Altri aggi di riscossione n.a.c.;23-05-2018;
1274;1;0;"0,85";"0,85";AGENZIA DELLE ENTRATE - RISCOSSIONE; ;APPROVAZIONE PARTE FISSA RUOLO TARIFFA RIFIUTI ANNO 2011;23-05-2018;1115;0;756;1;Spese correnti;3;Acquisto di beni e servizi;2;Acquisto di servizi;3;Aggi di riscossione;999;Altri aggi di riscossione n.a.c.;23-05-2018;
1275;1;0;"0,65";"0,65";AGENZIA DELLE ENTRATE - RISCOSSIONE; ;RIDUZIONE ACCERTAMENTO RELATIVO AL  RUOLO TARIFFA SMALTIMENTO RIFIUTI - SVUOTAMENTI ANNO 2011;23-05-2018;1115;0;804;1;Spese correnti;3;Acquisto di beni e servizi;2;Acquisto di servizi;3;Aggi di riscossione;999;Altri aggi di riscossione n.a.c.;23-05-2018;
1276;1;0;"0,90";"0,90";AGENZIA DELLE ENTRATE - RISCOSSIONE; ;RIDUZIONE ACCERTAMENTO RELATIVO AL RUOLO TARIFFA SMALTIMENTO RIFIUTI-SVUOTAMENTI ANNO 2012;23-05-2018;1115;0;460;1;Spese correnti;3;Acquisto di beni e servizi;2;Acquisto di servizi;3;Aggi di riscossione;999;Altri aggi di riscossione n.a.c.;23-05-2018;
1277;1;0;"3,32";"3,32";AGENZIA DELLE ENTRATE - RISCOSSIONE; ;APPROVAZIONE RUOLO COATTIVO ICI;23-05-2018;1115;0;324;1;Spese correnti;3;Acquisto di beni e servizi;2;Acquisto di servizi;3;Aggi di riscossione;999;Altri aggi di riscossione n.a.c.;23-05-2018;
1278;1;0;"0,90";"0,90";AGENZIA DELLE ENTRATE - RISCOSSIONE; ;APPROVAZIONE RUOLO COATTIVO ORDINANZE-INGIUNZIONI ANNI 2004-2006 E 2008;23-05-2018;1115;0;472;1;Spese correnti;3;Acquisto di beni e servizi;2;Acquisto di servizi;3;Aggi di riscossione;999;Altri aggi di riscossione n.a.c.;23-05-2018;
1279;1;0;"2,37";"2,37";AGENZIA DELLE ENTRATE - RISCOSSIONE; ;IMPEGNO PER COMPENSO RISCOSSIONE PARTE VARIABILE TARSU 2002;23-05-2018;1115;0;2806;1;Spese correnti;3;Acquisto di beni e servizi;2;Acquisto di servizi;3;Aggi di riscossione;999;Altri aggi di riscossione n.a.c.;23-05-2018;
1280;1;0;"1,87";"1,87";AGENZIA DELLE ENTRATE - RISCOSSIONE; ;APPROVAZIONE RUOLO COATTIVO ORDINANZE-INGIUNZIONI ANNI 2004-2005 E 2006 - IMPEGNO PER SPESE DI RISCOSSIONE;23-05-2018;1115;0;611;1;Spese correnti;3;Acquisto di beni e servizi;2;Acquisto di servizi;3;Aggi di riscossione;999;Altri aggi di riscossione n.a.c.;23-05-2018;
1281;1;0;"1,45";"1,45";AGENZIA DELLE ENTRATE - RISCOSSIONE; ;APPROVAZIONE RUOLO COATTIVO ORDINANZE-INGIUNZIONI ANNI 2004-2005 E 2006 - IMPEGNO PER SPESE DI RISCOSSIONE;23-05-2018;1115;0;611;1;Spese correnti;3;Acquisto di beni e servizi;2;Acquisto di servizi;3;Aggi di riscossione;999;Altri aggi di riscossione n.a.c.;23-05-2018;
1282;1;0;"1,32";"1,32";AGENZIA DELLE ENTRATE - RISCOSSIONE; ;APPROVAZIONE RUOLO COATTIVO ORDINANZE-INGIUNZIONI ANNI 2004-2005 E 2006 - IMPEGNO PER SPESE DI RISCOSSIONE;23-05-2018;1115;0;611;1;Spese correnti;3;Acquisto di beni e servizi;2;Acquisto di servizi;3;Aggi di riscossione;999;Altri aggi di riscossione n.a.c.;23-05-2018;
1283;1;0;"2,94";"2,94";AGENZIA DELLE ENTRATE - RISCOSSIONE; ;APPROVAZIONE RUOLO COATTIVO ORDINANZE-INGIUNZIONI ANNI 2004-2005 E 2006 - IMPEGNO PER SPESE DI RISCOSSIONE;23-05-2018;1115;0;611;1;Spese correnti;3;Acquisto di beni e servizi;2;Acquisto di servizi;3;Aggi di riscossione;999;Altri aggi di riscossione n.a.c.;23-05-2018;
1284;1;0;"2,32";"2,32";AGENZIA DELLE ENTRATE - RISCOSSIONE; ;APPROVAZIONE RUOLO COATTIVO ORDINANZE-INGIUNZIONI ANNI 2004-2005 E 2006 - IMPEGNO PER SPESE DI RISCOSSIONE;23-05-2018;1115;0;611;1;Spese correnti;3;Acquisto di beni e servizi;2;Acquisto di servizi;3;Aggi di riscossione;999;Altri aggi di riscossione n.a.c.;23-05-2018;
1285;1;0;"3,59";"3,59";AGENZIA DELLE ENTRATE - RISCOSSIONE; ;APPROVAZIONE RUOLO COATTIVO ORDINANZE-INGIUNZIONI ANNI 2004-2005 E 2006 - IMPEGNO PER SPESE DI RISCOSSIONE;23-05-2018;1115;0;611;1;Spese correnti;3;Acquisto di beni e servizi;2;Acquisto di servizi;3;Aggi di riscossione;999;Altri aggi di riscossione n.a.c.;23-05-2018;
1286;1;0;"3,61";"3,61";AGENZIA DELLE ENTRATE - RISCOSSIONE; ;APPROVAZIONE RUOLO COATTIVO ORDINANZE-INGIUNZIONI ANNI 2004-2005 E 2006 - IMPEGNO PER SPESE DI RISCOSSIONE;23-05-2018;1115;0;611;1;Spese correnti;3;Acquisto di beni e servizi;2;Acquisto di servizi;3;Aggi di riscossione;999;Altri aggi di riscossione n.a.c.;23-05-2018;
1287;1;0;"3,05";"3,05";AGENZIA DELLE ENTRATE - RISCOSSIONE; ;APPROVAZIONE RUOLO COATTIVO ORDINANZE-INGIUNZIONI ANNI 2004-2005 E 2006 - IMPEGNO PER SPESE DI RISCOSSIONE;23-05-2018;1115;0;611;1;Spese correnti;3;Acquisto di beni e servizi;2;Acquisto di servizi;3;Aggi di riscossione;999;Altri aggi di riscossione n.a.c.;23-05-2018;
1288;1;0;"1,53";"1,53";AGENZIA DELLE ENTRATE - RISCOSSIONE; ;APPROVAZIONE RUOLO COATTIVO ORDINANZE-INGIUNZIONI ANNI 2004-2005 E 2006 - IMPEGNO PER SPESE DI RISCOSSIONE;23-05-2018;1115;0;611;1;Spese correnti;3;Acquisto di beni e servizi;2;Acquisto di servizi;3;Aggi di riscossione;999;Altri aggi di riscossione n.a.c.;23-05-2018;
1289;1;0;"3,33";"3,33";AGENZIA DELLE ENTRATE - RISCOSSIONE; ;SPESA PER RISCOSSIONE RUOLO COATTIVO ICI VARI ANNI (N. 4046/2008 - 5056/2008 - 5039/2008);23-05-2018;1115;0;659;1;Spese correnti;3;Acquisto di beni e servizi;2;Acquisto di servizi;3;Aggi di riscossione;999;Altri aggi di riscossione n.a.c.;23-05-2018;
1290;1;0;"2,65";"2,65";AGENZIA DELLE ENTRATE - RISCOSSIONE; ;APPROVAZIONE RUOLO COATTIVO ORDINANZE-INGIUNZIONI ANNI 2004-2005 E 2006 - IMPEGNO PER SPESE DI RISCOSSIONE;23-05-2018;1115;0;611;1;Spese correnti;3;Acquisto di beni e servizi;2;Acquisto di servizi;3;Aggi di riscossione;999;Altri aggi di riscossione n.a.c.;23-05-2018;
1291;1;0;"1,07";"1,07";AGENZIA DELLE ENTRATE - RISCOSSIONE; ;APPROVAZIONE RUOLO SUPPLETTIVO TARIFFA SMALTIMENTO RIFIUTI. SVUOTAMENTI 2008. - SPESE PER COMPENSO CONCESSIONARIO;23-05-2018;1115;0;436;1;Spese correnti;3;Acquisto di beni e servizi;2;Acquisto di servizi;3;Aggi di riscossione;999;Altri aggi di riscossione n.a.c.;23-05-2018;
1293;1;0;"88,70";"88,70";GLOBAL POWER SPA;622385037F;(SOS. 970) - ACCONTO Fatt.n. V0/56026  del 02/05/2018 Fattura Energia Elettrica - ecocentro;28-05-2018;2685;0;60;1;Spese correnti;3;Acquisto di beni e servizi;2;Acquisto di servizi;5;Utenze e canoni;4;Energia elettrica;28-05-2018;
1294;1;0;"170,52";"788,20";GLOBAL POWER SPA;622385037F;(SOS. 972/P) - ACCONTO Fatt.n. V0/56029  del 02/05/2018 CONSUMI ENERGIA ELETTRICA MASEDI APRILE 2018 - SCUOLE ANCIGNAN0;28-05-2018;259;0;51;1;Spese correnti;3;Acquisto di beni e servizi;2;Acquisto di servizi;5;Utenze e canoni;4;Energia elettrica;28-05-2018;
1294;2;0;"617,68";"788,20";GLOBAL POWER SPA;622385037F;(SOS. 973/P) - ACCONTO Fatt.n. V0/56030  del 02/05/2018 CONSUMI ENERGIA ELETTRICA MESE DI APRILE 2018 - LAMPEGGIATORE;28-05-2018;259;0;51;1;Spese correnti;3;Acquisto di beni e servizi;2;Acquisto di servizi;5;Utenze e canoni;4;Energia elettrica;28-05-2018;
1295;1;0;"82,30";"467,68";GLOBAL POWER SPA;622385037F;(SOS. 969) - ACCONTO Fatt.n. V0/56027  del 02/05/2018 CONSUMI ENERGIA ELETTRICA MESE DI APRILE - ECOCENTRO;28-05-2018;938;0;52;1;Spese correnti;3;Acquisto di beni e servizi;2;Acquisto di servizi;5;Utenze e canoni;4;Energia elettrica;28-05-2018;
1295;2;0;"385,38";"467,68";GLOBAL POWER SPA;622385037F;(SOS. 973/P) - ACCONTO Fatt.n. V0/56030  del 02/05/2018 CONSUMI ENERGIA ELETTRICA MESE DI APRILE 2018 - LAMPEGGIATORE;28-05-2018;938;0;52;1;Spese correnti;3;Acquisto di beni e servizi;2;Acquisto di servizi;5;Utenze e canoni;4;Energia elettrica;28-05-2018;
1296;1;0;"160,53";"348,93";GLOBAL POWER SPA;622385037F;(SOS. 973/P) - ACCONTO Fatt.n. V0/56030  del 02/05/2018 CONSUMI ENERGIA ELETTRICA MESE DI APRILE 2018 - LAMPEGGIATORE;28-05-2018;1432;0;53;1;Spese correnti;3;Acquisto di beni e servizi;2;Acquisto di servizi;5;Utenze e canoni;4;Energia elettrica;28-05-2018;
1296;2;0;"188,40";"348,93";GLOBAL POWER SPA;622385037F;(SOS. 972/P) - ACCONTO Fatt.n. V0/56029  del 02/05/2018 CONSUMI ENERGIA ELETTRICA MASEDI APRILE 2018 - SCUOLE ANCIGNAN0;28-05-2018;1432;0;53;1;Spese correnti;3;Acquisto di beni e servizi;2;Acquisto di servizi;5;Utenze e canoni;4;Energia elettrica;28-05-2018;
1297;1;0;"853,84";"853,84";GLOBAL POWER SPA;622385037F;(SOS. 972/P) - ACCONTO Fatt.n. V0/56029  del 02/05/2018 CONSUMI ENERGIA ELETTRICA MASEDI APRILE 2018 - SCUOLE ANCIGNAN0;28-05-2018;1573;0;54;1;Spese correnti;3;Acquisto di beni e servizi;2;Acquisto di servizi;5;Utenze e canoni;4;Energia elettrica;28-05-2018;
1298;1;0;"447,06";"1.222,59";GLOBAL POWER SPA;622385037F;(SOS. 973/P) - ACCONTO Fatt.n. V0/56030  del 02/05/2018 CONSUMI ENERGIA ELETTRICA MESE DI APRILE 2018 - LAMPEGGIATORE;28-05-2018;1651;1;55;1;Spese correnti;3;Acquisto di beni e servizi;2;Acquisto di servizi;5;Utenze e canoni;4;Energia elettrica;28-05-2018;
1298;2;0;"775,53";"1.222,59";GLOBAL POWER SPA;622385037F;(SOS. 972/P) - ACCONTO Fatt.n. V0/56029  del 02/05/2018 CONSUMI ENERGIA ELETTRICA MASEDI APRILE 2018 - SCUOLE ANCIGNAN0;28-05-2018;1651;1;55;1;Spese correnti;3;Acquisto di beni e servizi;2;Acquisto di servizi;5;Utenze e canoni;4;Energia elettrica;28-05-2018;
1299;1;0;"713,97";"713,97";GLOBAL POWER SPA;622385037F;(SOS. 973/P) - ACCONTO Fatt.n. V0/56030  del 02/05/2018 CONSUMI ENERGIA ELETTRICA MESE DI APRILE 2018 - LAMPEGGIATORE;28-05-2018;1810;0;56;1;Spese correnti;3;Acquisto di beni e servizi;2;Acquisto di servizi;5;Utenze e canoni;4;Energia elettrica;28-05-2018;
1300;1;0;"191,29";"191,29";GLOBAL POWER SPA;622385037F;(SOS. 971) - ACCONTO Fatt.n. V0/56031  del 02/05/2018 CONSUMO ENERGIE ELETTRICA MESE DI APRILE 2018 - CIMITERI;28-05-2018;2240;0;57;1;Spese correnti;3;Acquisto di beni e servizi;2;Acquisto di servizi;5;Utenze e canoni;4;Energia elettrica;28-05-2018;
1301;1;0;"122,70";"122,70";GLOBAL POWER SPA;622385037F;(SOS. 973/P) - ACCONTO Fatt.n. V0/56030  del 02/05/2018 CONSUMI ENERGIA ELETTRICA MESE DI APRILE 2018 - LAMPEGGIATORE;28-05-2018;3147;0;58;1;Spese correnti;3;Acquisto di beni e servizi;2;Acquisto di servizi;5;Utenze e canoni;4;Energia elettrica;28-05-2018;
1302;1;0;"74,40";"3.763,42";GLOBAL POWER SPA;622385037F;(SOS. 973/P) - ACCONTO Fatt.n. V0/56030  del 02/05/2018 CONSUMI ENERGIA ELETTRICA MESE DI APRILE 2018 - LAMPEGGIATORE;28-05-2018;3303;0;59;1;Spese correnti;3;Acquisto di beni e servizi;2;Acquisto di servizi;5;Utenze e canoni;4;Energia elettrica;28-05-2018;
1302;2;0;"3.689,02";"3.763,42";GLOBAL POWER SPA;622385037F;(SOS. 968) - ACCONTO Fatt.n. V0/56028  del 02/05/2018 CONSUMO ENERGIA ELETTRICA MESE DI APRILE 2018 ILLUMINAZIONE PUBBLICA;28-05-2018;3303;0;59;1;Spese correnti;3;Acquisto di beni e servizi;2;Acquisto di servizi;5;Utenze e canoni;4;Energia elettrica;28-05-2018;
1303;1;0;"19,51";"19,51";GLOBAL POWER SPA;622385037F;SALDO Fatt.n. V0/56026  del 02/05/2018 Fattura Energia Elettrica - ecocentro;28-05-2018;2685;0;60;1;Spese correnti;3;Acquisto di beni e servizi;2;Acquisto di servizi;5;Utenze e canoni;4;Energia elettrica;28-05-2018;
1304;1;0;"37,51";"173,40";GLOBAL POWER SPA;622385037;ACCONTO Fatt.n. V0/56029  del 02/05/2018 CONSUMI ENERGIA ELETTRICA MASEDI APRILE 2018 - SCUOLE ANCIGNAN0;28-05-2018;259;0;51;1;Spese correnti;3;Acquisto di beni e servizi;2;Acquisto di servizi;5;Utenze e canoni;4;Energia elettrica;28-05-2018;
1304;2;0;"135,89";"173,40";GLOBAL POWER SPA;622385037;ACCONTO Fatt.n. V0/56030  del 02/05/2018 CONSUMI ENERGIA ELETTRICA MESE DI APRILE 2018 - LAMPEGGIATORE;28-05-2018;259;0;51;1;Spese correnti;3;Acquisto di beni e servizi;2;Acquisto di servizi;5;Utenze e canoni;4;Energia elettrica;28-05-2018;
1305;1;0;"84,79";"93,02";GLOBAL POWER SPA;622385037;ACCONTO Fatt.n. V0/56030  del 02/05/2018 CONSUMI ENERGIA ELETTRICA MESE DI APRILE 2018 - LAMPEGGIATORE;28-05-2018;938;0;52;1;Spese correnti;3;Acquisto di beni e servizi;2;Acquisto di servizi;5;Utenze e canoni;4;Energia elettrica;28-05-2018;
1305;2;0;"8,23";"93,02";GLOBAL POWER SPA;622385037F;SALDO Fatt.n. V0/56027  del 02/05/2018 CONSUMI ENERGIA ELETTRICA MESE DI APRILE - ECOCENTRO;28-05-2018;938;0;52;1;Spese correnti;3;Acquisto di beni e servizi;2;Acquisto di servizi;5;Utenze e canoni;4;Energia elettrica;28-05-2018;
1306;1;0;"16,05";"34,89";GLOBAL POWER SPA;622385037;ACCONTO Fatt.n. V0/56030  del 02/05/2018 CONSUMI ENERGIA ELETTRICA MESE DI APRILE 2018 - LAMPEGGIATORE;28-05-2018;1432;0;53;1;Spese correnti;3;Acquisto di beni e servizi;2;Acquisto di servizi;5;Utenze e canoni;4;Energia elettrica;28-05-2018;
1306;2;0;"18,84";"34,89";GLOBAL POWER SPA;622385037;ACCONTO Fatt.n. V0/56029  del 02/05/2018 CONSUMI ENERGIA ELETTRICA MASEDI APRILE 2018 - SCUOLE ANCIGNAN0;28-05-2018;1432;0;53;1;Spese correnti;3;Acquisto di beni e servizi;2;Acquisto di servizi;5;Utenze e canoni;4;Energia elettrica;28-05-2018;
1307;1;0;"85,38";"85,38";GLOBAL POWER SPA;622385037;ACCONTO Fatt.n. V0/56029  del 02/05/2018 CONSUMI ENERGIA ELETTRICA MASEDI APRILE 2018 - SCUOLE ANCIGNAN0;28-05-2018;1573;0;54;1;Spese correnti;3;Acquisto di beni e servizi;2;Acquisto di servizi;5;Utenze e canoni;4;Energia elettrica;28-05-2018;
1308;1;0;"77,56";"175,91";GLOBAL POWER SPA;622385037;SALDO Fatt.n. V0/56029  del 02/05/2018 CONSUMI ENERGIA ELETTRICA MASEDI APRILE 2018 - SCUOLE ANCIGNAN0;28-05-2018;1651;1;55;1;Spese correnti;3;Acquisto di beni e servizi;2;Acquisto di servizi;5;Utenze e canoni;4;Energia elettrica;28-05-2018;
1308;2;0;"98,35";"175,91";GLOBAL POWER SPA;622385037;ACCONTO Fatt.n. V0/56030  del 02/05/2018 CONSUMI ENERGIA ELETTRICA MESE DI APRILE 2018 - LAMPEGGIATORE;28-05-2018;1651;1;55;1;Spese correnti;3;Acquisto di beni e servizi;2;Acquisto di servizi;5;Utenze e canoni;4;Energia elettrica;28-05-2018;
1309;1;0;"157,07";"157,07";GLOBAL POWER SPA;622385037;ACCONTO Fatt.n. V0/56030  del 02/05/2018 CONSUMI ENERGIA ELETTRICA MESE DI APRILE 2018 - LAMPEGGIATORE;28-05-2018;1810;0;56;1;Spese correnti;3;Acquisto di beni e servizi;2;Acquisto di servizi;5;Utenze e canoni;4;Energia elettrica;28-05-2018;
1310;1;0;"46,48";"46,48";GLOBAL POWER SPA;622385037;SALDO Fatt.n. V0/56031  del 02/05/2018 CONSUMO ENERGIE ELETTRICA MESE DI APRILE 2018 - CIMITERI;28-05-2018;2240;0;57;1;Spese correnti;3;Acquisto di beni e servizi;2;Acquisto di servizi;5;Utenze e canoni;4;Energia elettrica;28-05-2018;
1311;1;0;"26,99";"26,99";GLOBAL POWER SPA;622385037;ACCONTO Fatt.n. V0/56030  del 02/05/2018 CONSUMI ENERGIA ELETTRICA MESE DI APRILE 2018 - LAMPEGGIATORE;28-05-2018;3147;0;58;1;Spese correnti;3;Acquisto di beni e servizi;2;Acquisto di servizi;5;Utenze e canoni;4;Energia elettrica;28-05-2018;
1312;1;0;"16,37";"827,95";GLOBAL POWER SPA;622385037;SALDO Fatt.n. V0/56030  del 02/05/2018 CONSUMI ENERGIA ELETTRICA MESE DI APRILE 2018 - LAMPEGGIATORE;28-05-2018;3303;0;59;1;Spese correnti;3;Acquisto di beni e servizi;2;Acquisto di servizi;5;Utenze e canoni;4;Energia elettrica;28-05-2018;
1312;2;0;"811,58";"827,95";GLOBAL POWER SPA;622385037;SALDO Fatt.n. V0/56028  del 02/05/2018 CONSUMO ENERGIA ELETTRICA MESE DI APRILE 2018 ILLUMINAZIONE PUBBLICA;28-05-2018;3303;0;59;1;Spese correnti;3;Acquisto di beni e servizi;2;Acquisto di servizi;5;Utenze e canoni;4;Energia elettrica;28-05-2018;
1313;1;0;"178,36";"178,36";GIORNI NUOVI SOCIETA' COOP. SOCIALE DI SOLIDARIETA';ZA71DBB6F4;SALDO Fatt.n. 2/57  del 30/04/2018 SERVIZIO PULIZIE BAGNI CIMITERO;28-05-2018;259;5;269;1;Spese correnti;3;Acquisto di beni e servizi;2;Acquisto di servizi;13;Servizi ausiliari per il funzionamento dell'ente;2;Servizi di pulizia e lavanderia;28-05-2018;
1314;1;0;"2.148,20";"2.148,20";GIORNI NUOVI SOCIETA' COOP. SOCIALE DI SOLIDARIETA';67802821B6;ACCONTO Fatt.n. 2/56  del 30/04/2018 SERVIZIO PULIZIE SEDE COMUNALE E VARIE;28-05-2018;259;5;547;1;Spese correnti;3;Acquisto di beni e servizi;2;Acquisto di servizi;13;Servizi ausiliari per il funzionamento dell'ente;2;Servizi di pulizia e lavanderia;28-05-2018;
1315;1;0;"1.224,07";"1.224,07";GIORNI NUOVI SOCIETA' COOP. SOCIALE DI SOLIDARIETA';67802821B6;ACCONTO Fatt.n. 2/56  del 30/04/2018 SERVIZIO PULIZIE SEDE COMUNALE E VARIE;28-05-2018;1810;3;548;1;Spese correnti;3;Acquisto di beni e servizi;2;Acquisto di servizi;13;Servizi ausiliari per il funzionamento dell'ente;2;Servizi di pulizia e lavanderia;28-05-2018;
1316;1;0;"207,95";"207,95";GIORNI NUOVI SOCIETA' COOP. SOCIALE DI SOLIDARIETA';67802821B6;ACCONTO Fatt.n. 2/56  del 30/04/2018 SERVIZIO PULIZIE SEDE COMUNALE E VARIE;28-05-2018;1285;0;549;1;Spese correnti;3;Acquisto di beni e servizi;2;Acquisto di servizi;13;Servizi ausiliari per il funzionamento dell'ente;2;Servizi di pulizia e lavanderia;28-05-2018;
1317;1;0;"499,83";"499,83";GIORNI NUOVI SOCIETA' COOP. SOCIALE DI SOLIDARIETA';67802821B6;ACCONTO Fatt.n. 2/56  del 30/04/2018 SERVIZIO PULIZIE SEDE COMUNALE E VARIE;28-05-2018;1565;0;550;1;Spese correnti;3;Acquisto di beni e servizi;2;Acquisto di servizi;13;Servizi ausiliari per il funzionamento dell'ente;2;Servizi di pulizia e lavanderia;28-05-2018;
1318;1;0;"414,69";"414,69";GIORNI NUOVI SOCIETA' COOP. SOCIALE DI SOLIDARIETA';67802821B6;SALDO Fatt.n. 2/56  del 30/04/2018 SERVIZIO PULIZIE SEDE COMUNALE E VARIE;28-05-2018;3147;1;551;1;Spese correnti;3;Acquisto di beni e servizi;2;Acquisto di servizi;13;Servizi ausiliari per il funzionamento dell'ente;2;Servizi di pulizia e lavanderia;28-05-2018;
1319;1;0;"124,44";"124,44";GIORNI NUOVI SOCIETA' COOP. SOCIALE DI SOLIDARIETA';ZE4225CDE5;SALDO Fatt.n. 2/58  del 30/04/2018 SERVIZIO DI PULIZIE STRAORDNARIE - SALETTA RIUNIONI;28-05-2018;932;0;239;1;Spese correnti;3;Acquisto di beni e servizi;2;Acquisto di servizi;99;Altri servizi;999;Altri servizi diversi n.a.c.;28-05-2018;
1320;1;0;"387,09";"387,09";COSTRUZIONI GENERALI GIRARDINI SPA;Z9E21B7F37;SALDO Fatt.n. 0000059/E  del 30/04/2018 MACINATO GROSSO - FINO E SOTTOVAGLIO;28-05-2018;3420;0;114;1;Spese correnti;3;Acquisto di beni e servizi;1;Acquisto di beni;2;Altri beni di consumo;999;Altri beni e materiali di consumo n.a.c.;28-05-2018;
1321;1;0;"67,10";"67,10";COVER UP SRL;ZEF1962A6B;SALDO Fatt.n. 479B  del 30/04/2018 NOLEGGIO MESE DI APRILE 2018;28-05-2018;340;0;255;1;Spese correnti;3;Acquisto di beni e servizi;2;Acquisto di servizi;19;Servizi informatici e di telecomunicazioni;5;Servizi per i sistemi e relativa manutenzione;28-05-2018;
1322;1;0;"378,00";"378,00";MARGHERITA SOC. COOP. SOCIALE ONLUS;5342930550;SALDO Fatt.n. 88/E  del 30/04/2018 PROGETTO OASI MESE APRILE 2014;28-05-2018;3140;0;611;1;Spese correnti;3;Acquisto di beni e servizi;2;Acquisto di servizi;99;Altri servizi;999;Altri servizi diversi n.a.c.;28-05-2018;
1323;1;0;"4.150,00";"4.150,00";ASSOCIAZIONE PRO LOCO SANDRIGO; ;LIQUIDAZIONE SALDO CONTRIBUTI ASSOCIAZIONI VARIE;28-05-2018;3580;0;433;1;Spese correnti;4;Trasferimenti correnti;4;Trasferimenti correnti a Istituzioni Sociali Private;1;Trasferimenti correnti a Istituzioni Sociali Private;1;Trasferimenti correnti a Istituzioni Sociali Private;28-05-2018;
1324;1;0;"1.000,00";"1.000,00";ASSOCIAZIONE SANDRIGO TRENTA; ;LIQUIDAZIONE SALDO CONTRIBUTI ASSOCIAZIONI VARIE;28-05-2018;451;0;424;1;Spese correnti;4;Trasferimenti correnti;4;Trasferimenti correnti a Istituzioni Sociali Private;1;Trasferimenti correnti a Istituzioni Sociali Private;1;Trasferimenti correnti a Istituzioni Sociali Private;28-05-2018;
1325;1;0;"946,98";"946,98";CONSORZIO DI BONIFICA ALTA PIANURA VENETA; ;"CONSORZIO ALTA PIANURA VENETA. IMPEGNO DI SPESA E LIQUIDAZIONE IMPORTO RELATIVO AL CONTRIBUTO DI BONIFICA, CONTRIBUTO DI IRRIGAZIONE, CONCESSIONI DEMANIALI ED ALTRI IMPORTI.";28-05-2018;3460;0;436;1;Spese correnti;3;Acquisto di beni e servizi;2;Acquisto di servizi;7;Utilizzo di beni di terzi;999;Altre spese sostenute per utilizzo di beni di terzi n.a.c.;28-05-2018;
1330;1;0;"2.488,80";"2.488,80";PACCAGNELLA MIRKO;Z22156C655;SALDO Fatt.n. 3/PA  del 02/05/2018 RISTRUTTURAZIONE PALAZZO MARCONI - PROGETTAZIONE IMPIANTISTICA;28-05-2018;4031;0;896;2;Spese in conto capitale;2;Investimenti fissi lordi e acquisto di terreni;1;Beni materiali;10;"Beni immobili di valore culturale, storico ed artistico";2;"Fabbricati ad uso commerciale di valore culturale, storico ed artistico";28-05-2018;
1331;1;0;"27,00";"27,00";HALLEY INFORMATICA SRL;Z93234ADC6;SALDO Fatt.n. 6818/16/10  del 14/05/2018 TESTO PER UFF. RAGIONERIA;28-05-2018;324;1;352;1;Spese correnti;3;Acquisto di beni e servizi;1;Acquisto di beni;1;"Giornali, riviste e pubblicazioni";1;Giornali e riviste;28-05-2018;
1332;1;0;"230,99";"230,99";REGIONE VENETO - GENIO CIVILE; ;REALIZZAZIONE NUOVO POZZO FREATICO A SCOPO IRRIGUO A SERVIZIO DEL VIGNETO ASTICO. IMPEGNO DI SPESA E LIQUIDAZIONE A FAVORE DEL GENIO CIVILE PER CONTRIBUTO IDROGRAFICO E SPESE DI ISTRUTTORIA .;28-05-2018;4655;0;435;2;Spese in conto capitale;2;Investimenti fissi lordi e acquisto di terreni;1;Beni materiali;4;Impianti e macchinari;2;Impianti;28-05-2018;
1338;1;0;"21,80";"21,80";COVER UP SRL;Z74223316C;SALDO Fatt.n. 544B  del 22/05/2018 MATERIALE INFORMATICO VARIO;29-05-2018;342;0;253;1;Spese correnti;3;Acquisto di beni e servizi;1;Acquisto di beni;2;Altri beni di consumo;6;Materiale informatico;29-05-2018;
1339;1;0;"-36,60";"36,60";SOLUZIONE UFFICIO S.R.L.;ZDC13F8609;SALDO Fatt.n. 5204/PA/2018  del 22/05/2018 QUOTA FISSA PAGINE NERO;29-05-2018;768;0;269;1;Spese correnti;3;Acquisto di beni e servizi;2;Acquisto di servizi;7;Utilizzo di beni di terzi;8;Noleggi di impianti e macchinari;29-05-2018;
1339;2;0;"36,60";"36,60";SOLUZIONE UFFICIO S.R.L.;ZF82286338;SALDO Fatt.n. 5205/PA/2018  del 22/05/2018 QUOTA FISSA PAGINE NERO;29-05-2018;768;0;269;1;Spese correnti;3;Acquisto di beni e servizi;2;Acquisto di servizi;7;Utilizzo di beni di terzi;8;Noleggi di impianti e macchinari;29-05-2018;
1339;3;0;"36,60";"36,60";SOLUZIONE UFFICIO S.R.L.;ZDC13F8609;SALDO Fatt.n. 3287/PA/2018  del 30/03/2018 QUOTA FISSA PAGINE NERO;29-05-2018;768;0;269;1;Spese correnti;3;Acquisto di beni e servizi;2;Acquisto di servizi;7;Utilizzo di beni di terzi;8;Noleggi di impianti e macchinari;29-05-2018;
1340;1;0;"980,88";"980,88";GEOGREEN di BALBO MIRELLA;ZDA231EE4E;SALDO Fatt.n. 2/PA  del 30/04/2018 BIOSEC DA 20 KG;29-05-2018;3420;0;314;1;Spese correnti;3;Acquisto di beni e servizi;1;Acquisto di beni;2;Altri beni di consumo;999;Altri beni e materiali di consumo n.a.c.;29-05-2018;
1341;1;0;"3,22";"3,22";AGENZIA DELLE ENTRATE - RISCOSSIONE; ;APPROVAZIONE RUOLO COATTIVO PER L'IMPOSTA COMUNALE SUGLI IMMOBILI ANNI 2002-2003-2004-2005 E 2006;31-05-2018;1115;0;796;1;Spese correnti;3;Acquisto di beni e servizi;2;Acquisto di servizi;3;Aggi di riscossione;999;Altri aggi di riscossione n.a.c.;31-05-2018;
1342;1;0;"13,06";"13,06";AGENZIA DELLE ENTRATE - RISCOSSIONE; ;RIDUZIONE ACCERTAMENTO - RUOLO SVUOTAMENTI ANNO 2010- E IMPEGNO DI SPESA A FAVORE DEL CONCESSIONARIO.;31-05-2018;1115;0;596;1;Spese correnti;3;Acquisto di beni e servizi;2;Acquisto di servizi;3;Aggi di riscossione;999;Altri aggi di riscossione n.a.c.;31-05-2018;
1343;1;0;"14,95";"14,95";AGENZIA DELLE ENTRATE - RISCOSSIONE; ;APPROVAZIONE RUOLO TARIFFA RIFIUTI SVUOTAMENTI 2009 E PARTE FISSA 2010 - COMPENSO CONCESSIONARIO;31-05-2018;1115;0;918;1;Spese correnti;3;Acquisto di beni e servizi;2;Acquisto di servizi;3;Aggi di riscossione;999;Altri aggi di riscossione n.a.c.;31-05-2018;
1344;1;0;"3,01";"3,01";AGENZIA DELLE ENTRATE - RISCOSSIONE; ;APPROVAZIONE RUOLO COATTIVO ICI VARI ANNI;31-05-2018;1115;0;755;1;Spese correnti;3;Acquisto di beni e servizi;2;Acquisto di servizi;3;Aggi di riscossione;999;Altri aggi di riscossione n.a.c.;31-05-2018;
1345;1;0;"0,57";"0,57";AGENZIA DELLE ENTRATE - RISCOSSIONE; ;RIDUZIONE ACCERTAMENTO - RUOLO SVUOTAMENTI ANNO 2010- E IMPEGNO DI SPESA A FAVORE DEL CONCESSIONARIO.;31-05-2018;1115;0;596;1;Spese correnti;3;Acquisto di beni e servizi;2;Acquisto di servizi;3;Aggi di riscossione;999;Altri aggi di riscossione n.a.c.;31-05-2018;
1346;1;0;"2,52";"2,52";AGENZIA DELLE ENTRATE - RISCOSSIONE; ;APPROVAZIONE PARTE FISSA RUOLO TARIFFA RIFIUTI ANNO 2011;31-05-2018;1115;0;756;1;Spese correnti;3;Acquisto di beni e servizi;2;Acquisto di servizi;3;Aggi di riscossione;999;Altri aggi di riscossione n.a.c.;31-05-2018;
1347;1;0;"11,32";"11,32";AGENZIA DELLE ENTRATE - RISCOSSIONE; ;APPROVAZIONE RUOLO PARTE FISSA TARIFFA RIFIUTI ANNO 2012;31-05-2018;1115;0;786;1;Spese correnti;3;Acquisto di beni e servizi;2;Acquisto di servizi;3;Aggi di riscossione;999;Altri aggi di riscossione n.a.c.;31-05-2018;
1348;1;0;"2,33";"2,33";AGENZIA DELLE ENTRATE - RISCOSSIONE; ;RIDUZIONE ACCERTAMENTO RELATIVO AL  RUOLO TARIFFA SMALTIMENTO RIFIUTI - SVUOTAMENTI ANNO 2011;31-05-2018;1115;0;804;1;Spese correnti;3;Acquisto di beni e servizi;2;Acquisto di servizi;3;Aggi di riscossione;999;Altri aggi di riscossione n.a.c.;31-05-2018;
1349;1;0;"2,27";"2,27";AGENZIA DELLE ENTRATE - RISCOSSIONE; ;RIDUZIONE ACCERTAMENTO RELATIVO AL RUOLO TARIFFA SMALTIMENTO RIFIUTI-SVUOTAMENTI ANNO 2012;31-05-2018;1115;0;460;1;Spese correnti;3;Acquisto di beni e servizi;2;Acquisto di servizi;3;Aggi di riscossione;999;Altri aggi di riscossione n.a.c.;31-05-2018;
1350;1;0;"1,53";"1,53";AGENZIA DELLE ENTRATE - RISCOSSIONE; ;"IMPEGNO DI SPESA CON EQUITALIA,  CONCESSIONARIO DELLA RISCOSSIONE,   PER LA RISCOSSIONE DI ENTRATE TRIBUTARIE.";31-05-2018;1115;0;1031;1;Spese correnti;3;Acquisto di beni e servizi;2;Acquisto di servizi;3;Aggi di riscossione;999;Altri aggi di riscossione n.a.c.;31-05-2018;
1351;1;0;"4,42";"4,42";AGENZIA DELLE ENTRATE - RISCOSSIONE; ;APPROVAZIONE RUOLO COATTIVO ICI;31-05-2018;1115;0;324;1;Spese correnti;3;Acquisto di beni e servizi;2;Acquisto di servizi;3;Aggi di riscossione;999;Altri aggi di riscossione n.a.c.;31-05-2018;
1352;1;0;"5,50";"5,50";I.C.A. IMPOSTE COMUNALI AFFINI SRL;7235631796;ACCONTO Fatt.n. FY0001021  del 20/04/2018 IMPORTO RISCOSSO CON CONTO CORRENTE POSTALE;31-05-2018;1115;0;315;1;Spese correnti;3;Acquisto di beni e servizi;2;Acquisto di servizi;3;Aggi di riscossione;999;Altri aggi di riscossione n.a.c.;31-05-2018;
1353;1;0;"6,00";"6,00";I.C.A. S.R.L.;7235631796;"IMPEGNO DI SPESA PER IL SERVIZIO DI RISCOSSIONE COATTIVA DELLE ENTRATE COMUNALI SVOLTO DALLA SOCIETA' ICA SRL, PERIODO 01/01/2018-30/06/2018";31-05-2018;1115;0;315;1;Spese correnti;3;Acquisto di beni e servizi;2;Acquisto di servizi;3;Aggi di riscossione;999;Altri aggi di riscossione n.a.c.;31-05-2018;
1354;1;0;"106,51";"106,51";I.C.A. IMPOSTE COMUNALI AFFINI SRL;7235631796;ACCONTO Fatt.n. FY0001021  del 20/04/2018 IMPORTO RISCOSSO CON CONTO CORRENTE POSTALE;31-05-2018;1115;0;315;1;Spese correnti;3;Acquisto di beni e servizi;2;Acquisto di servizi;3;Aggi di riscossione;999;Altri aggi di riscossione n.a.c.;31-05-2018;
1355;1;0;"28,74";"28,74";I.C.A. IMPOSTE COMUNALI AFFINI SRL;7235631796;SALDO Fatt.n. FY0001021  del 20/04/2018 IMPORTO RISCOSSO CON CONTO CORRENTE POSTALE;31-05-2018;1115;0;315;1;Spese correnti;3;Acquisto di beni e servizi;2;Acquisto di servizi;3;Aggi di riscossione;999;Altri aggi di riscossione n.a.c.;31-05-2018;
1356;1;0;"113,05";"113,05";I.C.A. IMPOSTE COMUNALI AFFINI SRL;7235631796;SALDO Fatt.n. FY0001022  del 20/04/2018 AGGIO DI RISCOSSIONE A CARICO CONTRIBUENTE;31-05-2018;1115;0;315;1;Spese correnti;3;Acquisto di beni e servizi;2;Acquisto di servizi;3;Aggi di riscossione;999;Altri aggi di riscossione n.a.c.;31-05-2018;
1357;1;0;"86,76";"86,76";I.C.A. S.R.L.;7235631796;"IMPEGNO DI SPESA PER IL SERVIZIO DI RISCOSSIONE COATTIVA DELLE ENTRATE COMUNALI SVOLTO DALLA SOCIETA' ICA SRL, PERIODO 01/01/2018-30/06/2018";31-05-2018;1115;0;315;1;Spese correnti;3;Acquisto di beni e servizi;2;Acquisto di servizi;3;Aggi di riscossione;999;Altri aggi di riscossione n.a.c.;31-05-2018;
1358;1;0;"41,60";"41,60";I.C.A. IMPOSTE COMUNALI AFFINI SRL;7235631796;ACCONTO Fatt.n. FY0001022  del 20/04/2018 AGGIO DI RISCOSSIONE A CARICO CONTRIBUENTE;31-05-2018;1115;0;315;1;Spese correnti;3;Acquisto di beni e servizi;2;Acquisto di servizi;3;Aggi di riscossione;999;Altri aggi di riscossione n.a.c.;31-05-2018;
1359;1;0;"17,86";"17,86";I.C.A. IMPOSTE COMUNALI AFFINI SRL;7235631796;ACCONTO Fatt.n. FY0001022  del 20/04/2018 AGGIO DI RISCOSSIONE A CARICO CONTRIBUENTE;31-05-2018;1115;0;315;1;Spese correnti;3;Acquisto di beni e servizi;2;Acquisto di servizi;3;Aggi di riscossione;999;Altri aggi di riscossione n.a.c.;31-05-2018;
1360;1;0;"14,63";"14,63";I.C.A. IMPOSTE COMUNALI AFFINI SRL;7235631796;ACCONTO Fatt.n. FY0001022  del 20/04/2018 AGGIO DI RISCOSSIONE A CARICO CONTRIBUENTE;31-05-2018;1115;0;315;1;Spese correnti;3;Acquisto di beni e servizi;2;Acquisto di servizi;3;Aggi di riscossione;999;Altri aggi di riscossione n.a.c.;31-05-2018;
1361;1;0;"19,58";"19,58";I.C.A. IMPOSTE COMUNALI AFFINI SRL;7235631796;ACCONTO Fatt.n. FY0001022  del 20/04/2018 AGGIO DI RISCOSSIONE A CARICO CONTRIBUENTE;31-05-2018;1115;0;315;1;Spese correnti;3;Acquisto di beni e servizi;2;Acquisto di servizi;3;Aggi di riscossione;999;Altri aggi di riscossione n.a.c.;31-05-2018;
1362;1;0;"6,00";"6,00";I.C.A. IMPOSTE COMUNALI AFFINI SRL;7235631796;SALDO Fatt.n. FY0001022  del 20/04/2018 AGGIO DI RISCOSSIONE A CARICO CONTRIBUENTE;31-05-2018;1115;0;315;1;Spese correnti;3;Acquisto di beni e servizi;2;Acquisto di servizi;3;Aggi di riscossione;999;Altri aggi di riscossione n.a.c.;31-05-2018;
1363;1;0;"3,56";"3,56";AGENZIA DELLE ENTRATE - RISCOSSIONE; ;IMPEGNO PER COMPENSO RISCOSSIONE PARTE VARIABILE TARSU 2002;01-06-2018;1115;0;2806;1;Spese correnti;3;Acquisto di beni e servizi;2;Acquisto di servizi;3;Aggi di riscossione;999;Altri aggi di riscossione n.a.c.;01-06-2018;
1364;1;0;"1,87";"1,87";AGENZIA DELLE ENTRATE - RISCOSSIONE; ;APPROVAZIONE RUOLO COATTIVO ORDINANZE-INGIUNZIONI ANNI 2004-2005 E 2006 - IMPEGNO PER SPESE DI RISCOSSIONE;01-06-2018;1115;0;611;1;Spese correnti;3;Acquisto di beni e servizi;2;Acquisto di servizi;3;Aggi di riscossione;999;Altri aggi di riscossione n.a.c.;01-06-2018;
1365;1;0;"1,45";"1,45";AGENZIA DELLE ENTRATE - RISCOSSIONE; ;APPROVAZIONE RUOLO COATTIVO ORDINANZE-INGIUNZIONI ANNI 2004-2005 E 2006 - IMPEGNO PER SPESE DI RISCOSSIONE;01-06-2018;1115;0;611;1;Spese correnti;3;Acquisto di beni e servizi;2;Acquisto di servizi;3;Aggi di riscossione;999;Altri aggi di riscossione n.a.c.;01-06-2018;
1366;1;0;"1,88";"1,88";AGENZIA DELLE ENTRATE - RISCOSSIONE; ;APPROVAZIONE RUOLO COATTIVO ORDINANZE-INGIUNZIONI ANNI 2004-2005 E 2006 - IMPEGNO PER SPESE DI RISCOSSIONE;01-06-2018;1115;0;611;1;Spese correnti;3;Acquisto di beni e servizi;2;Acquisto di servizi;3;Aggi di riscossione;999;Altri aggi di riscossione n.a.c.;01-06-2018;
1367;1;0;"2,94";"2,94";AGENZIA DELLE ENTRATE - RISCOSSIONE; ;APPROVAZIONE RUOLO COATTIVO ORDINANZE-INGIUNZIONI ANNI 2004-2005 E 2006 - IMPEGNO PER SPESE DI RISCOSSIONE;01-06-2018;1115;0;611;1;Spese correnti;3;Acquisto di beni e servizi;2;Acquisto di servizi;3;Aggi di riscossione;999;Altri aggi di riscossione n.a.c.;01-06-2018;
1368;1;0;"2,32";"2,32";AGENZIA DELLE ENTRATE - RISCOSSIONE; ;APPROVAZIONE RUOLO COATTIVO ORDINANZE-INGIUNZIONI ANNI 2004-2005 E 2006 - IMPEGNO PER SPESE DI RISCOSSIONE;01-06-2018;1115;0;611;1;Spese correnti;3;Acquisto di beni e servizi;2;Acquisto di servizi;3;Aggi di riscossione;999;Altri aggi di riscossione n.a.c.;01-06-2018;
1369;1;0;"3,60";"3,60";AGENZIA DELLE ENTRATE - RISCOSSIONE; ;APPROVAZIONE RUOLO COATTIVO ORDINANZE-INGIUNZIONI ANNI 2004-2005 E 2006 - IMPEGNO PER SPESE DI RISCOSSIONE;01-06-2018;1115;0;611;1;Spese correnti;3;Acquisto di beni e servizi;2;Acquisto di servizi;3;Aggi di riscossione;999;Altri aggi di riscossione n.a.c.;01-06-2018;
1370;1;0;"3,61";"3,61";AGENZIA DELLE ENTRATE - RISCOSSIONE; ;APPROVAZIONE RUOLO COATTIVO ORDINANZE-INGIUNZIONI ANNI 2004-2005 E 2006 - IMPEGNO PER SPESE DI RISCOSSIONE;01-06-2018;1115;0;611;1;Spese correnti;3;Acquisto di beni e servizi;2;Acquisto di servizi;3;Aggi di riscossione;999;Altri aggi di riscossione n.a.c.;01-06-2018;
1371;1;0;"3,06";"3,06";AGENZIA DELLE ENTRATE - RISCOSSIONE; ;APPROVAZIONE RUOLO COATTIVO ORDINANZE-INGIUNZIONI ANNI 2004-2005 E 2006 - IMPEGNO PER SPESE DI RISCOSSIONE;01-06-2018;1115;0;611;1;Spese correnti;3;Acquisto di beni e servizi;2;Acquisto di servizi;3;Aggi di riscossione;999;Altri aggi di riscossione n.a.c.;01-06-2018;
1372;1;0;"1,53";"1,53";AGENZIA DELLE ENTRATE - RISCOSSIONE; ;APPROVAZIONE RUOLO COATTIVO ORDINANZE-INGIUNZIONI ANNI 2004-2005 E 2006 - IMPEGNO PER SPESE DI RISCOSSIONE;01-06-2018;1115;0;611;1;Spese correnti;3;Acquisto di beni e servizi;2;Acquisto di servizi;3;Aggi di riscossione;999;Altri aggi di riscossione n.a.c.;01-06-2018;
1373;1;0;"3,33";"3,33";AGENZIA DELLE ENTRATE - RISCOSSIONE; ;SPESA PER RISCOSSIONE RUOLO COATTIVO ICI VARI ANNI (N. 4046/2008 - 5056/2008 - 5039/2008);01-06-2018;1115;0;659;1;Spese correnti;3;Acquisto di beni e servizi;2;Acquisto di servizi;3;Aggi di riscossione;999;Altri aggi di riscossione n.a.c.;01-06-2018;
1374;1;0;"2,65";"2,65";AGENZIA DELLE ENTRATE - RISCOSSIONE; ;APPROVAZIONE RUOLO COATTIVO ORDINANZE-INGIUNZIONI ANNI 2004-2005 E 2006 - IMPEGNO PER SPESE DI RISCOSSIONE;01-06-2018;1115;0;611;1;Spese correnti;3;Acquisto di beni e servizi;2;Acquisto di servizi;3;Aggi di riscossione;999;Altri aggi di riscossione n.a.c.;01-06-2018;
1375;1;0;"1,07";"1,07";AGENZIA DELLE ENTRATE - RISCOSSIONE; ;APPROVAZIONE RUOLO SUPPLETTIVO TARIFFA SMALTIMENTO RIFIUTI. SVUOTAMENTI 2008. - SPESE PER COMPENSO CONCESSIONARIO;01-06-2018;1115;0;436;1;Spese correnti;3;Acquisto di beni e servizi;2;Acquisto di servizi;3;Aggi di riscossione;999;Altri aggi di riscossione n.a.c.;01-06-2018;
1376;1;0;"3,22";"3,22";AGENZIA DELLE ENTRATE - RISCOSSIONE; ;APPROVAZIONE RUOLO SUPPLETTIVO TARIFFA SMALTIMENTO RIFIUTI. SVUOTAMENTI 2008. - SPESE PER COMPENSO CONCESSIONARIO;01-06-2018;1115;0;436;1;Spese correnti;3;Acquisto di beni e servizi;2;Acquisto di servizi;3;Aggi di riscossione;999;Altri aggi di riscossione n.a.c.;01-06-2018;
1377;1;0;"3,20";"3,20";AGENZIA DELLE ENTRATE - RISCOSSIONE; ;RIDUZIONE ACCERTAMENTO - RUOLO SVUOTAMENTI ANNO 2010- E IMPEGNO DI SPESA A FAVORE DEL CONCESSIONARIO.;01-06-2018;1115;0;596;1;Spese correnti;3;Acquisto di beni e servizi;2;Acquisto di servizi;3;Aggi di riscossione;999;Altri aggi di riscossione n.a.c.;01-06-2018;
1378;1;0;"47,69";"47,69";AGENZIA DELLE ENTRATE - RISCOSSIONE; ;APPROVAZIONE RUOLO TARIFFA RIFIUTI SVUOTAMENTI 2009 E PARTE FISSA 2010 - COMPENSO CONCESSIONARIO;01-06-2018;1115;0;918;1;Spese correnti;3;Acquisto di beni e servizi;2;Acquisto di servizi;3;Aggi di riscossione;999;Altri aggi di riscossione n.a.c.;01-06-2018;
1379;1;0;"3,01";"3,01";AGENZIA DELLE ENTRATE - RISCOSSIONE; ;APPROVAZIONE RUOLO COATTIVO ICI VARI ANNI;01-06-2018;1115;0;755;1;Spese correnti;3;Acquisto di beni e servizi;2;Acquisto di servizi;3;Aggi di riscossione;999;Altri aggi di riscossione n.a.c.;01-06-2018;
1380;1;0;"46,77";"46,77";AGENZIA DELLE ENTRATE - RISCOSSIONE; ;RIDUZIONE ACCERTAMENTO - RUOLO SVUOTAMENTI ANNO 2010- E IMPEGNO DI SPESA A FAVORE DEL CONCESSIONARIO.;01-06-2018;1115;0;596;1;Spese correnti;3;Acquisto di beni e servizi;2;Acquisto di servizi;3;Aggi di riscossione;999;Altri aggi di riscossione n.a.c.;01-06-2018;
1381;1;0;"22,34";"22,34";AGENZIA DELLE ENTRATE - RISCOSSIONE; ;APPROVAZIONE PARTE FISSA RUOLO TARIFFA RIFIUTI ANNO 2011;01-06-2018;1115;0;756;1;Spese correnti;3;Acquisto di beni e servizi;2;Acquisto di servizi;3;Aggi di riscossione;999;Altri aggi di riscossione n.a.c.;01-06-2018;
1382;1;0;"21,23";"21,23";AGENZIA DELLE ENTRATE - RISCOSSIONE; ;APPROVAZIONE RUOLO PARTE FISSA TARIFFA RIFIUTI ANNO 2012;01-06-2018;1115;0;786;1;Spese correnti;3;Acquisto di beni e servizi;2;Acquisto di servizi;3;Aggi di riscossione;999;Altri aggi di riscossione n.a.c.;01-06-2018;
1383;1;0;"23,88";"23,88";AGENZIA DELLE ENTRATE - RISCOSSIONE; ;RIDUZIONE ACCERTAMENTO RELATIVO AL  RUOLO TARIFFA SMALTIMENTO RIFIUTI - SVUOTAMENTI ANNO 2011;01-06-2018;1115;0;804;1;Spese correnti;3;Acquisto di beni e servizi;2;Acquisto di servizi;3;Aggi di riscossione;999;Altri aggi di riscossione n.a.c.;01-06-2018;
1384;1;0;"21,00";"21,00";AGENZIA DELLE ENTRATE - RISCOSSIONE; ;RIDUZIONE ACCERTAMENTO RELATIVO AL RUOLO TARIFFA SMALTIMENTO RIFIUTI-SVUOTAMENTI ANNO 2012;01-06-2018;1115;0;460;1;Spese correnti;3;Acquisto di beni e servizi;2;Acquisto di servizi;3;Aggi di riscossione;999;Altri aggi di riscossione n.a.c.;01-06-2018;
1385;1;0;"1,53";"1,53";AGENZIA DELLE ENTRATE - RISCOSSIONE; ;"IMPEGNO DI SPESA CON EQUITALIA,  CONCESSIONARIO DELLA RISCOSSIONE,   PER LA RISCOSSIONE DI ENTRATE TRIBUTARIE.";01-06-2018;1115;0;1031;1;Spese correnti;3;Acquisto di beni e servizi;2;Acquisto di servizi;3;Aggi di riscossione;999;Altri aggi di riscossione n.a.c.;01-06-2018;
1386;1;0;"4,42";"4,42";AGENZIA DELLE ENTRATE - RISCOSSIONE; ;APPROVAZIONE RUOLO COATTIVO ICI;01-06-2018;1115;0;324;1;Spese correnti;3;Acquisto di beni e servizi;2;Acquisto di servizi;3;Aggi di riscossione;999;Altri aggi di riscossione n.a.c.;01-06-2018;
1387;1;0;"0,79";"0,79";AGENZIA DELLE ENTRATE - RISCOSSIONE; ;APPROVAZIONE RUOLO SUPPLETTIVO TARIFFA SMALTIMENTO RIFIUTI. SVUOTAMENTI 2008. - SPESE PER COMPENSO CONCESSIONARIO;04-06-2018;1115;0;436;1;Spese correnti;3;Acquisto di beni e servizi;2;Acquisto di servizi;3;Aggi di riscossione;999;Altri aggi di riscossione n.a.c.;04-06-2018;
1388;1;0;"0,90";"0,90";AGENZIA DELLE ENTRATE - RISCOSSIONE; ;APPROVAZIONE RUOLO COATTIVO ORDINANZE-INGIUNZIONI ANNI 2004-2006 E 2008;04-06-2018;1115;0;472;1;Spese correnti;3;Acquisto di beni e servizi;2;Acquisto di servizi;3;Aggi di riscossione;999;Altri aggi di riscossione n.a.c.;04-06-2018;
1389;1;0;"1,45";"1,45";AGENZIA DELLE ENTRATE - RISCOSSIONE; ;APPROVAZIO.NE RUOLO SUPPLETTIVO TARIFFA SMALTIMENTO RIFIUTI ANNO;04-06-2018;1115;0;782;1;Spese correnti;3;Acquisto di beni e servizi;2;Acquisto di servizi;3;Aggi di riscossione;999;Altri aggi di riscossione n.a.c.;04-06-2018;
1390;1;0;"2,07";"2,07";AGENZIA DELLE ENTRATE - RISCOSSIONE; ;APPROVAZIONE RUOLO COATTIVO ORDINANZE-INGIUNZIONI ANNI 2004-2005 E 2006 - IMPEGNO PER SPESE DI RISCOSSIONE;04-06-2018;1115;0;611;1;Spese correnti;3;Acquisto di beni e servizi;2;Acquisto di servizi;3;Aggi di riscossione;999;Altri aggi di riscossione n.a.c.;04-06-2018;
1391;1;0;"2,94";"2,94";AGENZIA DELLE ENTRATE - RISCOSSIONE; ;APPROVAZIONE RUOLO COATTIVO ORDINANZE-INGIUNZIONI ANNI 2004-2005 E 2006 - IMPEGNO PER SPESE DI RISCOSSIONE;04-06-2018;1115;0;611;1;Spese correnti;3;Acquisto di beni e servizi;2;Acquisto di servizi;3;Aggi di riscossione;999;Altri aggi di riscossione n.a.c.;04-06-2018;
1392;1;0;"2,32";"2,32";AGENZIA DELLE ENTRATE - RISCOSSIONE; ;APPROVAZIONE RUOLO COATTIVO ORDINANZE-INGIUNZIONI ANNI 2004-2005 E 2006 - IMPEGNO PER SPESE DI RISCOSSIONE;04-06-2018;1115;0;611;1;Spese correnti;3;Acquisto di beni e servizi;2;Acquisto di servizi;3;Aggi di riscossione;999;Altri aggi di riscossione n.a.c.;04-06-2018;
1393;1;0;"0,90";"0,90";AGENZIA DELLE ENTRATE - RISCOSSIONE; ;APPROVAZIONE RUOLO COATTIVO ORDINANZE-INGIUNZIONI ANNI 2004-2006 E 2008;04-06-2018;1115;0;472;1;Spese correnti;3;Acquisto di beni e servizi;2;Acquisto di servizi;3;Aggi di riscossione;999;Altri aggi di riscossione n.a.c.;04-06-2018;
1394;1;0;"6.377,15";"6.377,15";S.I.A. Societa' Intercomunale Ambiente SRL; ;SALDO Fatt.n. 79/PA18  del 30/04/2018 CONFERIMENTO RSU SECCO MESE APRILE 2018;07-06-2018;2695;0;163;1;Spese correnti;3;Acquisto di beni e servizi;2;Acquisto di servizi;15;Contratti di servizio pubblico;5;Contratti di servizio per il conferimento in discarica dei rifiuti;07-06-2018;
1395;1;0;"3.965,00";"3.965,00";TRAFFIC TECNOLOGY SRL;Z302197E32;SALDO Fatt.n. 643  del 21/05/2018 CANONE SISTEMA VISTA RED;07-06-2018;3342;0;169;1;Spese correnti;3;Acquisto di beni e servizi;2;Acquisto di servizi;99;Altri servizi;999;Altri servizi diversi n.a.c.;07-06-2018;
1396;1;0;"3.965,00";"3.965,00";TRAFFIC TECNOLOGY SRL;Z181CDC9AA;SALDO Fatt.n. 671  del 23/05/2018 CANONE SISTEMA VISTA RED;07-06-2018;3342;0;58;1;Spese correnti;3;Acquisto di beni e servizi;2;Acquisto di servizi;99;Altri servizi;999;Altri servizi diversi n.a.c.;07-06-2018;
1397;1;0;"7.320,00";"7.320,00";GIARA ENGINEERING SRL - STUDIO GEOTECNICO;Z1421C66AB;SALDO Fatt.n. 01/2018  del 22/05/2018 SERVIZIO DI COORDINAMENTO ATTIVITA' EX DISCARICA DI VIA GALVANI;07-06-2018;2798;0;122;1;Spese correnti;3;Acquisto di beni e servizi;2;Acquisto di servizi;99;Altri servizi;999;Altri servizi diversi n.a.c.;07-06-2018;
1398;1;0;"50,18";"50,18";ASCOTRADE SPA;1514046647;SALDO Fatt.n. 706175  del 23/05/2018 ACCISA;07-06-2018;934;0;175;1;Spese correnti;3;Acquisto di beni e servizi;2;Acquisto di servizi;5;Utenze e canoni;6;Gas;07-06-2018;
1399;1;0;"417,42";"417,42";ASCOTRADE SPA;1514046647;ACCONTO Fatt.n. 676459  del 23/05/2018 ACCISA;07-06-2018;934;0;175;1;Spese correnti;3;Acquisto di beni e servizi;2;Acquisto di servizi;5;Utenze e canoni;6;Gas;07-06-2018;
1400;1;0;"163,48";"163,48";ASCOTRADE SPA;1514046647;SALDO Fatt.n. 676459  del 23/05/2018 ACCISA;07-06-2018;3133;0;176;1;Spese correnti;3;Acquisto di beni e servizi;2;Acquisto di servizi;5;Utenze e canoni;6;Gas;07-06-2018;
1401;1;0;"150,00";"150,00";A.N.U.T.E.L.; ;SALDO Fatt.n. 319  del 22/05/2018 PARTECIPAZIONE CORSO BERGAMIN RENIERO SABIN;07-06-2018;150;0;318;1;Spese correnti;3;Acquisto di beni e servizi;2;Acquisto di servizi;4;Acquisto di servizi per formazione e addestramento del personale dell'ente;999;Acquisto di servizi per altre spese per formazione e addestramento n.a.c.;07-06-2018;
1402;1;0;"192,00";"192,00";IMPRESA VERDE VICENZA S.R.L.; ;SALDO Fatt.n. 17VFAEL-22  del 22/11/2017 CORSO PER USO PRODOTTI FITOSANITARI;07-06-2018;150;0;687;1;Spese correnti;3;Acquisto di beni e servizi;2;Acquisto di servizi;4;Acquisto di servizi per formazione e addestramento del personale dell'ente;4;Acquisto di servizi per formazione obbligatoria;07-06-2018;
1403;1;0;"3.555,56";"3.555,56";MARGHERITA SOC. COOP. SOCIALE ONLUS;5342930550;SALDO Fatt.n. 87/E  del 30/04/2018 SERVIZIO ASSISTENZA DOMICILIARE MESE APRILE 2018;08-06-2018;3140;0;611;1;Spese correnti;3;Acquisto di beni e servizi;2;Acquisto di servizi;99;Altri servizi;999;Altri servizi diversi n.a.c.;08-06-2018;
1404;1;0;"470,93";"470,93";MARGHERITA SOC. COOP. SOCIALE ONLUS;5342930550;SALDO Fatt.n. 89/E  del 30/04/2018 SERVIZIO DI SOSTEGNO SOCIO EDUCATIVO MESE APRILE 2018;08-06-2018;3140;0;611;1;Spese correnti;3;Acquisto di beni e servizi;2;Acquisto di servizi;99;Altri servizi;999;Altri servizi diversi n.a.c.;08-06-2018;
1405;1;0;"1.999,99";"1.999,99";G.S. LUPIA;ZC60FD75E2;SALDO Fatt.n. 000001-2018-FE  del 25/05/2018 corrispettivo gestione aree adiacenti campo da calcio lupia anno 2017;08-06-2018;2839;0;783;1;Spese correnti;3;Acquisto di beni e servizi;2;Acquisto di servizi;99;Altri servizi;999;Altri servizi diversi n.a.c.;08-06-2018;
1406;1;0;"120,00";"120,00";INTERAZIONE SRL;Z122245C86;SALDO Fatt.n. 353/02  del 24/05/2018 BOLLETTINO ABBONAMENTO ANNO 2018;08-06-2018;329;2;203;1;Spese correnti;3;Acquisto di beni e servizi;2;Acquisto di servizi;5;Utenze e canoni;3;Accesso a banche dati e a pubblicazioni on line;08-06-2018;
1407;1;0;"515,08";"515,08";C.I.A. S.R.L.;Z1E232CC34;SALDO Fatt.n. 1  del 27/04/2018 MATERIALE VARIO;08-06-2018;1651;4;349;1;Spese correnti;3;Acquisto di beni e servizi;2;Acquisto di servizi;9;Manutenzione ordinaria e riparazioni;8;Manutenzione ordinaria e riparazioni di beni immobili;08-06-2018;
1408;1;0;"202,19";"202,19";IPAB COMM. A MICHELAZZO; ;SALDO Fatt.n. 34/B  del 30/04/2018 RETTE OSPITI CASA DI RIPOSO MICHELAZZO;08-06-2018;3201;0;153;1;Spese correnti;3;Acquisto di beni e servizi;2;Acquisto di servizi;15;Contratti di servizio pubblico;8;Contratti di servizio di assistenza sociale residenziale e semiresidenziale;08-06-2018;
1409;1;0;"304,25";"304,25";IPAB COMM. A MICHELAZZO; ;SALDO Fatt.n. 42/B  del 31/05/2018 RETTE OSPITI MESE MAGGIO 2018;08-06-2018;3201;0;153;1;Spese correnti;3;Acquisto di beni e servizi;2;Acquisto di servizi;15;Contratti di servizio pubblico;8;Contratti di servizio di assistenza sociale residenziale e semiresidenziale;08-06-2018;
1410;1;0;"296,58";"296,58";EDIT GRAF di ISEPPI STEFANO;Z492277FA5;SALDO Fatt.n. 2/521  del 01/06/2018 TESSERE PARCHEGGIO PERSONALIZZATE INVALIDI;08-06-2018;324;0;244;1;Spese correnti;3;Acquisto di beni e servizi;1;Acquisto di beni;2;Altri beni di consumo;1;"Carta, cancelleria e stampati";08-06-2018;
1411;1;0;"1.787,30";"1.787,30";DUAL SET S.R.L.;Z8923A70A5;SALDO Fatt.n. 15/E  del 31/05/2018 Sostituzione impianto di allarme  della Sede della Polizia Locale - Piazza Garibarldi - Sandrigo  VI;08-06-2018;928;0;434;1;Spese correnti;3;Acquisto di beni e servizi;2;Acquisto di servizi;9;Manutenzione ordinaria e riparazioni;8;Manutenzione ordinaria e riparazioni di beni immobili;08-06-2018;
1412;1;0;"5.400,00";"5.400,00";CIRCOLO ACLI - CENTRO DON MILANI; ;CONTRIBUTO AL CIRCOLO LOCALE "ACLI "DON MILANI" ANNO SCOLASTICO 2016/17. 3^ LIQUIDAZIONE.;08-06-2018;3115;0;607;1;Spese correnti;4;Trasferimenti correnti;4;Trasferimenti correnti a Istituzioni Sociali Private;1;Trasferimenti correnti a Istituzioni Sociali Private;1;Trasferimenti correnti a Istituzioni Sociali Private;08-06-2018;
1413;1;0;"2.879,93";"2.879,93";SO.RA.RIS. SPA; ;ACCONTO Fatt.n. 000081/PA  del 25/05/2018 GESTIONE STAZIONE TRAVASO;08-06-2018;2691;0;117;1;Spese correnti;3;Acquisto di beni e servizi;2;Acquisto di servizi;15;Contratti di servizio pubblico;4;Contratti di servizio per la raccolta rifiuti;08-06-2018;
1414;1;0;"8.893,45";"8.893,45";SO.RA.RIS. SPA; ;SALDO Fatt.n. 000081/PA  del 25/05/2018 GESTIONE STAZIONE TRAVASO;08-06-2018;2695;0;118;1;Spese correnti;3;Acquisto di beni e servizi;2;Acquisto di servizi;15;Contratti di servizio pubblico;5;Contratti di servizio per il conferimento in discarica dei rifiuti;08-06-2018;
1415;1;0;"839,50";"839,50";MINISTERO DELL'INTERNO; ;COMUNE DI SANDRIGO - CORRISPETTIVO PER IL RILASCIO DI N. 50 CIE EMESSE DAL 16.058.2018 AL 31.05.2018 -;08-06-2018;901;0;147;1;Spese correnti;4;Trasferimenti correnti;1;Trasferimenti correnti a Amministrazioni Pubbliche;1;Trasferimenti correnti a Amministrazioni Centrali;1;Trasferimenti correnti a Ministeri;08-06-2018;
1416;1;0;"650,00";"650,00";A.S.D. SANDRIGOSPORT; ;SALDO CONTRIBUTI ASSOCIAZIONI VARIE;08-06-2018;450;0;428;1;Spese correnti;4;Trasferimenti correnti;4;Trasferimenti correnti a Istituzioni Sociali Private;1;Trasferimenti correnti a Istituzioni Sociali Private;1;Trasferimenti correnti a Istituzioni Sociali Private;08-06-2018;
1417;1;0;"100,00";"100,00";ASSOCIAZIONE BASKET SANDRIGO; ;SALDO CONTRIBUTI ASSOCIAZIONI VARIE;08-06-2018;451;0;870;1;Spese correnti;4;Trasferimenti correnti;4;Trasferimenti correnti a Istituzioni Sociali Private;1;Trasferimenti correnti a Istituzioni Sociali Private;1;Trasferimenti correnti a Istituzioni Sociali Private;08-06-2018;
1418;1;0;"950,00";"950,00";ASSOCIAZIONE BASKET SANDRIGO; ;SALDO CONTRIBUTI ASSOCIAZIONI VARIE;08-06-2018;450;0;427;1;Spese correnti;4;Trasferimenti correnti;4;Trasferimenti correnti a Istituzioni Sociali Private;1;Trasferimenti correnti a Istituzioni Sociali Private;1;Trasferimenti correnti a Istituzioni Sociali Private;08-06-2018;
1419;1;0;"1.100,00";"1.100,00";ASSOCIAZIONE SPORTIVA DILETTANTISTICA VOLLEY SANDRIGO; ;LIQUIDAZIONE SALDO CONTRIBUTO ASSOCIAZIONE SPORTIVA 2017.;08-06-2018;450;0;430;1;Spese correnti;4;Trasferimenti correnti;4;Trasferimenti correnti a Istituzioni Sociali Private;1;Trasferimenti correnti a Istituzioni Sociali Private;1;Trasferimenti correnti a Istituzioni Sociali Private;08-06-2018;
1420;1;0;"134,20";"134,20";ESO RECYCLING SRL;ZB222BA752;SALDO Fatt.n. B000001  del 18/05/2018 APPARECCHIATURE FUORI USO;08-06-2018;2701;0;278;1;Spese correnti;3;Acquisto di beni e servizi;2;Acquisto di servizi;15;Contratti di servizio pubblico;5;Contratti di servizio per il conferimento in discarica dei rifiuti;08-06-2018;
1421;1;0;"225,00";"225,00";ANAC;7432019817;LAVORI DI RISTRUTTURAZIONE PALAZZO MARCONI  1^ E 2^ STRALCIO. LIQUIDAZIONE M.A.V.;08-06-2018;4031;0;800;2;Spese in conto capitale;2;Investimenti fissi lordi e acquisto di terreni;1;Beni materiali;10;"Beni immobili di valore culturale, storico ed artistico";999;"Beni immobili di valore culturale, storico ed artistico n.a.c.";08-06-2018;
1422;1;0;"5.519,22";"5.519,22";AZIENDA ULSS N. 8 BERICA; ;SALDO Fatt.n. K   201800000366  del 14/05/2018 INSERIMENTO RESIDENZIALE MINORI GEN-FEB 18;08-06-2018;2741;0;173;1;Spese correnti;3;Acquisto di beni e servizi;2;Acquisto di servizi;99;Altri servizi;999;Altri servizi diversi n.a.c.;08-06-2018;
1432;1;0;"14,65";"31,95";PERSONALE DIPENDENTE; ;STIPENDI MESE DI: GIUGNO 18;18-06-2018;104;0;39;1;Spese correnti;3;Acquisto di beni e servizi;2;Acquisto di servizi;2;"Organizzazione eventi, pubblicita` e servizi per trasferta";1;Rimborso per viaggio e trasloco;18-06-2018;
1432;2;0;"17,30";"31,95";PERSONALE DIPENDENTE; ;STIPENDI MESE DI: GIUGNO 18;18-06-2018;104;0;39;1;Spese correnti;3;Acquisto di beni e servizi;2;Acquisto di servizi;2;"Organizzazione eventi, pubblicita` e servizi per trasferta";1;Rimborso per viaggio e trasloco;18-06-2018;
1443;1;0;"7,80";"7,80";PERSONALE DIPENDENTE; ;STIPENDI MESE DI: GIUGNO 18;18-06-2018;113;0;40;1;Spese correnti;3;Acquisto di beni e servizi;2;Acquisto di servizi;2;"Organizzazione eventi, pubblicita` e servizi per trasferta";1;Rimborso per viaggio e trasloco;18-06-2018;
1454;1;0;"8,50";"8,50";PERSONALE DIPENDENTE; ;STIPENDI MESE DI: GIUGNO 18;18-06-2018;633;0;41;1;Spese correnti;3;Acquisto di beni e servizi;2;Acquisto di servizi;2;"Organizzazione eventi, pubblicita` e servizi per trasferta";1;Rimborso per viaggio e trasloco;18-06-2018;
1467;1;0;"44,40";"44,40";PERSONALE DIPENDENTE; ;STIPENDI MESE DI: GIUGNO 18;18-06-2018;703;0;42;1;Spese correnti;3;Acquisto di beni e servizi;2;Acquisto di servizi;2;"Organizzazione eventi, pubblicita` e servizi per trasferta";1;Rimborso per viaggio e trasloco;18-06-2018;
1487;1;0;"6,00";"6,00";PERSONALE DIPENDENTE; ;STIPENDI MESE DI: GIUGNO 18;18-06-2018;803;0;44;1;Spese correnti;3;Acquisto di beni e servizi;2;Acquisto di servizi;2;"Organizzazione eventi, pubblicita` e servizi per trasferta";1;Rimborso per viaggio e trasloco;18-06-2018;
1535;1;0;"5.333,70";"5.333,70";AMMINISTRATORI COMUNALI E CONSIGLIERI; ;STIPENDI MESE DI: GIUGNO 18;18-06-2018;20;0;8;1;Spese correnti;3;Acquisto di beni e servizi;2;Acquisto di servizi;1;Organi e incarichi istituzionali dell'amministrazione;1;Organi istituzionali dell'amministrazione - Indennità;18-06-2018;
1538;1;0;"1.220,00";"1.220,00";MORENO CASON - FABBRO;Z3522B258B;SALDO Fatt.n. 22  del 15/05/2018 FORNITURA E POSA CORRIMANO PRESSO RAMPA DI SCALA ACCESSO PRIMO E AL SECONDO PIANO BIBLIOTECA COMUNALE DI SANDRIGO;19-06-2018;1810;4;266;1;Spese correnti;3;Acquisto di beni e servizi;2;Acquisto di servizi;9;Manutenzione ordinaria e riparazioni;4;Manutenzione ordinaria e riparazioni di impianti e macchinari;19-06-2018;
1539;1;0;"618,05";"618,05";CEL NETWORK SRL;Z5A19D5FB3;SALDO Fatt.n. 1374  del 24/05/2018 QUOTIDIANO TELEMATICOPAWEB ANNO 2018;19-06-2018;329;2;336;1;Spese correnti;3;Acquisto di beni e servizi;2;Acquisto di servizi;5;Utenze e canoni;3;Accesso a banche dati e a pubblicazioni on line;19-06-2018;
1540;1;0;"870,80";"870,80";STUDIO LEGALE ASSOCIATO BERTO;Z89092F637;SALDO Fatt.n. 3PA  del 15/05/2018 SALDO CAUSA BORTOLIERO - POLATO;19-06-2018;500;0;285;1;Spese correnti;3;Acquisto di beni e servizi;2;Acquisto di servizi;11;Prestazioni professionali e specialistiche;6;Patrocinio legale;19-06-2018;
1541;1;0;"56,64";"56,64";AGENZIA DELLE ENTRATE - RISCOSSIONE; ;COD.ENTE 08323 - RIMBORSO SPESE ART.17 - ANNO 2017;19-06-2018;1115;0;1212;1;Spese correnti;3;Acquisto di beni e servizi;2;Acquisto di servizi;3;Aggi di riscossione;999;Altri aggi di riscossione n.a.c.;19-06-2018;
1542;1;0;"1.194,91";"1.194,91";CENTRO BIBLIOTECHE LOVAT SRL;ZAC2287ADB;SALDO Fatt.n. 196-18PA  del 23/05/2018 LIBRI PER BIBLIOTECA;19-06-2018;1795;0;260;1;Spese correnti;3;Acquisto di beni e servizi;1;Acquisto di beni;1;"Giornali, riviste e pubblicazioni";2;Pubblicazioni;19-06-2018;
1543;1;0;"488,00";"488,00";ASSOCIAZIONE CULTURALE ARENA;Z622271892;SALDO Fatt.n. 2PA  del 24/05/2018 UTILIZZO SALA ARENA PER SERATA DEL 13 MARZO 2018;19-06-2018;1811;0;258;1;Spese correnti;3;Acquisto di beni e servizi;2;Acquisto di servizi;99;Altri servizi;999;Altri servizi diversi n.a.c.;19-06-2018;
1544;1;0;"284,02";"284,02";EDIT GRAF di ISEPPI STEFANO;Z7620E2744;SALDO Fatt.n. 2/430  del 14/05/2018 RILEGATURA TESTI;19-06-2018;900;0;725;1;Spese correnti;3;Acquisto di beni e servizi;1;Acquisto di beni;2;Altri beni di consumo;1;"Carta, cancelleria e stampati";19-06-2018;
1545;1;0;"3.011,34";"3.011,34";OMESSO NOMINATIVO NEL RISPETTO DELLA NORMATIVA SULLA PROTEZIONE DATI PERSONALI; ;CONTRIBUTO A FAMIGLIA AFFIDATARIA: IMPEGNO DI SPESA E CONTESTUALE LIQUIDAZIONE.;19-06-2018;3211;0;499;1;Spese correnti;4;Trasferimenti correnti;2;Trasferimenti correnti a Famiglie;5;Altri trasferimenti a famiglie;999;Altri trasferimenti a famiglie n.a.c.;19-06-2018;
1546;1;0;"200,00";"200,00";GRUPPO DONATORI DI SANGUE GRUPPO "N.BERTOLDO" - FIDAS; ;EROGAZIONI CONTRIBUTI AD ASSOCIAZIONI ANNO 2018. IMPEGNO DI SPESA E CONTESTUALE LIQUIDAZIONE ANTICIPO 50%;20-06-2018;451;0;500;1;Spese correnti;4;Trasferimenti correnti;4;Trasferimenti correnti a Istituzioni Sociali Private;1;Trasferimenti correnti a Istituzioni Sociali Private;1;Trasferimenti correnti a Istituzioni Sociali Private;20-06-2018;
1547;1;0;"1.000,00";"1.000,00";ASSOCIAZIONE SANDRIGO TRENTA; ;EROGAZIONI CONTRIBUTI AD ASSOCIAZIONI ANNO 2018. IMPEGNO DI SPESA E CONTESTUALE LIQUIDAZIONE ANTICIPO 50%;20-06-2018;451;0;501;1;Spese correnti;4;Trasferimenti correnti;4;Trasferimenti correnti a Istituzioni Sociali Private;1;Trasferimenti correnti a Istituzioni Sociali Private;1;Trasferimenti correnti a Istituzioni Sociali Private;20-06-2018;
1548;1;0;"2.000,00";"2.000,00";ASSOCIAZIONE CULTURALE "PIETRO DE PELLEGRINI"; ;EROGAZIONI CONTRIBUTI AD ASSOCIAZIONI ANNO 2018. IMPEGNO DI SPESA E CONTESTUALE LIQUIDAZIONE ANTICIPO 50%;20-06-2018;451;0;502;1;Spese correnti;4;Trasferimenti correnti;4;Trasferimenti correnti a Istituzioni Sociali Private;1;Trasferimenti correnti a Istituzioni Sociali Private;1;Trasferimenti correnti a Istituzioni Sociali Private;20-06-2018;
1549;1;0;"4.150,00";"4.150,00";ASSOCIAZIONE PRO LOCO SANDRIGO; ;EROGAZIONI CONTRIBUTI AD ASSOCIAZIONI ANNO 2018. IMPEGNO DI SPESA E CONTESTUALE LIQUIDAZIONE ANTICIPO 50%;20-06-2018;3580;0;503;1;Spese correnti;4;Trasferimenti correnti;4;Trasferimenti correnti a Istituzioni Sociali Private;1;Trasferimenti correnti a Istituzioni Sociali Private;1;Trasferimenti correnti a Istituzioni Sociali Private;20-06-2018;
1550;1;0;"250,00";"250,00";A.S.D. SANDRIGOSPORT; ;EROGAZIONI CONTRIBUTI AD ASSOCIAZIONI ANNO 2018. IMPEGNO DI SPESA E CONTESTUALE LIQUIDAZIONE ANTICIPO 50%;20-06-2018;450;0;504;1;Spese correnti;4;Trasferimenti correnti;4;Trasferimenti correnti a Istituzioni Sociali Private;1;Trasferimenti correnti a Istituzioni Sociali Private;1;Trasferimenti correnti a Istituzioni Sociali Private;20-06-2018;
1551;1;0;"900,00";"900,00";ASSOCIAZIONE BASKET SANDRIGO; ;EROGAZIONI CONTRIBUTI AD ASSOCIAZIONI ANNO 2018. IMPEGNO DI SPESA E CONTESTUALE LIQUIDAZIONE ANTICIPO 50%;20-06-2018;450;0;505;1;Spese correnti;4;Trasferimenti correnti;4;Trasferimenti correnti a Istituzioni Sociali Private;1;Trasferimenti correnti a Istituzioni Sociali Private;1;Trasferimenti correnti a Istituzioni Sociali Private;20-06-2018;
1552;1;0;"3.291,20";"3.291,20";COOP.SOCIALE DI SOLIDARIETA' S.MARCO a r.l. O.N.L.U.S.;ZE021A05E0;SALDO Fatt.n. 75/01  del 31/05/2018 SERVIZIO CONDUZIONE ECOCENTRO;20-06-2018;2689;0;164;1;Spese correnti;3;Acquisto di beni e servizi;2;Acquisto di servizi;13;Servizi ausiliari per il funzionamento dell'ente;999;Altri servizi ausiliari n.a.c.;20-06-2018;
1553;1;0;"3.545,30";"3.545,30";ROSTICCERIA GASTRONOMIA CUNICO INES DI POLTRONIERI S.;Z2321D9C9E;SALDO Fatt.n. FATTPA 5_18  del 31/03/2018 PASTI CONSEGNATI NEL MESE DI MARZO;20-06-2018;3139;0;159;1;Spese correnti;3;Acquisto di beni e servizi;1;Acquisto di beni;2;Altri beni di consumo;11;Generi alimentari;20-06-2018;
1554;1;0;"2.934,25";"2.934,25";ROSTICCERIA GASTRONOMIA CUNICO INES DI POLTRONIERI S.;Z2321D9C9E;SALDO Fatt.n. FATTPA 7_18  del 30/04/2018 PASTI CONSEGNATI NEL MESE DI APRILE;20-06-2018;3139;0;159;1;Spese correnti;3;Acquisto di beni e servizi;1;Acquisto di beni;2;Altri beni di consumo;11;Generi alimentari;20-06-2018;
1555;1;0;"3.303,30";"3.303,30";ROSTICCERIA GASTRONOMIA CUNICO INES DI POLTRONIERI S.;Z2321D9C9E;SALDO Fatt.n. FATTPA 9_18  del 31/05/2018 PASTI CONSEGNATI NEL MESE DI MAGGIO;20-06-2018;3139;0;159;1;Spese correnti;3;Acquisto di beni e servizi;1;Acquisto di beni;2;Altri beni di consumo;11;Generi alimentari;20-06-2018;
1556;1;0;"433,10";"433,10";TRE R SRL;Z3123025F0;SALDO Fatt.n. 12P  del 31/05/2018 SCALA SERIE VERA 8 GRADINI;20-06-2018;2242;0;311;1;Spese correnti;3;Acquisto di beni e servizi;2;Acquisto di servizi;9;Manutenzione ordinaria e riparazioni;8;Manutenzione ordinaria e riparazioni di beni immobili;20-06-2018;
1557;1;0;"386,52";"386,52";EDIT GRAF di ISEPPI STEFANO;Z1B22EEF15;SALDO Fatt.n. 2/516  del 31/05/2018 STAMPA  IMBUSTAMENTO SPEDIZIONE BOLLETTAZIONE TARI IMU E TASI ANNO 2018;20-06-2018;1115;0;282;1;Spese correnti;3;Acquisto di beni e servizi;2;Acquisto di servizi;3;Aggi di riscossione;999;Altri aggi di riscossione n.a.c.;20-06-2018;
1558;1;0;"148,45";"148,45";COMMERCIALE '98 SRL;ZF721B7BC0;ACCONTO Fatt.n. 7/E  del 31/05/2018 materiale vario;20-06-2018;1640;0;116;1;Spese correnti;3;Acquisto di beni e servizi;1;Acquisto di beni;2;Altri beni di consumo;999;Altri beni e materiali di consumo n.a.c.;20-06-2018;
1559;1;0;"129,91";"129,91";COMMERCIALE '98 SRL;ZF721B7BC0;SALDO Fatt.n. 7/E  del 31/05/2018 materiale vario;20-06-2018;1640;0;344;1;Spese correnti;3;Acquisto di beni e servizi;1;Acquisto di beni;2;Altri beni di consumo;999;Altri beni e materiali di consumo n.a.c.;20-06-2018;
1560;1;0;"497,76";"497,76";COOP.SOCIALE DI SOLIDARIETA' S.MARCO a r.l. O.N.L.U.S.;ZC12319E08;SALDO Fatt.n. 87/01  del 31/05/2018 SERVIZIO SFALCIO ERBA;20-06-2018;3343;0;306;1;Spese correnti;3;Acquisto di beni e servizi;2;Acquisto di servizi;99;Altri servizi;999;Altri servizi diversi n.a.c.;20-06-2018;
1561;1;0;"521,55";"521,55";FONDERIA F.LLI VELO SRL;ZC9231B8B3;SALDO Fatt.n. 1800172  del 31/05/2018 MATERIALE VARIO;20-06-2018;3420;0;337;1;Spese correnti;3;Acquisto di beni e servizi;1;Acquisto di beni;2;Altri beni di consumo;999;Altri beni e materiali di consumo n.a.c.;20-06-2018;
1562;1;0;"921,10";"921,10";GLOBAL POWER SERVICE SPA;6239603B46;SALDO Fatt.n. 2018-V5-119  del 01/06/2018 CANONE MENSILE MANUTENZIONE ORDINARIA;20-06-2018;3302;0;128;1;Spese correnti;3;Acquisto di beni e servizi;2;Acquisto di servizi;9;Manutenzione ordinaria e riparazioni;4;Manutenzione ordinaria e riparazioni di impianti e macchinari;20-06-2018;
1563;1;0;"7.683,02";"7.683,02";GLOBAL POWER SERVICE SPA;6239603B46;SALDO Fatt.n. 2018-V5-118  del 01/06/2018 CANONE RISPARMIO ENERGETICO GIUGNO 2018;20-06-2018;3320;0;127;1;Spese correnti;3;Acquisto di beni e servizi;2;Acquisto di servizi;9;Manutenzione ordinaria e riparazioni;4;Manutenzione ordinaria e riparazioni di impianti e macchinari;20-06-2018;
1564;1;0;"4.280,68";"4.280,68";IL CASTORO SNC DI BEDIN GINO E MATTEO;Z9D22D0C6F;SALDO Fatt.n. 6E  del 30/05/2018 LAVORI PER SFALCIO ERBA;20-06-2018;3343;0;320;1;Spese correnti;3;Acquisto di beni e servizi;2;Acquisto di servizi;99;Altri servizi;999;Altri servizi diversi n.a.c.;20-06-2018;
1565;1;0;"65,00";"65,00";AMMINISTRAZIONE PROVINCIALE DI VICENZA; ;INTERVENTI PER ELIMINAZIONE BARRIERE ARCHITETTONICHE. RICHIESTA AUTORIZZAZIONE DI VI.ABILITA' PER REALIZZAZIONE ATTRAVERSAMENTO PEDONALE REGOLATO CON IMPIANTO SEMAFORICO A CHIAMATA LUNGO LA S.P. SCHIAVONESCA-MAROSTICANA. IMPEGNO DI SPESA E PAGAMENTO;20-06-2018;4038;0;510;2;Spese in conto capitale;2;Investimenti fissi lordi e acquisto di terreni;1;Beni materiali;9;Beni immobili;1;Fabbricati ad uso abitativo;20-06-2018;
1566;1;0;"761,87";"761,87";E.N.P.A. SEZIONE VICENZA;Z9E21AB929;SALDO Fatt.n. 809/PA  del 05/06/2018 ENPA;20-06-2018;1990;0;79;1;Spese correnti;3;Acquisto di beni e servizi;2;Acquisto di servizi;99;Altri servizi;999;Altri servizi diversi n.a.c.;20-06-2018;
1567;1;0;"157,87";"157,87";KUWAIT PETROLEUM ITALIA SPA;ZE3176A2E8;ACCONTO Fatt.n. PJ00140318  del 31/05/2018 CONSUMI CARBURANTE MESE MAGGIO 2018;20-06-2018;3182;0;252;1;Spese correnti;3;Acquisto di beni e servizi;1;Acquisto di beni;2;Altri beni di consumo;2;"Carburanti, combustibili e lubrificanti";20-06-2018;
1568;1;0;"1.225,72";"1.225,72";KUWAIT PETROLEUM ITALIA SPA;ZE3176A2E8;SALDO Fatt.n. PJ00140318  del 31/05/2018 CONSUMI CARBURANTE MESE MAGGIO 2018;20-06-2018;780;0;251;1;Spese correnti;3;Acquisto di beni e servizi;1;Acquisto di beni;2;Altri beni di consumo;2;"Carburanti, combustibili e lubrificanti";20-06-2018;
1569;1;0;"2.038,00";"2.038,00";EDIT GRAF di ISEPPI STEFANO;Z1B22EEF15;SALDO Fatt.n. 2/480  del 29/05/2018 SPESE POSTALI PER INVIO IMU  TASI 2018;20-06-2018;1115;2;283;1;Spese correnti;3;Acquisto di beni e servizi;2;Acquisto di servizi;16;Servizi amministrativi;2;Spese postali;20-06-2018;
1570;1;0;"320,00";"320,00";PUBLIKA SRL;_;SALDO Fatt.n. 1031/PA  del 05/06/2018 CORSO CONVEGNO CCNL;20-06-2018;150;0;243;1;Spese correnti;3;Acquisto di beni e servizi;2;Acquisto di servizi;4;Acquisto di servizi per formazione e addestramento del personale dell'ente;999;Acquisto di servizi per altre spese per formazione e addestramento n.a.c.;20-06-2018;
1571;1;0;"4,78";"4,78";AGENZIA DELLE ENTRATE - RISCOSSIONE; ;APPROVAZIONE RUOLO COATTIVO ORDINANZE-INGIUNZIONI ANNI 2004-2005 E 2006 - IMPEGNO PER SPESE DI RISCOSSIONE;20-06-2018;1115;0;611;1;Spese correnti;3;Acquisto di beni e servizi;2;Acquisto di servizi;3;Aggi di riscossione;999;Altri aggi di riscossione n.a.c.;20-06-2018;
1572;1;0;"44,44";"44,44";AGENZIA DELLE ENTRATE - RISCOSSIONE; ;APPROVAZIONE RUOLO TARIFFA RIFIUTI SVUOTAMENTI 2009 E PARTE FISSA 2010 - COMPENSO CONCESSIONARIO;20-06-2018;1115;0;918;1;Spese correnti;3;Acquisto di beni e servizi;2;Acquisto di servizi;3;Aggi di riscossione;999;Altri aggi di riscossione n.a.c.;20-06-2018;
1573;1;0;"24,10";"24,10";AGENZIA DELLE ENTRATE - RISCOSSIONE; ;RIDUZIONE ACCERTAMENTO - RUOLO SVUOTAMENTI ANNO 2010- E IMPEGNO DI SPESA A FAVORE DEL CONCESSIONARIO.;20-06-2018;1115;0;596;1;Spese correnti;3;Acquisto di beni e servizi;2;Acquisto di servizi;3;Aggi di riscossione;999;Altri aggi di riscossione n.a.c.;20-06-2018;
1574;1;0;"20,11";"20,11";AGENZIA DELLE ENTRATE - RISCOSSIONE; ;APPROVAZIONE PARTE FISSA RUOLO TARIFFA RIFIUTI ANNO 2011;20-06-2018;1115;0;756;1;Spese correnti;3;Acquisto di beni e servizi;2;Acquisto di servizi;3;Aggi di riscossione;999;Altri aggi di riscossione n.a.c.;20-06-2018;
1575;1;0;"18,74";"18,74";AGENZIA DELLE ENTRATE - RISCOSSIONE; ;APPROVAZIONE RUOLO PARTE FISSA TARIFFA RIFIUTI ANNO 2012;20-06-2018;1115;0;786;1;Spese correnti;3;Acquisto di beni e servizi;2;Acquisto di servizi;3;Aggi di riscossione;999;Altri aggi di riscossione n.a.c.;20-06-2018;
1576;1;0;"23,48";"23,48";AGENZIA DELLE ENTRATE - RISCOSSIONE; ;RIDUZIONE ACCERTAMENTO RELATIVO AL  RUOLO TARIFFA SMALTIMENTO RIFIUTI - SVUOTAMENTI ANNO 2011;20-06-2018;1115;0;804;1;Spese correnti;3;Acquisto di beni e servizi;2;Acquisto di servizi;3;Aggi di riscossione;999;Altri aggi di riscossione n.a.c.;20-06-2018;
1577;1;0;"20,59";"20,59";AGENZIA DELLE ENTRATE - RISCOSSIONE; ;RIDUZIONE ACCERTAMENTO RELATIVO AL RUOLO TARIFFA SMALTIMENTO RIFIUTI-SVUOTAMENTI ANNO 2012;20-06-2018;1115;0;460;1;Spese correnti;3;Acquisto di beni e servizi;2;Acquisto di servizi;3;Aggi di riscossione;999;Altri aggi di riscossione n.a.c.;20-06-2018;
1578;1;0;"87,39";"87,39";AGENZIA DELLE ENTRATE - RISCOSSIONE; ;APPROVAZIONE RUOLO COATTIVO ORDINANZE-INGIUNZIONI ANNI 2004-2005 E 2006 - IMPEGNO PER SPESE DI RISCOSSIONE;20-06-2018;1115;0;611;1;Spese correnti;3;Acquisto di beni e servizi;2;Acquisto di servizi;3;Aggi di riscossione;999;Altri aggi di riscossione n.a.c.;20-06-2018;
1579;1;0;"9,87";"9,87";AGENZIA DELLE ENTRATE - RISCOSSIONE; ;RIDUZIONE ACCERTAMENTO - RUOLO SVUOTAMENTI ANNO 2010- E IMPEGNO DI SPESA A FAVORE DEL CONCESSIONARIO.;20-06-2018;1115;0;596;1;Spese correnti;3;Acquisto di beni e servizi;2;Acquisto di servizi;3;Aggi di riscossione;999;Altri aggi di riscossione n.a.c.;20-06-2018;
1580;1;0;"11,07";"11,07";AGENZIA DELLE ENTRATE - RISCOSSIONE; ;APPROVAZIONE RUOLO TARIFFA RIFIUTI SVUOTAMENTI 2009 E PARTE FISSA 2010 - COMPENSO CONCESSIONARIO;20-06-2018;1115;0;918;1;Spese correnti;3;Acquisto di beni e servizi;2;Acquisto di servizi;3;Aggi di riscossione;999;Altri aggi di riscossione n.a.c.;20-06-2018;
1581;1;0;"302,73";"302,73";AGENZIA DELLE ENTRATE - RISCOSSIONE; ;APPROVAZIONE RUOLO PARTE FISSA TARIFFA RIFIUTI ANNO 2012;20-06-2018;1115;0;786;1;Spese correnti;3;Acquisto di beni e servizi;2;Acquisto di servizi;3;Aggi di riscossione;999;Altri aggi di riscossione n.a.c.;20-06-2018;
1582;1;0;"188,63";"188,63";AGENZIA DELLE ENTRATE - RISCOSSIONE; ;RIDUZIONE ACCERTAMENTO RELATIVO AL  RUOLO TARIFFA SMALTIMENTO RIFIUTI - SVUOTAMENTI ANNO 2011;20-06-2018;1115;0;804;1;Spese correnti;3;Acquisto di beni e servizi;2;Acquisto di servizi;3;Aggi di riscossione;999;Altri aggi di riscossione n.a.c.;20-06-2018;
1583;1;0;"3,84";"3,84";AGENZIA DELLE ENTRATE - RISCOSSIONE; ;RIDUZIONE ACCERTAMENTO RELATIVO AL RUOLO TARIFFA SMALTIMENTO RIFIUTI-SVUOTAMENTI ANNO 2012;20-06-2018;1115;0;460;1;Spese correnti;3;Acquisto di beni e servizi;2;Acquisto di servizi;3;Aggi di riscossione;999;Altri aggi di riscossione n.a.c.;20-06-2018;
1587;1;0;"3.843,00";"3.843,00";GARDEN FIORI E FOGLIE SOLUTION di De Pretto S.;ZC0230CCEC;SALDO Fatt.n. 000011-2018-PA  del 25/05/2018 POTATURA PINI MARITTIMI CENTRO COMUNALE TENNIS;21-06-2018;928;0;338;1;Spese correnti;3;Acquisto di beni e servizi;2;Acquisto di servizi;9;Manutenzione ordinaria e riparazioni;8;Manutenzione ordinaria e riparazioni di beni immobili;21-06-2018;
1588;1;0;"0,79";"0,79";AGENZIA DELLE ENTRATE - RISCOSSIONE; ;APPROVAZIONE RUOLO SUPPLETTIVO TARIFFA SMALTIMENTO RIFIUTI. SVUOTAMENTI 2008. - SPESE PER COMPENSO CONCESSIONARIO;21-06-2018;1115;0;436;1;Spese correnti;3;Acquisto di beni e servizi;2;Acquisto di servizi;3;Aggi di riscossione;999;Altri aggi di riscossione n.a.c.;21-06-2018;
1589;1;0;"1,47";"1,47";AGENZIA DELLE ENTRATE - RISCOSSIONE; ;APPROVAZIONE RUOLO TARIFFA RIFIUTI SVUOTAMENTI 2009 E PARTE FISSA 2010 - COMPENSO CONCESSIONARIO;21-06-2018;1115;0;918;1;Spese correnti;3;Acquisto di beni e servizi;2;Acquisto di servizi;3;Aggi di riscossione;999;Altri aggi di riscossione n.a.c.;21-06-2018;
1590;1;0;"0,51";"0,51";AGENZIA DELLE ENTRATE - RISCOSSIONE; ;RIDUZIONE ACCERTAMENTO - RUOLO SVUOTAMENTI ANNO 2010- E IMPEGNO DI SPESA A FAVORE DEL CONCESSIONARIO.;21-06-2018;1115;0;596;1;Spese correnti;3;Acquisto di beni e servizi;2;Acquisto di servizi;3;Aggi di riscossione;999;Altri aggi di riscossione n.a.c.;21-06-2018;
1591;1;0;"19,86";"19,86";AGENZIA DELLE ENTRATE - RISCOSSIONE; ;APPROVAZIONE PARTE FISSA RUOLO TARIFFA RIFIUTI ANNO 2011;21-06-2018;1115;0;756;1;Spese correnti;3;Acquisto di beni e servizi;2;Acquisto di servizi;3;Aggi di riscossione;999;Altri aggi di riscossione n.a.c.;21-06-2018;
1592;1;0;"87,93";"87,93";AGENZIA DELLE ENTRATE - RISCOSSIONE; ;APPROVAZIONE RUOLO PARTE FISSA TARIFFA RIFIUTI ANNO 2012;21-06-2018;1115;0;786;1;Spese correnti;3;Acquisto di beni e servizi;2;Acquisto di servizi;3;Aggi di riscossione;999;Altri aggi di riscossione n.a.c.;21-06-2018;
1593;1;0;"45,40";"45,40";AGENZIA DELLE ENTRATE - RISCOSSIONE; ;RIDUZIONE ACCERTAMENTO RELATIVO AL  RUOLO TARIFFA SMALTIMENTO RIFIUTI - SVUOTAMENTI ANNO 2011;21-06-2018;1115;0;804;1;Spese correnti;3;Acquisto di beni e servizi;2;Acquisto di servizi;3;Aggi di riscossione;999;Altri aggi di riscossione n.a.c.;21-06-2018;
1594;1;0;"22,26";"22,26";AGENZIA DELLE ENTRATE - RISCOSSIONE; ;RIDUZIONE ACCERTAMENTO RELATIVO AL RUOLO TARIFFA SMALTIMENTO RIFIUTI-SVUOTAMENTI ANNO 2012;21-06-2018;1115;0;460;1;Spese correnti;3;Acquisto di beni e servizi;2;Acquisto di servizi;3;Aggi di riscossione;999;Altri aggi di riscossione n.a.c.;21-06-2018;
1595;1;0;"3,32";"3,32";AGENZIA DELLE ENTRATE - RISCOSSIONE; ;APPROVAZIONE RUOLO COATTIVO ICI;21-06-2018;1115;0;324;1;Spese correnti;3;Acquisto di beni e servizi;2;Acquisto di servizi;3;Aggi di riscossione;999;Altri aggi di riscossione n.a.c.;21-06-2018;
1596;1;0;"0,90";"0,90";AGENZIA DELLE ENTRATE - RISCOSSIONE; ;APPROVAZIONE RUOLO COATTIVO ORDINANZE-INGIUNZIONI ANNI 2004-2006 E 2008;21-06-2018;1115;0;472;1;Spese correnti;3;Acquisto di beni e servizi;2;Acquisto di servizi;3;Aggi di riscossione;999;Altri aggi di riscossione n.a.c.;21-06-2018;
1597;1;0;"4,05";"4,05";AGENZIA DELLE ENTRATE - RISCOSSIONE; ;APPROVAZIONE RUOLO COATTIVO ORDINANZE-INGIUNZIONI ANNI 2004-2006 E 2008;21-06-2018;1115;0;472;1;Spese correnti;3;Acquisto di beni e servizi;2;Acquisto di servizi;3;Aggi di riscossione;999;Altri aggi di riscossione n.a.c.;21-06-2018;
1598;1;0;"13,61";"13,61";AGENZIA DELLE ENTRATE - RISCOSSIONE; ;APPROVAZIONE RUOLO COATTIVO ORDINANZE-INGIUNZIONI ANNI 2004-2006 E 2008;21-06-2018;1115;0;472;1;Spese correnti;3;Acquisto di beni e servizi;2;Acquisto di servizi;3;Aggi di riscossione;999;Altri aggi di riscossione n.a.c.;21-06-2018;
1599;1;0;"19,16";"19,16";AGENZIA DELLE ENTRATE - RISCOSSIONE; ;APPROVAZIONE RUOLO COATTIVO ORDINANZE-INGIUNZIONI ANNI 2004-2006 E 2008;21-06-2018;1115;0;472;1;Spese correnti;3;Acquisto di beni e servizi;2;Acquisto di servizi;3;Aggi di riscossione;999;Altri aggi di riscossione n.a.c.;21-06-2018;
1600;1;0;"1,17";"1,17";AGENZIA DELLE ENTRATE - RISCOSSIONE; ;APPROVAZIONE RUOLO COATTIVO ORDINANZE-INGIUNZIONI ANNI 2004-2006 E 2008;21-06-2018;1115;0;472;1;Spese correnti;3;Acquisto di beni e servizi;2;Acquisto di servizi;3;Aggi di riscossione;999;Altri aggi di riscossione n.a.c.;21-06-2018;
1601;1;0;"4,54";"4,54";AGENZIA DELLE ENTRATE - RISCOSSIONE; ;APPROVAZIONE RUOLO COATTIVO ORDINANZE-INGIUNZIONI ANNI 2004-2006 E 2008;21-06-2018;1115;0;472;1;Spese correnti;3;Acquisto di beni e servizi;2;Acquisto di servizi;3;Aggi di riscossione;999;Altri aggi di riscossione n.a.c.;21-06-2018;
1602;1;0;"3,23";"3,23";AGENZIA DELLE ENTRATE - RISCOSSIONE; ;APPROVAZIONE RUOLO COATTIVO ORDINANZE-INGIUNZIONI ANNI 2004-2006 E 2008;21-06-2018;1115;0;472;1;Spese correnti;3;Acquisto di beni e servizi;2;Acquisto di servizi;3;Aggi di riscossione;999;Altri aggi di riscossione n.a.c.;21-06-2018;
1603;1;0;"16,38";"16,38";AGENZIA DELLE ENTRATE - RISCOSSIONE; ;APPROVAZIONE RUOLO COATTIVO ORDINANZE-INGIUNZIONI ANNI 2004-2006 E 2008;21-06-2018;1115;0;472;1;Spese correnti;3;Acquisto di beni e servizi;2;Acquisto di servizi;3;Aggi di riscossione;999;Altri aggi di riscossione n.a.c.;21-06-2018;
1604;1;0;"17,63";"17,63";AGENZIA DELLE ENTRATE - RISCOSSIONE; ;APPROVAZIONE RUOLO COATTIVO ORDINANZE-INGIUNZIONI ANNI 2004-2006 E 2008;21-06-2018;1115;0;472;1;Spese correnti;3;Acquisto di beni e servizi;2;Acquisto di servizi;3;Aggi di riscossione;999;Altri aggi di riscossione n.a.c.;21-06-2018;
1605;1;0;"4,69";"4,69";AGENZIA DELLE ENTRATE - RISCOSSIONE; ;APPROVAZIONE RUOLO COATTIVO ORDINANZE-INGIUNZIONI ANNI 2004-2006 E 2008;21-06-2018;1115;0;472;1;Spese correnti;3;Acquisto di beni e servizi;2;Acquisto di servizi;3;Aggi di riscossione;999;Altri aggi di riscossione n.a.c.;21-06-2018;
1606;1;0;"3,77";"3,77";AGENZIA DELLE ENTRATE - RISCOSSIONE; ;APPROVAZIONE RUOLO COATTIVO ORDINANZE-INGIUNZIONI ANNI 2004-2006 E 2008;21-06-2018;1115;0;472;1;Spese correnti;3;Acquisto di beni e servizi;2;Acquisto di servizi;3;Aggi di riscossione;999;Altri aggi di riscossione n.a.c.;21-06-2018;
1607;1;0;"0,09";"0,09";AGENZIA DELLE ENTRATE - RISCOSSIONE; ;APPROVAZIONE RUOLO COATTIVO ORDINANZE-INGIUNZIONI ANNI 2004-2006 E 2008;21-06-2018;1115;0;472;1;Spese correnti;3;Acquisto di beni e servizi;2;Acquisto di servizi;3;Aggi di riscossione;999;Altri aggi di riscossione n.a.c.;21-06-2018;
1608;1;0;"18,19";"18,19";AGENZIA DELLE ENTRATE - RISCOSSIONE; ;APPROVAZIONE RUOLO COATTIVO ORDINANZE-INGIUNZIONI ANNI 2004-2006 E 2008;21-06-2018;1115;0;472;1;Spese correnti;3;Acquisto di beni e servizi;2;Acquisto di servizi;3;Aggi di riscossione;999;Altri aggi di riscossione n.a.c.;21-06-2018;
1609;1;0;"52,36";"52,36";AGENZIA DELLE ENTRATE - RISCOSSIONE; ;APPROVAZIONE RUOLO COATTIVO ORDINANZE-INGIUNZIONI ANNI 2004-2006 E 2008;21-06-2018;1115;0;472;1;Spese correnti;3;Acquisto di beni e servizi;2;Acquisto di servizi;3;Aggi di riscossione;999;Altri aggi di riscossione n.a.c.;21-06-2018;
1610;1;0;"3,93";"3,93";AGENZIA DELLE ENTRATE - RISCOSSIONE; ;APPROVAZIONE RUOLO COATTIVO ORDINANZE-INGIUNZIONI ANNI 2004-2006 E 2008;21-06-2018;1115;0;472;1;Spese correnti;3;Acquisto di beni e servizi;2;Acquisto di servizi;3;Aggi di riscossione;999;Altri aggi di riscossione n.a.c.;21-06-2018;
1611;1;0;"16,12";"16,12";AGENZIA DELLE ENTRATE - RISCOSSIONE; ;APPROVAZIONE RUOLO COATTIVO ORDINANZE-INGIUNZIONI ANNI 2004-2006 E 2008;21-06-2018;1115;0;472;1;Spese correnti;3;Acquisto di beni e servizi;2;Acquisto di servizi;3;Aggi di riscossione;999;Altri aggi di riscossione n.a.c.;21-06-2018;
1612;1;0;"14,69";"14,69";AGENZIA DELLE ENTRATE - RISCOSSIONE; ;APPROVAZIONE RUOLO COATTIVO ORDINANZE-INGIUNZIONI ANNI 2004-2006 E 2008;21-06-2018;1115;0;472;1;Spese correnti;3;Acquisto di beni e servizi;2;Acquisto di servizi;3;Aggi di riscossione;999;Altri aggi di riscossione n.a.c.;21-06-2018;
1613;1;0;"33,31";"33,31";AGENZIA DELLE ENTRATE - RISCOSSIONE; ;APPROVAZIONE RUOLO COATTIVO ORDINANZE-INGIUNZIONI ANNI 2004-2006 E 2008;21-06-2018;1115;0;472;1;Spese correnti;3;Acquisto di beni e servizi;2;Acquisto di servizi;3;Aggi di riscossione;999;Altri aggi di riscossione n.a.c.;21-06-2018;
1614;1;0;"75,64";"75,64";GLOBAL POWER SPA;622385037F;(SOS. 1078) - ACCONTO Fatt.n. V0/68558  del 01/06/2018 CONSUMI E.E. MESE MAGGIO 2018 - ECOCENTRO;22-06-2018;2685;0;60;1;Spese correnti;3;Acquisto di beni e servizi;2;Acquisto di servizi;5;Utenze e canoni;4;Energia elettrica;22-06-2018;
1615;1;0;"151,04";"891,14";GLOBAL POWER SPA;622385037F;(SOS. 1082/P) - ACCONTO Fatt.n. V0/68562  del 01/06/2018 CONSUMI ENERGIA ELETTRICE MESE DI MAGGIO 2018 SCUOLE;22-06-2018;259;0;51;1;Spese correnti;3;Acquisto di beni e servizi;2;Acquisto di servizi;5;Utenze e canoni;4;Energia elettrica;22-06-2018;
1615;2;0;"740,10";"891,14";GLOBAL POWER SPA;622385037F;(SOS. 1084/P) - ACCONTO Fatt.n. V0/68563  del 01/06/2018 CONSUMI ENERGIA ELETTRICA MESE DI MAGGIO 2018- VARIE;22-06-2018;259;0;51;1;Spese correnti;3;Acquisto di beni e servizi;2;Acquisto di servizi;5;Utenze e canoni;4;Energia elettrica;22-06-2018;
1616;1;0;"77,36";"1.137,80";GLOBAL POWER SPA;622385037F;(SOS. 1080) - ACCONTO Fatt.n. V0/68559  del 01/06/2018  CONSUMI ENERGIA ELETTRICA MESE MAGGIO 2018 PALAZZINA TRISSINO;22-06-2018;938;0;52;1;Spese correnti;3;Acquisto di beni e servizi;2;Acquisto di servizi;5;Utenze e canoni;4;Energia elettrica;22-06-2018;
1616;2;0;"93,02";"1.137,80";GLOBAL POWER SPA;622385037F;(SOS. 1081) - ACCONTO Fatt.n. V0/68560  del 01/06/2018 consumi di energia elettrica mese di maggio 2018 CENTRO DIREZIONALE MARCONI;22-06-2018;938;0;52;1;Spese correnti;3;Acquisto di beni e servizi;2;Acquisto di servizi;5;Utenze e canoni;4;Energia elettrica;22-06-2018;
1616;3;0;"967,42";"1.137,80";GLOBAL POWER SPA;622385037F;(SOS. 1084/P) - ACCONTO Fatt.n. V0/68563  del 01/06/2018 CONSUMI ENERGIA ELETTRICA MESE DI MAGGIO 2018- VARIE;22-06-2018;938;0;52;1;Spese correnti;3;Acquisto di beni e servizi;2;Acquisto di servizi;5;Utenze e canoni;4;Energia elettrica;22-06-2018;
1617;1;0;"172,00";"376,64";GLOBAL POWER SPA;622385037F;(SOS. 1084/P) - ACCONTO Fatt.n. V0/68563  del 01/06/2018 CONSUMI ENERGIA ELETTRICA MESE DI MAGGIO 2018- VARIE;22-06-2018;1432;0;53;1;Spese correnti;3;Acquisto di beni e servizi;2;Acquisto di servizi;5;Utenze e canoni;4;Energia elettrica;22-06-2018;
1617;2;0;"204,64";"376,64";GLOBAL POWER SPA;622385037F;(SOS. 1082/P) - ACCONTO Fatt.n. V0/68562  del 01/06/2018 CONSUMI ENERGIA ELETTRICE MESE DI MAGGIO 2018 SCUOLE;22-06-2018;1432;0;53;1;Spese correnti;3;Acquisto di beni e servizi;2;Acquisto di servizi;5;Utenze e canoni;4;Energia elettrica;22-06-2018;
1618;1;0;"990,14";"990,14";GLOBAL POWER SPA;622385037F;(SOS. 1082/P) - ACCONTO Fatt.n. V0/68562  del 01/06/2018 CONSUMI ENERGIA ELETTRICE MESE DI MAGGIO 2018 SCUOLE;22-06-2018;1573;0;54;1;Spese correnti;3;Acquisto di beni e servizi;2;Acquisto di servizi;5;Utenze e canoni;4;Energia elettrica;22-06-2018;
1619;1;0;"320,90";"775,77";GLOBAL POWER SPA;622385037F;(SOS. 1084/P) - ACCONTO Fatt.n. V0/68563  del 01/06/2018 CONSUMI ENERGIA ELETTRICA MESE DI MAGGIO 2018- VARIE;22-06-2018;1651;1;55;1;Spese correnti;3;Acquisto di beni e servizi;2;Acquisto di servizi;5;Utenze e canoni;4;Energia elettrica;22-06-2018;
1619;2;0;"454,87";"775,77";GLOBAL POWER SPA;622385037F;(SOS. 1082/P) - ACCONTO Fatt.n. V0/68562  del 01/06/2018 CONSUMI ENERGIA ELETTRICE MESE DI MAGGIO 2018 SCUOLE;22-06-2018;1651;1;55;1;Spese correnti;3;Acquisto di beni e servizi;2;Acquisto di servizi;5;Utenze e canoni;4;Energia elettrica;22-06-2018;
1620;1;0;"688,33";"688,33";GLOBAL POWER SPA;622385037F;(SOS. 1084/P) - ACCONTO Fatt.n. V0/68563  del 01/06/2018 CONSUMI ENERGIA ELETTRICA MESE DI MAGGIO 2018- VARIE;22-06-2018;1810;0;56;1;Spese correnti;3;Acquisto di beni e servizi;2;Acquisto di servizi;5;Utenze e canoni;4;Energia elettrica;22-06-2018;
1621;1;0;"158,39";"158,39";GLOBAL POWER SPA;622385037F;(SOS. 1083) - ACCONTO Fatt.n. V0/68564  del 01/06/2018 CONSUMO ENERGIA MESE DI MAGGIO 2018 CIMITERI;22-06-2018;2240;0;57;1;Spese correnti;3;Acquisto di beni e servizi;2;Acquisto di servizi;5;Utenze e canoni;4;Energia elettrica;22-06-2018;
1622;1;0;"86,91";"86,91";GLOBAL POWER SPA;622385037F;(SOS. 1084/P) - ACCONTO Fatt.n. V0/68563  del 01/06/2018 CONSUMI ENERGIA ELETTRICA MESE DI MAGGIO 2018- VARIE;22-06-2018;3147;0;58;1;Spese correnti;3;Acquisto di beni e servizi;2;Acquisto di servizi;5;Utenze e canoni;4;Energia elettrica;22-06-2018;
1623;1;0;"69,66";"3.411,50";GLOBAL POWER SPA;622385037F;(SOS. 1084/P) - ACCONTO Fatt.n. V0/68563  del 01/06/2018 CONSUMI ENERGIA ELETTRICA MESE DI MAGGIO 2018- VARIE;22-06-2018;3303;0;59;1;Spese correnti;3;Acquisto di beni e servizi;2;Acquisto di servizi;5;Utenze e canoni;4;Energia elettrica;22-06-2018;
1623;2;0;"3.341,84";"3.411,50";GLOBAL POWER SPA;622385037F;(SOS. 1079) - ACCONTO Fatt.n. V0/68561  del 01/06/2018 FATTURA ENERGIA ELETTRICA MESE DI MAGGIO 2018 ILLUMINAZIONE PUBBLICA;22-06-2018;3303;0;59;1;Spese correnti;3;Acquisto di beni e servizi;2;Acquisto di servizi;5;Utenze e canoni;4;Energia elettrica;22-06-2018;
1624;1;0;"16,64";"16,64";GLOBAL POWER SPA;622385037F;SALDO Fatt.n. V0/68558  del 01/06/2018 CONSUMI E.E. MESE MAGGIO 2018 - ECOCENTRO;22-06-2018;2685;0;60;1;Spese correnti;3;Acquisto di beni e servizi;2;Acquisto di servizi;5;Utenze e canoni;4;Energia elettrica;22-06-2018;
1625;1;0;"33,23";"196,05";GLOBAL POWER SPA;622385037F;ACCONTO Fatt.n. V0/68562  del 01/06/2018 CONSUMI ENERGIA ELETTRICE MESE DI MAGGIO 2018 SCUOLE;22-06-2018;259;0;51;1;Spese correnti;3;Acquisto di beni e servizi;2;Acquisto di servizi;5;Utenze e canoni;4;Energia elettrica;22-06-2018;
1625;2;0;"162,82";"196,05";GLOBAL POWER SPA;622385037;ACCONTO Fatt.n. V0/68563  del 01/06/2018 CONSUMI ENERGIA ELETTRICA MESE DI MAGGIO 2018- VARIE;22-06-2018;259;0;51;1;Spese correnti;3;Acquisto di beni e servizi;2;Acquisto di servizi;5;Utenze e canoni;4;Energia elettrica;22-06-2018;
1626;1;0;"7,74";"241,03";GLOBAL POWER SPA;622385037F;SALDO Fatt.n. V0/68559  del 01/06/2018  CONSUMI ENERGIA ELETTRICA MESE MAGGIO 2018 PALAZZINA TRISSINO;22-06-2018;938;0;52;1;Spese correnti;3;Acquisto di beni e servizi;2;Acquisto di servizi;5;Utenze e canoni;4;Energia elettrica;22-06-2018;
1626;2;0;"20,46";"241,03";GLOBAL POWER SPA;622385037;SALDO Fatt.n. V0/68560  del 01/06/2018 consumi di energia elettrica mese di maggio 2018 CENTRO DIREZIONALE MARCONI;22-06-2018;938;0;52;1;Spese correnti;3;Acquisto di beni e servizi;2;Acquisto di servizi;5;Utenze e canoni;4;Energia elettrica;22-06-2018;
1626;3;0;"212,83";"241,03";GLOBAL POWER SPA;622385037;ACCONTO Fatt.n. V0/68563  del 01/06/2018 CONSUMI ENERGIA ELETTRICA MESE DI MAGGIO 2018- VARIE;22-06-2018;938;0;52;1;Spese correnti;3;Acquisto di beni e servizi;2;Acquisto di servizi;5;Utenze e canoni;4;Energia elettrica;22-06-2018;
1627;1;0;"17,20";"37,66";GLOBAL POWER SPA;622385037;ACCONTO Fatt.n. V0/68563  del 01/06/2018 CONSUMI ENERGIA ELETTRICA MESE DI MAGGIO 2018- VARIE;22-06-2018;1432;0;53;1;Spese correnti;3;Acquisto di beni e servizi;2;Acquisto di servizi;5;Utenze e canoni;4;Energia elettrica;22-06-2018;
1627;2;0;"20,46";"37,66";GLOBAL POWER SPA;622385037F;ACCONTO Fatt.n. V0/68562  del 01/06/2018 CONSUMI ENERGIA ELETTRICE MESE DI MAGGIO 2018 SCUOLE;22-06-2018;1432;0;53;1;Spese correnti;3;Acquisto di beni e servizi;2;Acquisto di servizi;5;Utenze e canoni;4;Energia elettrica;22-06-2018;
1628;1;0;"99,01";"99,01";GLOBAL POWER SPA;622385037F;ACCONTO Fatt.n. V0/68562  del 01/06/2018 CONSUMI ENERGIA ELETTRICE MESE DI MAGGIO 2018 SCUOLE;22-06-2018;1573;0;54;1;Spese correnti;3;Acquisto di beni e servizi;2;Acquisto di servizi;5;Utenze e canoni;4;Energia elettrica;22-06-2018;
1629;1;0;"45,49";"116,09";GLOBAL POWER SPA;622385037F;SALDO Fatt.n. V0/68562  del 01/06/2018 CONSUMI ENERGIA ELETTRICE MESE DI MAGGIO 2018 SCUOLE;22-06-2018;1651;1;55;1;Spese correnti;3;Acquisto di beni e servizi;2;Acquisto di servizi;5;Utenze e canoni;4;Energia elettrica;22-06-2018;
1629;2;0;"70,60";"116,09";GLOBAL POWER SPA;622385037;ACCONTO Fatt.n. V0/68563  del 01/06/2018 CONSUMI ENERGIA ELETTRICA MESE DI MAGGIO 2018- VARIE;22-06-2018;1651;1;55;1;Spese correnti;3;Acquisto di beni e servizi;2;Acquisto di servizi;5;Utenze e canoni;4;Energia elettrica;22-06-2018;
1630;1;0;"151,43";"151,43";GLOBAL POWER SPA;622385037;ACCONTO Fatt.n. V0/68563  del 01/06/2018 CONSUMI ENERGIA ELETTRICA MESE DI MAGGIO 2018- VARIE;22-06-2018;1810;0;56;1;Spese correnti;3;Acquisto di beni e servizi;2;Acquisto di servizi;5;Utenze e canoni;4;Energia elettrica;22-06-2018;
1631;1;0;"34,85";"34,85";GLOBAL POWER SPA;622385037;SALDO Fatt.n. V0/68564  del 01/06/2018 CONSUMO ENERGIA MESE DI MAGGIO 2018 CIMITERI;22-06-2018;2240;0;57;1;Spese correnti;3;Acquisto di beni e servizi;2;Acquisto di servizi;5;Utenze e canoni;4;Energia elettrica;22-06-2018;
1632;1;0;"19,12";"19,12";GLOBAL POWER SPA;622385037;ACCONTO Fatt.n. V0/68563  del 01/06/2018 CONSUMI ENERGIA ELETTRICA MESE DI MAGGIO 2018- VARIE;22-06-2018;3147;0;58;1;Spese correnti;3;Acquisto di beni e servizi;2;Acquisto di servizi;5;Utenze e canoni;4;Energia elettrica;22-06-2018;
1633;1;0;"15,33";"750,53";GLOBAL POWER SPA;622385037;SALDO Fatt.n. V0/68563  del 01/06/2018 CONSUMI ENERGIA ELETTRICA MESE DI MAGGIO 2018- VARIE;22-06-2018;3303;0;59;1;Spese correnti;3;Acquisto di beni e servizi;2;Acquisto di servizi;5;Utenze e canoni;4;Energia elettrica;22-06-2018;
1633;2;0;"735,20";"750,53";GLOBAL POWER SPA;622385037;SALDO Fatt.n. V0/68561  del 01/06/2018 FATTURA ENERGIA ELETTRICA MESE DI MAGGIO 2018 ILLUMINAZIONE PUBBLICA;22-06-2018;3303;0;59;1;Spese correnti;3;Acquisto di beni e servizi;2;Acquisto di servizi;5;Utenze e canoni;4;Energia elettrica;22-06-2018;
1634;1;0;"990,00";"4.475,00";OMESSO NOMINATIVO NEL RISPETTO DELLA NORMATIVA SULLA PROTEZIONE DATI PERSONALI; ;EROGAZIONE CONTRIBUTI ECONOMICI AD INTEGRAZIONE DEL MINIMO VITALE. IMPEGNO DI SPESA E CONTESTUALE LIQUIDAZIONE.;28-06-2018;3220;0;516;1;Spese correnti;4;Trasferimenti correnti;2;Trasferimenti correnti a Famiglie;2;Interventi assistenziali;999;Altri assegni e sussidi assistenziali;28-06-2018;
1634;2;0;"995,00";"4.475,00";OMESSO NOMINATIVO NEL RISPETTO DELLA NORMATIVA SULLA PROTEZIONE DATI PERSONALI; ;EROGAZIONE CONTRIBUTI ECONOMICI AD INTEGRAZIONE DEL MINIMO VITALE. IMPEGNO DI SPESA E CONTESTUALE LIQUIDAZIONE.;28-06-2018;3220;0;516;1;Spese correnti;4;Trasferimenti correnti;2;Trasferimenti correnti a Famiglie;2;Interventi assistenziali;999;Altri assegni e sussidi assistenziali;28-06-2018;
1634;3;0;"30,00";"4.475,00";OMESSO NOMINATIVO NEL RISPETTO DELLA NORMATIVA SULLA PROTEZIONE DATI PERSONALI; ;EROGAZIONE CONTRIBUTI ECONOMICI AD INTEGRAZIONE DEL MINIMO VITALE. IMPEGNO DI SPESA E CONTESTUALE LIQUIDAZIONE.;28-06-2018;3220;0;516;1;Spese correnti;4;Trasferimenti correnti;2;Trasferimenti correnti a Famiglie;2;Interventi assistenziali;999;Altri assegni e sussidi assistenziali;28-06-2018;
1634;4;0;"600,00";"4.475,00";OMESSO NOMINATIVO NEL RISPETTO DELLA NORMATIVA SULLA PROTEZIONE DATI PERSONALI; ;EROGAZIONE CONTRIBUTI ECONOMICI AD INTEGRAZIONE DEL MINIMO VITALE. IMPEGNO DI SPESA E CONTESTUALE LIQUIDAZIONE.;28-06-2018;3220;0;516;1;Spese correnti;4;Trasferimenti correnti;2;Trasferimenti correnti a Famiglie;2;Interventi assistenziali;999;Altri assegni e sussidi assistenziali;28-06-2018;
1634;5;0;"750,00";"4.475,00";OMESSO NOMINATIVO NEL RISPETTO DELLA NORMATIVA SULLA PROTEZIONE DATI PERSONALI; ;EROGAZIONE CONTRIBUTI ECONOMICI AD INTEGRAZIONE DEL MINIMO VITALE. IMPEGNO DI SPESA E CONTESTUALE LIQUIDAZIONE.;28-06-2018;3220;0;516;1;Spese correnti;4;Trasferimenti correnti;2;Trasferimenti correnti a Famiglie;2;Interventi assistenziali;999;Altri assegni e sussidi assistenziali;28-06-2018;
1634;6;0;"910,00";"4.475,00";OMESSO NOMINATIVO NEL RISPETTO DELLA NORMATIVA SULLA PROTEZIONE DATI PERSONALI; ;EROGAZIONE CONTRIBUTI ECONOMICI AD INTEGRAZIONE DEL MINIMO VITALE. IMPEGNO DI SPESA E CONTESTUALE LIQUIDAZIONE.;28-06-2018;3220;0;516;1;Spese correnti;4;Trasferimenti correnti;2;Trasferimenti correnti a Famiglie;2;Interventi assistenziali;999;Altri assegni e sussidi assistenziali;28-06-2018;
1634;7;0;"200,00";"4.475,00";OMESSO NOMINATIVO NEL RISPETTO DELLA NORMATIVA SULLA PROTEZIONE DATI PERSONALI; ;EROGAZIONE CONTRIBUTI ECONOMICI AD INTEGRAZIONE DEL MINIMO VITALE. IMPEGNO DI SPESA E CONTESTUALE LIQUIDAZIONE.;28-06-2018;3220;0;516;1;Spese correnti;4;Trasferimenti correnti;2;Trasferimenti correnti a Famiglie;2;Interventi assistenziali;999;Altri assegni e sussidi assistenziali;28-06-2018;
1635;1;0;"654,81";"654,81";MINISTERO DELL'INTERNO; ;COMUNE DI SANDRIGO - CORRISPETTIVO PER IL RILASCIO DI N. 39 CIE EMESSE DAL 01/06/2018 AL 15/06/2018;28-06-2018;901;0;147;1;Spese correnti;4;Trasferimenti correnti;1;Trasferimenti correnti a Amministrazioni Pubbliche;1;Trasferimenti correnti a Amministrazioni Centrali;1;Trasferimenti correnti a Ministeri;28-06-2018;
1636;1;0;"1.466,64";"1.466,64";CASSA DI RISPARMIO DEL VENETO SPA; ;RIMBORSO AL DATORE DI LAVORO PERMESSI RETRIBUITI FRUITI DAL SINDACO STIVAN GIULIANO PER L'ESERCIZIO DI FUNZIONI PUBBLICHE  MESE DI MARZO 2018;28-06-2018;21;0;62;1;Spese correnti;3;Acquisto di beni e servizi;2;Acquisto di servizi;1;Organi e incarichi istituzionali dell'amministrazione;2;Organi istituzionali dell'amministrazione - Rimborsi;28-06-2018;
1637;1;0;"748,46";"748,46";COMUNE DI VICENZA; ;RIMBORSO SPESE DI FUNZIONAMENTO DELLE COMMISSIONI E SOTTOCOMMISSIONI  ELETTORALI CIRCONDARIALI ANNO 2017;28-06-2018;929;0;496;1;Spese correnti;4;Trasferimenti correnti;1;Trasferimenti correnti a Amministrazioni Pubbliche;2;Trasferimenti correnti a Amministrazioni Locali;3;Trasferimenti correnti a Comuni;28-06-2018;
1638;1;0;"78,00";"78,00";MAGGIOLI SPA;Z3823B141F;SALDO Fatt.n. 0005958068  del 15/06/2018 FORNITURA TESTO "I CONTROLLI DELLA CORTE DEI CONTI";28-06-2018;324;0;459;1;Spese correnti;3;Acquisto di beni e servizi;1;Acquisto di beni;2;Altri beni di consumo;1;"Carta, cancelleria e stampati";28-06-2018;
1639;1;0;"6.100,00";"6.100,00";AGENZIA DELLE ENTRATE - RISCOSSIONE;63128898CC;PIGNORAMENTO CREDITI V/TERZI CODICE IDENTIFICATIVO FASCICOLO 124/2018/1251;29-06-2018;2838;0;259;1;Spese correnti;3;Acquisto di beni e servizi;2;Acquisto di servizi;99;Altri servizi;999;Altri servizi diversi n.a.c.;29-06-2018;
